DepartmentFamily,Entity,Date,ExpenseType,ExpenseArea,Supplier,PaymentNumber,InvoiceDistributionAmount,InvoiceDescription,SupplierPostCode,ExpenditureType
FOOD STANDARDS AGENCY - Westminster,FOOD STANDARDS AGENCY - Westminster,2017-11-09,EXP - PURCHASE OF GOODS/SERV-ICT OUTSOURC&MAINT/SUPP- IT SUPPORT SERVICES,IT SERVICE DELIVERY,CAPITA SECURE INFORMATION SOLUTIONS LTD,1011704333,"341,459.67",CORE SERVICES CHARGE,SN14 0TW,ADMIN
FOOD STANDARDS AGENCY - Westminster,FOOD STANDARDS AGENCY - Westminster,2017-11-21,EXP - PURCHASE OF GOODS/SERVICES - OTHER - PROGRAMME EXPENDITURE, LOCAL DELIVERY DIVISION,TRADING STANDARDS INSTITUTE (GRANTS),1011704408,"231,170.71",Feed Off. Conts 2017/18 NTS/TSI fees. Feed Official Controls funding 2017/18: NTS/TSI fees.,SS15 6TH,PROGRAMME
FOOD STANDARDS AGENCY - Westminster,FOOD STANDARDS AGENCY - Westminster,2017-11-29,EXP - AMORTISATION - INTANGIBLE ASSETS,OWOW,OKTRA LTD,1011704471,"216,675.00",INTERIM VALUATION,WC1V 7PB,CAPITAL
FOOD STANDARDS AGENCY - Westminster,FOOD STANDARDS AGENCY - Westminster,2017-11-15,EXP - RENTALS UNDER NON PFI OPERATING LEASES  -OTHER RENTAL- RENT OUTSIDE LONDON,SECURITY & ESTATES,MONTAGU EVANS LLP,1011704362,"154,142.56",HEAD RENT IN ADVANCE,EH3 8EG,ADMIN
FOOD STANDARDS AGENCY - Westminster,FOOD STANDARDS AGENCY - Westminster,2017-11-15,EXP - RENTALS UNDER NON PFI OPERATING LEASES  -OTHER RENTAL- RENT OUTSIDE LONDON,SECURITY & ESTATES,MONTAGU EVANS LLP,1011704362,"154,142.56",HEAD RENT IN ADVANCE,EH3 8EG,ADMIN
FOOD STANDARDS AGENCY - Westminster,FOOD STANDARDS AGENCY - Westminster,2017-11-15,EXP - RENTALS UNDER NON PFI OPERATING LEASES  -OTHER RENTAL- RENT OUTSIDE LONDON,SECURITY & ESTATES,MONTAGU EVANS LLP,1011704362,"154,142.53",HEAD RENT IN ADVANCE,EH3 8EG,ADMIN
FOOD STANDARDS AGENCY - Westminster,FOOD STANDARDS AGENCY - Westminster,2017-11-21,EXP - PURCHASE OF GOODS/SERVICES - OTHER - PROGRAMME EXPENDITURE,MICROBIOLOGICAL FOOD SAFETY BRANCH,"THE CHANCELLOR, MASTERS AND SCHOLARS OF THE UNIVERSITY OF OXFORD",1011704406,"136,562.67",CLAIM FOR DELIVERABLE,OX1 2JD,PROGRAMME
FOOD STANDARDS AGENCY - Westminster,FOOD STANDARDS AGENCY - Westminster,2017-11-21,EXP - PURCHASE OF GOODS/SERVICES - OTHER - PROGRAMME EXPENDITURE, LOCAL DELIVERY DIVISION,TRADING STANDARDS INSTITUTE (GRANTS),1011704408,"128,133.44",Feed Off. Conts 2017/18 NTS/TSI fees. Feed Official Controls funding 2017/18: NTS/TSI fees.,SS15 6TH,PROGRAMME
FOOD STANDARDS AGENCY - Westminster,FOOD STANDARDS AGENCY - Westminster,2017-11-21,EXP - PURCHASE OF GOODS/SERVICES - SHARED SERV OUTSRCG- CIVIL SERV PENSION ADMIN,FINANCE DIVISION,LONDON PENSIONS FUND AUTHORITY,1011704410,"118,815.00",Nov 17 - LPFA Deficit reduction payment,EC3N 4LP,ADMIN
FOOD STANDARDS AGENCY - Westminster,FOOD STANDARDS AGENCY - Westminster,2017-11-03,EXP - PURCHASE OF GOODS/SERVICES - ACCOMMODATION & BLDNG MANAGEMENT - CILOR,SECURITY & ESTATES,LONDON BOROUGH OF CAMDEN,1011704263,"118,762.00",NOV 17 CHARGES,WC1H 8NH,ADMIN
FOOD STANDARDS AGENCY - Westminster,FOOD STANDARDS AGENCY - Westminster,2017-11-30,EXP - PURCHASE OF GOODS/SERVICES - OTHER ICT COSTS - IT DEVELOPMENT,IT STRATEGY & DEVELOPMENT,COREAZURE LTD,1011704478,"116,780.00",Datacentre Discovery and Design,EC1A 4EN,ADMIN
FOOD STANDARDS AGENCY - Westminster,FOOD STANDARDS AGENCY - Westminster,2017-11-30,EXP - PURCHASE OF GOODS/SERVICES - OTHER - PROGRAMME EXPENDITURE,SCIENTIFIC METHODS AND LABORATORY POLICY,PUBLIC HEALTH ENGLAND,2012700328,"90,000.00",STUDY PROTOCOL AND TEST REPORT,NW9 5EQ,PROGRAMME
FOOD STANDARDS AGENCY - Westminster,FOOD STANDARDS AGENCY - Westminster,2017-11-24,EXP - PURCHASE OF GOODS/SERVICES - OTHER - PROGRAMME EXPENDITURE,FOODBORNE DISEASE CONTROL,PUBLIC HEALTH ENGLAND,2012700325,"57,347.30",SAMPLING AND TESTING REPORT FOR 3 YEARS,NW9 5EQ,PROGRAMME
FOOD STANDARDS AGENCY - Westminster,FOOD STANDARDS AGENCY - Westminster,2017-11-21,EXP - PURCHASE OF GOODS/SERV-ICT OUTSOURC&MAINT/SUPP- IT SUPPORT SERVICES,IT SERVICE DELIVERY,CAPITA SECURE INFORMATION SOLUTIONS LTD,1011704409,"54,746.82",CORE SERVICE CHARGE,SN14 0TW,ADMIN
FOOD STANDARDS AGENCY - Westminster,FOOD STANDARDS AGENCY - Westminster,2017-11-15,EXP - PURCHASE OF GOODS/SERVICES - OTHER FACILTIES COSTS - SECURITY,SECURITY & ESTATES,INTERSERVE FM LTD,1011704365,"53,409.26",BUILDING FABRIC MAINTENANCE,SE1 8RT,ADMIN
FOOD STANDARDS AGENCY - Westminster,FOOD STANDARDS AGENCY - Westminster,2017-11-20,EXP - SHORT-TERM CONTRACT & AGENCY STAFF - FULL COST,OPERATIONAL DELIVERY,EVILLE & JONES (UK) LTD,1011704400,"48,827.79",PO NO 11770002379,LS15 8ZB,PROGRAMME
FOOD STANDARDS AGENCY - Westminster,FOOD STANDARDS AGENCY - Westminster,2017-11-28,EXP - SHORT-TERM CONTRACT & AGENCY STAFF - FULL COST,Surveillance,ALPINE RESOURCING LTD,1011704458,"48,510.00",FS 101079 SUPPLY OF MANAGED SERVICE,EC1A 7DH,ADMIN
FOOD STANDARDS AGENCY - Westminster,FOOD STANDARDS AGENCY - Westminster,2017-11-30,EXP - PURCHASE OF GOODS/SERVICES - OTHER ICT COSTS - IT DEVELOPMENT,IT STRATEGY & DEVELOPMENT,COREAZURE LTD,1011704478,"46,775.00",Datacentre Discovery and Design,EC1A 4EN,ADMIN
FOOD STANDARDS AGENCY - Westminster,FOOD STANDARDS AGENCY - Westminster,2017-11-29,EXP - AMORTISATION - INTANGIBLE ASSETS,OWOW,OKTRA LTD,1011704471,"43,335.00",INTERIM VALUATION,WC1V 7PB,CAPITAL
FOOD STANDARDS AGENCY - Westminster,FOOD STANDARDS AGENCY - Westminster,2017-11-29,EXP - PURCHASE OF GOODS/SERVICES - OTHER FACILTIES COSTS - SECURITY,SECURITY & ESTATES,INTERSERVE FM LTD,1011704473,"41,464.44",BUILDING Provision of FM Services in Aviation House from October 2016 to February 2018 (FSA Contract Ref. FSA 451,SE1 8RT,ADMIN
FOOD STANDARDS AGENCY - Westminster,FOOD STANDARDS AGENCY - Westminster,2017-11-30,EXP - PURCHASE OF GOODS/SERVICES - OTHER - PROGRAMME EXPENDITURE,DIGITAL,WUNDER LTD,1011704480,"40,472.84",FSA BETA PROJECT 01.09.2017.-30.09.2017.,N1 9AB,PROGRAMME
FOOD STANDARDS AGENCY - Westminster,FOOD STANDARDS AGENCY - Westminster,2017-11-14,EXP - PURCHASE OF GOODS/SERVICES - OTHER FACILITIES COSTS  - MEETING ROOM HIRE,COMMS,CALDER CONFERENCES LTD,1011704358,"32,174.08",PO 11770000912,LS16 6RF,ADMIN
FOOD STANDARDS AGENCY - Westminster,FOOD STANDARDS AGENCY - Westminster,2017-11-24,EXP - PURCHASE OF GOODS/SERVICES -OTHER PROFESSIONAL SERVICES - LEGAL,OWOW,BERWIN LEIGHTON PAISNER,1011704445,"32,122.99",COURIER CHARGES,EC4R 9HA,ADMIN
FOOD STANDARDS AGENCY - Westminster,FOOD STANDARDS AGENCY - Westminster,2017-11-28,EXP - AMORTISATION - INTANGIBLE ASSETS, LOCAL DELIVERY DIVISION,R H ENVIRONMENTAL LTD,1011704462,"31,350.00",DETAILS FOR PO 11770002578,SA38 9AR,CAPITAL
FOOD STANDARDS AGENCY - Westminster,FOOD STANDARDS AGENCY - Westminster,2017-11-09,EXP - PURCHASE OF GOODS/SERVICES - OTHER - PROGRAMME EXPENDITURE, LOCAL DELIVERY DIVISION,TRADING STANDARDS INSTITUTE (GRANTS),1011704328,"30,872.50",Feed Off. Conts 2017/18 NTS/TSI fees. Feed Official Controls funding 2017/18: NTS/TSI fees.,SS15 6TH,PROGRAMME
FOOD STANDARDS AGENCY - Westminster,FOOD STANDARDS AGENCY - Westminster,2017-11-09,EXP - PURCHASE OF GOODS/SERVICES - PERSONNEL RELATED - MEMBERSHIP OF ORGANISATIONS,IT SERVICE DELIVERY,CSC COMPUTER SCIENCES LTD,1011704322,"30,000.00",PROJECT NO 31698801 SUBSCRIPTION FOR THE LEADING EDGE,GU11 1PZ,ADMIN
FOOD STANDARDS AGENCY - Westminster,FOOD STANDARDS AGENCY - Westminster,2017-11-03,EXP - PURCHASE OF GOODS/SERVICES - OTHER ENERGY/UTILITIES/WASTE COST,SECURITY & ESTATES,EDF ENERGY PLC,1011704270,"28,619.27",EDF ENERGY INVOICE 3369041 SEPTEMBER 17,EX1 3UT,ADMIN
FOOD STANDARDS AGENCY - Westminster,FOOD STANDARDS AGENCY - Westminster,2017-11-28,EXP - PURCHASE OF GOODS/SERVICES - OTHER ENERGY/UTILITIES/WASTE COST,SECURITY & ESTATES,EDF ENERGY PLC,1011704460,"24,954.70",EDF ENERGY INVOICE 3484947 OCTOBER 17,EX1 3UT,ADMIN
FOOD STANDARDS AGENCY - Westminster,FOOD STANDARDS AGENCY - Westminster,2017-11-03,EXP - PURCHASE OF GOODS/SERVICES - OTHER - PROGRAMME EXPENDITURE,SCIENTIFIC METHODS AND LABORATORY POLICY,HALL MARK MEAT HYGIENE LTD,1011704271,"24,674.38",D2 ALL SAMPLES DELIVERD,GL10 2BJ,PROGRAMME
FOOD STANDARDS AGENCY - Westminster,FOOD STANDARDS AGENCY - Westminster,2017-11-17,EXP - PURCHASE OF GOODS/SERVICES - OTHER - PROGRAMME EXPENDITURE, LOCAL DELIVERY DIVISION,C E F A S,2012700319,"21,076.00",Shellfish Classification,NR33 0HT,PROGRAMME
FOOD STANDARDS AGENCY - Westminster,FOOD STANDARDS AGENCY - Westminster,2017-11-17,EXP - PURCHASE OF GOODS/SERVICES - OTHER - PROGRAMME EXPENDITURE, LOCAL DELIVERY DIVISION,C E F A S,2012700319,"20,545.44",Phytoplankton analysis 2017/18,NR33 0HT,PROGRAMME
FOOD STANDARDS AGENCY - Westminster,FOOD STANDARDS AGENCY - Westminster,2017-11-29,EXP - PURCHASE OF GOODS/SERVICES -ACCOMM & BLDNG MGMT - MAINTENANCE & REPAIRS,OWOW,OKTRA LTD,1011704471,"16,896.20",INTERIM VALUATION,WC1V 7PB,ADMIN
FOOD STANDARDS AGENCY - Westminster,FOOD STANDARDS AGENCY - Westminster,2017-11-17,EXP - PURCHASE OF GOODS/SERVICES - OTHER - PROGRAMME EXPENDITURE, LOCAL DELIVERY DIVISION,C E F A S,2012700319,"14,199.38",Shellfish Biotoxin Flesh analysis - DSP,NR33 0HT,PROGRAMME
FOOD STANDARDS AGENCY - Westminster,FOOD STANDARDS AGENCY - Westminster,2017-11-17,EXP - PURCHASE OF GOODS/SERVICES - OTHER - PROGRAMME EXPENDITURE, LOCAL DELIVERY DIVISION,C E F A S,2012700319,"12,540.20",Shellfish Biotoxin Flesh analysis - PSP,NR33 0HT,PROGRAMME
FOOD STANDARDS AGENCY - Westminster,FOOD STANDARDS AGENCY - Westminster,2017-11-15,EXP - PURCHASE OF GOODS/SERVICES - OTHER FACILTIES COSTS - SECURITY,SECURITY & ESTATES,INTERSERVE FM LTD,1011704365,"10,681.85",BUILDING FABRIC MAINTENANCE,SE1 8RT,ADMIN
FOOD STANDARDS AGENCY - Westminster,FOOD STANDARDS AGENCY - Westminster,2017-11-29,EXP - PURCHASE OF GOODS/SERVICES - ACCOMM & BLDNG MGMT - SHARED SITE RECHARGE,SECURITY & ESTATES,INTERSERVE FM LTD,1011704473,"9,840.63",BUILDING  Provision of FM Services in Aviation House from October 2016 to February 2018 (FSA Contract Ref. FSA 451),SE1 8RT,ADMIN
FOOD STANDARDS AGENCY - Westminster,FOOD STANDARDS AGENCY - Westminster,2017-11-17,EXP - PURCHASE OF GOODS/SERVICES - OTHER - PROGRAMME EXPENDITURE, LOCAL DELIVERY DIVISION,C E F A S,2012700319,"9,778.42",Shellfish Biotoxin Flesh analysis - ASP,NR33 0HT,PROGRAMME
FOOD STANDARDS AGENCY - Westminster,FOOD STANDARDS AGENCY - Westminster,2017-11-28,EXP - SHORT-TERM CONTRACT & AGENCY STAFF - FULL COST,Surveillance,ALPINE RESOURCING LTD,1011704458,"9,702.00",FS 101079 SUPPLY OF MANAGED SERVICE,EC1A 7DH,ADMIN
FOOD STANDARDS AGENCY - Westminster,FOOD STANDARDS AGENCY - Westminster,2017-11-29,EXP - PURCHASE OF GOODS/SERVICES - OTHER FACILTIES COSTS - SECURITY,SECURITY & ESTATES,INTERSERVE FM LTD,1011704473,"8,292.89",BUILDING  Provision of FM Services in Aviation House from October 2016 to February 2018 (FSA Contract Ref. FSA 451),SE1 8RT,ADMIN
FOOD STANDARDS AGENCY - Westminster,FOOD STANDARDS AGENCY - Westminster,2017-11-29,EXP - PURCHASE OF GOODS/SERVICES - ACCOMM & BLDNG MGMT - FURNITURE & FITTINGS,OWOW,OKTRA LTD,1011704471,"7,119.00",INTERIM VALUATION,WC1V 7PB,ADMIN
FOOD STANDARDS AGENCY - Westminster,FOOD STANDARDS AGENCY - Westminster,2017-11-29,EXP - PURCHASE OF GOODS/SERVICES -ACCOMM & BLDNG MGMT - MAINTENANCE & REPAIRS,OWOW,OKTRA LTD,1011704471,"6,477.00",INTERIM VALUATION,WC1V 7PB,ADMIN
FOOD STANDARDS AGENCY - Westminster,FOOD STANDARDS AGENCY - Westminster,2017-11-24,EXP - PURCHASE OF GOODS/SERVICES -OTHER PROFESSIONAL SERVICES - LEGAL,OWOW,BERWIN LEIGHTON PAISNER,1011704445,"6,424.60",COURIER CHARGES,EC4R 9HA,ADMIN
FOOD STANDARDS AGENCY - Westminster,FOOD STANDARDS AGENCY - Westminster,2017-11-09,EXP - PURCHASE OF GOODS/SERVICES - PERSONNEL RELATED - MEMBERSHIP OF ORGANISATIONS,IT SERVICE DELIVERY,CSC COMPUTER SCIENCES LTD,1011704322,"6,000.00",PROJECT NO 31698801 SUBSCRIPTION FOR THE LEADING EDGE,GU11 1PZ,ADMIN
FOOD STANDARDS AGENCY - Westminster,FOOD STANDARDS AGENCY - Westminster,2017-11-03,EXP - PURCHASE OF GOODS/SERVICES - OTHER ENERGY/UTILITIES/WASTE COST,SECURITY & ESTATES,EDF ENERGY PLC,1011704270,"5,718.04",EDF ENERGY INVOICE 3369041 SEPTEMBER 17,EX1 3UT,ADMIN
FOOD STANDARDS AGENCY - Westminster,FOOD STANDARDS AGENCY - Westminster,2017-11-16,EXP - PURCHASE OF GOODS/SERVICES -  FOREIGN AIR TRAVEL,REGULATING OUR FUTURE,REDFERN TRAVEL LTD,1011704377,"5,257.80",UK TRAVEL WEEK 45,BD1 5HQ,ADMIN
FOOD STANDARDS AGENCY - Westminster,FOOD STANDARDS AGENCY - Westminster,2017-11-28,EXP - PURCHASE OF GOODS/SERVICES - OTHER ENERGY/UTILITIES/WASTE COST,SECURITY & ESTATES,EDF ENERGY PLC,1011704460,"4,985.45",EDF ENERGY INVOICE 3484947 OCTOBER 17,EX1 3UT,ADMIN
FOOD STANDARDS AGENCY - Westminster,FOOD STANDARDS AGENCY - Westminster,2017-11-22,EXP - PURCHASE OF GOODS/SERVICES - RAIL TRAVEL,CHIEF EXECUTIVE & PRIVATE OFFICE,REDFERN TRAVEL LTD,1011704417,"4,914.68",WEEK 46 TRAVEL EXPENSES,BD1 5HQ,ADMIN
FOOD STANDARDS AGENCY - Westminster,FOOD STANDARDS AGENCY - Westminster,2017-11-29,EXP - PURCHASE OF GOODS/SERVICES -ACCOMM & BLDNG MGMT - MAINTENANCE & REPAIRS,OWOW,OKTRA LTD,1011704471,"4,674.64",INTERIM VALUATION,WC1V 7PB,ADMIN
FOOD STANDARDS AGENCY - Westminster,FOOD STANDARDS AGENCY - Westminster,2017-11-29,EXP - PURCHASE OF GOODS/SERVICES - ACCOMM & BLDNG MGMT - FURNITURE & FITTINGS,OWOW,OKTRA LTD,1011704471,"4,268.00",INTERIM VALUATION,WC1V 7PB,ADMIN
FOOD STANDARDS AGENCY - Westminster,FOOD STANDARDS AGENCY - Westminster,2017-11-01,EXP - PURCHASE OF GOODS/SERVICES -  FOREIGN AIR TRAVEL,FOOD HYGIENE POLICY,REDFERN TRAVEL LTD,1011704256,"3,482.39",WEEK 43 TRAVEL EXPENSES,BD1 5HQ,ADMIN
FOOD STANDARDS AGENCY - Westminster,FOOD STANDARDS AGENCY - Westminster,2017-11-30,EXP - PURCHASE OF GOODS/SERVICES - RAIL TRAVEL,OPERATIONAL DELIVERY ,REDFERN TRAVEL LTD,1011704483,"2,792.35",WEEK 47 TRAVEL EXPENSES,BD1 5HQ,PROGRAMME
FOOD STANDARDS AGENCY - Westminster,FOOD STANDARDS AGENCY - Westminster,2017-11-22,EXP - PURCHASE OF GOODS/SERVICES - RAIL TRAVEL,OPERATIONAL DELIVERY ,REDFERN TRAVEL LTD,1011704417,"2,753.90",WEEK 46 TRAVEL EXPENSES,BD1 5HQ,PROGRAMME
FOOD STANDARDS AGENCY - Westminster,FOOD STANDARDS AGENCY - Westminster,2017-11-22,EXP - PURCHASE OF GOODS/SERVICES - SUBSISTENCE,REGULATORY DELIVERY,REDFERN TRAVEL LTD,1011704417,"2,722.02",WEEK 46 TRAVEL EXPENSES,BD1 5HQ,ADMIN
FOOD STANDARDS AGENCY - Westminster,FOOD STANDARDS AGENCY - Westminster,2017-11-22,EXP - PURCHASE OF GOODS/SERVICES - RAIL TRAVEL,OPERATIONS ASSURANCE DIVISION (PROGRAMME),REDFERN TRAVEL LTD,1011704417,"2,633.85",WEEK 46 TRAVEL EXPENSES,BD1 5HQ,PROGRAMME
FOOD STANDARDS AGENCY - Westminster,FOOD STANDARDS AGENCY - Westminster,2017-11-30,EXP - PURCHASE OF GOODS/SERVICES - RAIL TRAVEL,REGULATORY DELIVERY,REDFERN TRAVEL LTD,1011704483,"2,548.75",WEEK 47 TRAVEL EXPENSES,BD1 5HQ,ADMIN
FOOD STANDARDS AGENCY - Westminster,FOOD STANDARDS AGENCY - Westminster,2017-11-16,EXP - PURCHASE OF GOODS/SERVICES - RAIL TRAVEL,OPERATIONS ASSURANCE DIVISION (PROGRAMME),REDFERN TRAVEL LTD,1011704377,"2,540.05",UK TRAVEL WEEK 45,BD1 5HQ,PROGRAMME
FOOD STANDARDS AGENCY - Westminster,FOOD STANDARDS AGENCY - Westminster,2017-11-01,EXP - PURCHASE OF GOODS/SERVICES - RAIL TRAVEL,OPERATIONAL DELIVERY ,REDFERN TRAVEL LTD,1011704256,"2,520.75",WEEK 43 TRAVEL EXPENSES,BD1 5HQ,PROGRAMME
FOOD STANDARDS AGENCY - Westminster,FOOD STANDARDS AGENCY - Westminster,2017-11-08,EXP - PURCHASE OF GOODS/SERVICES - RAIL TRAVEL,OPERATIONS ASSURANCE DIVISION (PROGRAMME),REDFERN TRAVEL LTD,1011704298,"2,266.35",WEEK 44 TRAVEL EXPENSES,BD1 5HQ,PROGRAMME
FOOD STANDARDS AGENCY - Westminster,FOOD STANDARDS AGENCY - Westminster,2017-11-16,EXP - PURCHASE OF GOODS/SERVICES - RAIL TRAVEL,OPERATIONAL DELIVERY ,REDFERN TRAVEL LTD,1011704377,"2,255.90",UK TRAVEL WEEK 45,BD1 5HQ,PROGRAMME
FOOD STANDARDS AGENCY - Westminster,FOOD STANDARDS AGENCY - Westminster,2017-11-22,EXP - PURCHASE OF GOODS/SERVICES - SUBSISTENCE,OPERATIONAL DELIVERY ,REDFERN TRAVEL LTD,1011704417,"2,137.42",WEEK 46 TRAVEL EXPENSES,BD1 5HQ,PROGRAMME
FOOD STANDARDS AGENCY - Westminster,FOOD STANDARDS AGENCY - Westminster,2017-11-16,EXP - PURCHASE OF GOODS/SERVICES - RAIL TRAVEL,ORGANISATIONAL DEVELOPMENT,REDFERN TRAVEL LTD,1011704377,"2,103.70",UK TRAVEL WEEK 45,BD1 5HQ,ADMIN
FOOD STANDARDS AGENCY - Westminster,FOOD STANDARDS AGENCY - Westminster,2017-11-30,EXP - PURCHASE OF GOODS/SERVICES - RAIL TRAVEL,OPERATIONS ASSURANCE DIVISION (PROGRAMME),REDFERN TRAVEL LTD,1011704483,"2,054.40",WEEK 47 TRAVEL EXPENSES,BD1 5HQ,PROGRAMME
FOOD STANDARDS AGENCY - Westminster,FOOD STANDARDS AGENCY - Westminster,2017-11-01,EXP - PURCHASE OF GOODS/SERVICES - RAIL TRAVEL,OPERATIONS ASSURANCE DIVISION (PROGRAMME),REDFERN TRAVEL LTD,1011704256,"1,985.65",WEEK 43 TRAVEL EXPENSES,BD1 5HQ,PROGRAMME
FOOD STANDARDS AGENCY - Westminster,FOOD STANDARDS AGENCY - Westminster,2017-11-29,EXP - PURCHASE OF GOODS/SERVICES - ACCOMM & BLDNG MGMT - SHARED SITE RECHARGE,SECURITY & ESTATES,INTERSERVE FM LTD,1011704473,"1,968.12",BUILDING Provision of FM Services in Aviation House from October 2016 to February 2018 (FSA Contract Ref. FSA 451),SE1 8RT,ADMIN
FOOD STANDARDS AGENCY - Westminster,FOOD STANDARDS AGENCY - Westminster,2017-11-22,EXP - PURCHASE OF GOODS/SERVICES - RAIL TRAVEL,CORPORATE SUPPORT UNIT,REDFERN TRAVEL LTD,1011704417,"1,952.55",WEEK 46 TRAVEL EXPENSES,BD1 5HQ,ADMIN
FOOD STANDARDS AGENCY - Westminster,FOOD STANDARDS AGENCY - Westminster,2017-11-30,EXP - PURCHASE OF GOODS/SERVICES - RAIL TRAVEL,ORGANISATIONAL DEVELOPMENT,REDFERN TRAVEL LTD,1011704483,"1,943.90",WEEK 47 TRAVEL EXPENSES,BD1 5HQ,ADMIN
FOOD STANDARDS AGENCY - Westminster,FOOD STANDARDS AGENCY - Westminster,2017-11-01,EXP - PURCHASE OF GOODS/SERVICES - AIR TRAVEL,REGULATING OUR FUTURE,REDFERN TRAVEL LTD,1011704256,"1,868.29",WEEK 43 TRAVEL EXPENSES,BD1 5HQ,ADMIN
FOOD STANDARDS AGENCY - Westminster,FOOD STANDARDS AGENCY - Westminster,2017-11-01,EXP - PURCHASE OF GOODS/SERVICES - RAIL TRAVEL,REGULATORY DELIVERY,REDFERN TRAVEL LTD,1011704256,"1,822.90",WEEK 43 TRAVEL EXPENSES,BD1 5HQ,ADMIN
FOOD STANDARDS AGENCY - Westminster,FOOD STANDARDS AGENCY - Westminster,2017-11-08,EXP - PURCHASE OF GOODS/SERVICES - RAIL TRAVEL,OPERATIONAL DELIVERY ,REDFERN TRAVEL LTD,1011704298,"1,809.80",WEEK 44 TRAVEL EXPENSES,BD1 5HQ,PROGRAMME
FOOD STANDARDS AGENCY - Westminster,FOOD STANDARDS AGENCY - Westminster,2017-11-08,EXP - PURCHASE OF GOODS/SERVICES - SUBSISTENCE,CHIEF EXECUTIVE & PRIVATE OFFICE,REDFERN TRAVEL LTD,1011704298,"1,765.41",WEEK 44 TRAVEL EXPENSES,BD1 5HQ,ADMIN
FOOD STANDARDS AGENCY - Westminster,FOOD STANDARDS AGENCY - Westminster,2017-11-16,EXP - PURCHASE OF GOODS/SERVICES - RAIL TRAVEL,FINANCE BRANCH,REDFERN TRAVEL LTD,1011704377,"1,723.10",UK TRAVEL WEEK 45,BD1 5HQ,ADMIN
FOOD STANDARDS AGENCY - Westminster,FOOD STANDARDS AGENCY - Westminster,2017-11-08,EXP - PURCHASE OF GOODS/SERVICES - RAIL TRAVEL,REGULATORY DELIVERY,REDFERN TRAVEL LTD,1011704298,"1,722.90",WEEK 44 TRAVEL EXPENSES,BD1 5HQ,ADMIN
FOOD STANDARDS AGENCY - Westminster,FOOD STANDARDS AGENCY - Westminster,2017-11-30,EXP - PURCHASE OF GOODS/SERVICES - AIR TRAVEL,REGULATING OUR FUTURE,REDFERN TRAVEL LTD,1011704483,"1,687.18",WEEK 47 TRAVEL EXPENSES,BD1 5HQ,ADMIN
FOOD STANDARDS AGENCY - Westminster,FOOD STANDARDS AGENCY - Westminster,2017-11-29,EXP - PURCHASE OF GOODS/SERVICES - ACCOMM & BLDNG MGMT - FURNITURE & FITTINGS,OWOW,OKTRA LTD,1011704471,"1,625.00",INTERIM VALUATION,WC1V 7PB,ADMIN
FOOD STANDARDS AGENCY - Westminster,FOOD STANDARDS AGENCY - Westminster,2017-11-22,EXP - PURCHASE OF GOODS/SERVICES - RAIL TRAVEL,REGULATORY DELIVERY,REDFERN TRAVEL LTD,1011704417,"1,494.05",WEEK 46 TRAVEL EXPENSES,BD1 5HQ,ADMIN
FOOD STANDARDS AGENCY - Westminster,FOOD STANDARDS AGENCY - Westminster,2017-11-08,EXP - PURCHASE OF GOODS/SERVICES -  FOREIGN AIR TRAVEL,REGULATORY & INTERNATIONAL,REDFERN TRAVEL LTD,1011704298,"1,462.43",WEEK 44 TRAVEL EXPENSES,BD1 5HQ,ADMIN
FOOD STANDARDS AGENCY - Westminster,FOOD STANDARDS AGENCY - Westminster,2017-11-01,EXP - PURCHASE OF GOODS/SERVICES - RAIL TRAVEL,CHIEF EXECUTIVE & PRIVATE OFFICE,REDFERN TRAVEL LTD,1011704256,"1,429.40",WEEK 43 TRAVEL EXPENSES,BD1 5HQ,ADMIN
FOOD STANDARDS AGENCY - Westminster,FOOD STANDARDS AGENCY - Westminster,2017-11-29,EXP - PURCHASE OF GOODS/SERVICES - ACCOMM & BLDNG MGMT - FURNITURE & FITTINGS,OWOW,OKTRA LTD,1011704471,"1,423.80",INTERIM VALUATION,WC1V 7PB,ADMIN
FOOD STANDARDS AGENCY - Westminster,FOOD STANDARDS AGENCY - Westminster,2017-11-16,EXP - PURCHASE OF GOODS/SERVICES - RAIL TRAVEL,REGULATING OUR FUTURE,REDFERN TRAVEL LTD,1011704377,"1,390.25",UK TRAVEL WEEK 45,BD1 5HQ,ADMIN
FOOD STANDARDS AGENCY - Westminster,FOOD STANDARDS AGENCY - Westminster,2017-11-22,EXP - PURCHASE OF GOODS/SERVICES - RAIL TRAVEL,ORGANISATIONAL DEVELOPMENT,REDFERN TRAVEL LTD,1011704417,"1,351.15",WEEK 46 TRAVEL EXPENSES,BD1 5HQ,ADMIN
FOOD STANDARDS AGENCY - Westminster,FOOD STANDARDS AGENCY - Westminster,2017-11-30,EXP - PURCHASE OF GOODS/SERVICES - RAIL TRAVEL,INFORMATION & KNOWLEDGE MANAGMENT,REDFERN TRAVEL LTD,1011704483,"1,350.00",WEEK 47 TRAVEL EXPENSES,BD1 5HQ,ADMIN
FOOD STANDARDS AGENCY - Westminster,FOOD STANDARDS AGENCY - Westminster,2017-11-22,EXP - PURCHASE OF GOODS/SERVICES - RAIL TRAVEL,FINANCE BRANCH,REDFERN TRAVEL LTD,1011704417,"1,341.75",WEEK 46 TRAVEL EXPENSES,BD1 5HQ,ADMIN
FOOD STANDARDS AGENCY - Westminster,FOOD STANDARDS AGENCY - Westminster,2017-11-22,EXP - PURCHASE OF GOODS/SERVICES - RAIL TRAVEL,COMMS,REDFERN TRAVEL LTD,1011704417,"1,313.10",WEEK 46 TRAVEL EXPENSES,BD1 5HQ,ADMIN
FOOD STANDARDS AGENCY - Westminster,FOOD STANDARDS AGENCY - Westminster,2017-11-16,EXP - PURCHASE OF GOODS/SERVICES - RAIL TRAVEL,REGULATORY DELIVERY,REDFERN TRAVEL LTD,1011704377,"1,312.90",UK TRAVEL WEEK 45,BD1 5HQ,ADMIN
FOOD STANDARDS AGENCY - Westminster,FOOD STANDARDS AGENCY - Westminster,2017-11-16,EXP - PURCHASE OF GOODS/SERVICES -  FOREIGN AIR TRAVEL,FOOD INCIDENTS AND RESILIENCE PROG,REDFERN TRAVEL LTD,1011704377,"1,301.20",UK TRAVEL WEEK 45,BD1 5HQ,PROGRAMME
FOOD STANDARDS AGENCY - Westminster,FOOD STANDARDS AGENCY - Westminster,2017-11-08,EXP - PURCHASE OF GOODS/SERVICES - RAIL TRAVEL,REGULATING OUR FUTURE,REDFERN TRAVEL LTD,1011704298,"1,273.90",WEEK 44 TRAVEL EXPENSES,BD1 5HQ,ADMIN
FOOD STANDARDS AGENCY - Westminster,FOOD STANDARDS AGENCY - Westminster,2017-11-30,EXP - PURCHASE OF GOODS/SERVICES - RAIL TRAVEL,REGULATING OUR FUTURE,REDFERN TRAVEL LTD,1011704483,"1,177.90",WEEK 47 TRAVEL EXPENSES,BD1 5HQ,ADMIN
FOOD STANDARDS AGENCY - Westminster,FOOD STANDARDS AGENCY - Westminster,2017-11-08,EXP - PURCHASE OF GOODS/SERVICES - RAIL TRAVEL,ORGANISATIONAL DEVELOPMENT,REDFERN TRAVEL LTD,1011704298,"1,147.20",WEEK 44 TRAVEL EXPENSES,BD1 5HQ,ADMIN
FOOD STANDARDS AGENCY - Westminster,FOOD STANDARDS AGENCY - Westminster,2017-11-01,EXP - PURCHASE OF GOODS/SERVICES - RAIL TRAVEL,FINANCE BRANCH,REDFERN TRAVEL LTD,1011704256,"1,115.30",WEEK 43 TRAVEL EXPENSES,BD1 5HQ,ADMIN
FOOD STANDARDS AGENCY - Westminster,FOOD STANDARDS AGENCY - Westminster,2017-11-22,EXP - PURCHASE OF GOODS/SERVICES - RAIL TRAVEL,REGULATING OUR FUTURE,REDFERN TRAVEL LTD,1011704417,"1,112.60",WEEK 46 TRAVEL EXPENSES,BD1 5HQ,ADMIN
FOOD STANDARDS AGENCY - Westminster,FOOD STANDARDS AGENCY - Westminster,2017-11-30,EXP - PURCHASE OF GOODS/SERVICES - SUBSISTENCE,REGULATORY DELIVERY,REDFERN TRAVEL LTD,1011704483,"1,085.37",WEEK 47 TRAVEL EXPENSES,BD1 5HQ,ADMIN
FOOD STANDARDS AGENCY - Westminster,FOOD STANDARDS AGENCY - Westminster,2017-11-22,EXP - PURCHASE OF GOODS/SERVICES -  FOREIGN AIR TRAVEL,FOOD HYGIENE POLICY,REDFERN TRAVEL LTD,1011704417,"1,003.23",WEEK 46 TRAVEL EXPENSES,BD1 5HQ,ADMIN
FOOD STANDARDS AGENCY - Westminster,FOOD STANDARDS AGENCY - Westminster,2017-11-01,EXP - PURCHASE OF GOODS/SERVICES - SUBSISTENCE,OPERATIONAL DELIVERY ,REDFERN TRAVEL LTD,1011704256,985.94,WEEK 43 TRAVEL EXPENSES,BD1 5HQ,PROGRAMME
FOOD STANDARDS AGENCY - Westminster,FOOD STANDARDS AGENCY - Westminster,2017-11-22,EXP - PURCHASE OF GOODS/SERVICES - RAIL TRAVEL,INFORMATION & KNOWLEDGE MANAGMENT,REDFERN TRAVEL LTD,1011704417,982.75,WEEK 46 TRAVEL EXPENSES,BD1 5HQ,ADMIN
FOOD STANDARDS AGENCY - Westminster,FOOD STANDARDS AGENCY - Westminster,2017-11-08,EXP - PURCHASE OF GOODS/SERVICES -  FOREIGN AIR TRAVEL,EU EXIT,REDFERN TRAVEL LTD,1011704298,976.32,WEEK 44 TRAVEL EXPENSES,BD1 5HQ,ADMIN
FOOD STANDARDS AGENCY - Westminster,FOOD STANDARDS AGENCY - Westminster,2017-11-16,EXP - PURCHASE OF GOODS/SERVICES - SUBSISTENCE,REGULATORY DELIVERY,REDFERN TRAVEL LTD,1011704377,921.35,UK TRAVEL WEEK 45,BD1 5HQ,ADMIN
FOOD STANDARDS AGENCY - Westminster,FOOD STANDARDS AGENCY - Westminster,2017-11-22,EXP - PURCHASE OF GOODS/SERVICES - RAIL TRAVEL,North 2,REDFERN TRAVEL LTD,1011704417,920.25,WEEK 46 TRAVEL EXPENSES,BD1 5HQ,PROGRAMME
FOOD STANDARDS AGENCY - Westminster,FOOD STANDARDS AGENCY - Westminster,2017-11-30,EXP - PURCHASE OF GOODS/SERVICES - RAIL TRAVEL,"PLANNING, PERFORMANCE & CHANGE",REDFERN TRAVEL LTD,1011704483,909.20,WEEK 47 TRAVEL EXPENSES,BD1 5HQ,ADMIN
FOOD STANDARDS AGENCY - Westminster,FOOD STANDARDS AGENCY - Westminster,2017-11-01,EXP - PURCHASE OF GOODS/SERVICES - RAIL TRAVEL,"PLANNING, PERFORMANCE & CHANGE",REDFERN TRAVEL LTD,1011704256,908.40,WEEK 43 TRAVEL EXPENSES,BD1 5HQ,ADMIN
FOOD STANDARDS AGENCY - Westminster,FOOD STANDARDS AGENCY - Westminster,2017-11-22,EXP - PURCHASE OF GOODS/SERVICES - SUBSISTENCE,REGULATING OUR FUTURE,REDFERN TRAVEL LTD,1011704417,882.03,WEEK 46 TRAVEL EXPENSES,BD1 5HQ,ADMIN
FOOD STANDARDS AGENCY - Westminster,FOOD STANDARDS AGENCY - Westminster,2017-11-01,EXP - PURCHASE OF GOODS/SERVICES - RAIL TRAVEL,REGULATING OUR FUTURE,REDFERN TRAVEL LTD,1011704256,878.30,WEEK 43 TRAVEL EXPENSES,BD1 5HQ,ADMIN
FOOD STANDARDS AGENCY - Westminster,FOOD STANDARDS AGENCY - Westminster,2017-11-22,EXP - PURCHASE OF GOODS/SERVICES - SUBSISTENCE,CHIEF EXECUTIVE & PRIVATE OFFICE,REDFERN TRAVEL LTD,1011704417,874.44,WEEK 46 TRAVEL EXPENSES,BD1 5HQ,ADMIN
FOOD STANDARDS AGENCY - Westminster,FOOD STANDARDS AGENCY - Westminster,2017-11-08,EXP - PURCHASE OF GOODS/SERVICES - RAIL TRAVEL,FOOD INCIDENTS AND RESILIENCE PROG,REDFERN TRAVEL LTD,1011704298,865.60,WEEK 44 TRAVEL EXPENSES,BD1 5HQ,PROGRAMME
FOOD STANDARDS AGENCY - Westminster,FOOD STANDARDS AGENCY - Westminster,2017-11-08,EXP - PURCHASE OF GOODS/SERVICES - SUBSISTENCE,FOOD INCIDENTS AND RESILIENCE PROG,REDFERN TRAVEL LTD,1011704298,850.34,WEEK 44 TRAVEL EXPENSES,BD1 5HQ,PROGRAMME
FOOD STANDARDS AGENCY - Westminster,FOOD STANDARDS AGENCY - Westminster,2017-11-08,EXP - PURCHASE OF GOODS/SERVICES - FOREIGN SUBSISTENCE,MICRO FOOD SAFETY BRANCH,REDFERN TRAVEL LTD,1011704298,837.04,WEEK 44 TRAVEL EXPENSES,BD1 5HQ,ADMIN
FOOD STANDARDS AGENCY - Westminster,FOOD STANDARDS AGENCY - Westminster,2017-11-22,EXP - PURCHASE OF GOODS/SERVICES - RAIL TRAVEL,"PLANNING, PERFORMANCE & CHANGE",REDFERN TRAVEL LTD,1011704417,816.50,WEEK 46 TRAVEL EXPENSES,BD1 5HQ,ADMIN
FOOD STANDARDS AGENCY - Westminster,FOOD STANDARDS AGENCY - Westminster,2017-11-01,EXP - PURCHASE OF GOODS/SERVICES - RAIL TRAVEL,Wales and West 4 ,REDFERN TRAVEL LTD,1011704256,810.80,WEEK 43 TRAVEL EXPENSES,BD1 5HQ,PROGRAMME
FOOD STANDARDS AGENCY - Westminster,FOOD STANDARDS AGENCY - Westminster,2017-11-16,EXP - PURCHASE OF GOODS/SERVICES - RAIL TRAVEL,"PLANNING, PERFORMANCE & CHANGE",REDFERN TRAVEL LTD,1011704377,802.90,UK TRAVEL WEEK 45,BD1 5HQ,ADMIN
FOOD STANDARDS AGENCY - Westminster,FOOD STANDARDS AGENCY - Westminster,2017-11-01,EXP - PURCHASE OF GOODS/SERVICES - SUBSISTENCE,REGULATING OUR FUTURE,REDFERN TRAVEL LTD,1011704256,784.43,WEEK 43 TRAVEL EXPENSES,BD1 5HQ,ADMIN
FOOD STANDARDS AGENCY - Westminster,FOOD STANDARDS AGENCY - Westminster,2017-11-22,EXP - PURCHASE OF GOODS/SERVICES - AIR TRAVEL,OPERATIONS ASSURANCE DIVISION (PROGRAMME),REDFERN TRAVEL LTD,1011704417,779.53,WEEK 46 TRAVEL EXPENSES,BD1 5HQ,PROGRAMME
FOOD STANDARDS AGENCY - Westminster,FOOD STANDARDS AGENCY - Westminster,2017-11-30,EXP - PURCHASE OF GOODS/SERVICES - SUBSISTENCE,OPERATIONAL DELIVERY ,REDFERN TRAVEL LTD,1011704483,764.88,WEEK 47 TRAVEL EXPENSES,BD1 5HQ,PROGRAMME
FOOD STANDARDS AGENCY - Westminster,FOOD STANDARDS AGENCY - Westminster,2017-11-30,EXP - PURCHASE OF GOODS/SERVICES - FOREIGN SUBSISTENCE,MICRO FOOD SAFETY BRANCH,REDFERN TRAVEL LTD,1011704483,764.41,WEEK 47 TRAVEL EXPENSES,BD1 5HQ,ADMIN
FOOD STANDARDS AGENCY - Westminster,FOOD STANDARDS AGENCY - Westminster,2017-11-08,EXP - PURCHASE OF GOODS/SERVICES - AIR TRAVEL,FOOD CRIME UNIT PROG,REDFERN TRAVEL LTD,1011704298,743.16,WEEK 44 TRAVEL EXPENSES,BD1 5HQ,PROGRAMME
FOOD STANDARDS AGENCY - Westminster,FOOD STANDARDS AGENCY - Westminster,2017-11-16,EXP - PURCHASE OF GOODS/SERVICES - SUBSISTENCE,ORGANISATIONAL DEVELOPMENT,REDFERN TRAVEL LTD,1011704377,725.39,UK TRAVEL WEEK 45,BD1 5HQ,ADMIN
FOOD STANDARDS AGENCY - Westminster,FOOD STANDARDS AGENCY - Westminster,2017-11-16,EXP - PURCHASE OF GOODS/SERVICES - RAIL TRAVEL,LEGAL  BRANCH A & INVESTIGATIONS,REDFERN TRAVEL LTD,1011704377,695.90,UK TRAVEL WEEK 45,BD1 5HQ,ADMIN
FOOD STANDARDS AGENCY - Westminster,FOOD STANDARDS AGENCY - Westminster,2017-11-01,EXP - PURCHASE OF GOODS/SERVICES - SUBSISTENCE,OPERATIONS ASSURANCE DIVISION (PROGRAMME),REDFERN TRAVEL LTD,1011704256,683.82,WEEK 43 TRAVEL EXPENSES,BD1 5HQ,PROGRAMME
FOOD STANDARDS AGENCY - Westminster,FOOD STANDARDS AGENCY - Westminster,2017-11-22,EXP - PURCHASE OF GOODS/SERVICES - SUBSISTENCE,OPERATIONS ASSURANCE DIVISION (PROGRAMME),REDFERN TRAVEL LTD,1011704417,678.92,WEEK 46 TRAVEL EXPENSES,BD1 5HQ,PROGRAMME
FOOD STANDARDS AGENCY - Westminster,FOOD STANDARDS AGENCY - Westminster,2017-11-30,EXP - PURCHASE OF GOODS/SERVICES - SUBSISTENCE,NON MEAT FIELD OPS,REDFERN TRAVEL LTD,1011704483,677.43,WEEK 47 TRAVEL EXPENSES,BD1 5HQ,PROGRAMME
FOOD STANDARDS AGENCY - Westminster,FOOD STANDARDS AGENCY - Westminster,2017-11-08,EXP - PURCHASE OF GOODS/SERVICES - RAIL TRAVEL,"PLANNING, PERFORMANCE & CHANGE",REDFERN TRAVEL LTD,1011704298,673.60,WEEK 44 TRAVEL EXPENSES,BD1 5HQ,ADMIN
FOOD STANDARDS AGENCY - Westminster,FOOD STANDARDS AGENCY - Westminster,2017-11-22,EXP - PURCHASE OF GOODS/SERVICES - RAIL TRAVEL,INTERNAL AUDIT,REDFERN TRAVEL LTD,1011704417,669.00,WEEK 46 TRAVEL EXPENSES,BD1 5HQ,ADMIN
FOOD STANDARDS AGENCY - Westminster,FOOD STANDARDS AGENCY - Westminster,2017-11-08,EXP - PURCHASE OF GOODS/SERVICES - RAIL TRAVEL,CORPORATE SUPPORT UNIT,REDFERN TRAVEL LTD,1011704298,668.10,WEEK 44 TRAVEL EXPENSES,BD1 5HQ,ADMIN
FOOD STANDARDS AGENCY - Westminster,FOOD STANDARDS AGENCY - Westminster,2017-11-22,EXP - PURCHASE OF GOODS/SERVICES - RAIL TRAVEL,LEGAL  BRANCH A & INVESTIGATIONS,REDFERN TRAVEL LTD,1011704417,653.10,WEEK 46 TRAVEL EXPENSES,BD1 5HQ,ADMIN
FOOD STANDARDS AGENCY - Westminster,FOOD STANDARDS AGENCY - Westminster,2017-11-16,EXP - PURCHASE OF GOODS/SERVICES - RAIL TRAVEL,IT SERVICE DELIVERY,REDFERN TRAVEL LTD,1011704377,646.90,UK TRAVEL WEEK 45,BD1 5HQ,ADMIN
FOOD STANDARDS AGENCY - Westminster,FOOD STANDARDS AGENCY - Westminster,2017-11-01,EXP - PURCHASE OF GOODS/SERVICES - RAIL TRAVEL,IT SERVICE DELIVERY,REDFERN TRAVEL LTD,1011704256,643.90,WEEK 43 TRAVEL EXPENSES,BD1 5HQ,ADMIN
FOOD STANDARDS AGENCY - Westminster,FOOD STANDARDS AGENCY - Westminster,2017-11-16,EXP - PURCHASE OF GOODS/SERVICES - SUBSISTENCE,REGULATING OUR FUTURE,REDFERN TRAVEL LTD,1011704377,635.00,UK TRAVEL WEEK 45,BD1 5HQ,ADMIN
FOOD STANDARDS AGENCY - Westminster,FOOD STANDARDS AGENCY - Westminster,2017-11-08,EXP - PURCHASE OF GOODS/SERVICES - SUBSISTENCE,"PLANNING, PERFORMANCE & CHANGE",REDFERN TRAVEL LTD,1011704298,621.76,WEEK 44 TRAVEL EXPENSES,BD1 5HQ,ADMIN
FOOD STANDARDS AGENCY - Westminster,FOOD STANDARDS AGENCY - Westminster,2017-11-01,EXP - PURCHASE OF GOODS/SERVICES -  FOREIGN AIR TRAVEL,"RADIOLOGICAL, NOVEL FOOD & PROCESSES",REDFERN TRAVEL LTD,1011704256,612.26,WEEK 43 TRAVEL EXPENSES,BD1 5HQ,ADMIN
FOOD STANDARDS AGENCY - Westminster,FOOD STANDARDS AGENCY - Westminster,2017-11-16,EXP - PURCHASE OF GOODS/SERVICES - SUBSISTENCE,INFORMATION & KNOWLEDGE MANAGMENT,REDFERN TRAVEL LTD,1011704377,596.65,UK TRAVEL WEEK 45,BD1 5HQ,ADMIN
FOOD STANDARDS AGENCY - Westminster,FOOD STANDARDS AGENCY - Westminster,2017-11-16,EXP - PURCHASE OF GOODS/SERVICES - SUBSISTENCE,OPERATIONAL DELIVERY ,REDFERN TRAVEL LTD,1011704377,592.25,UK TRAVEL WEEK 45,BD1 5HQ,PROGRAMME
FOOD STANDARDS AGENCY - Westminster,FOOD STANDARDS AGENCY - Westminster,2017-11-30,EXP - PURCHASE OF GOODS/SERVICES - AIR TRAVEL,REGULATORY & INTERNATIONAL,REDFERN TRAVEL LTD,1011704483,591.86,WEEK 47 TRAVEL EXPENSES,BD1 5HQ,ADMIN
FOOD STANDARDS AGENCY - Westminster,FOOD STANDARDS AGENCY - Westminster,2017-11-30,EXP - PURCHASE OF GOODS/SERVICES - AIR TRAVEL,OPERATIONAL DELIVERY ,REDFERN TRAVEL LTD,1011704483,581.60,WEEK 47 TRAVEL EXPENSES,BD1 5HQ,PROGRAMME
FOOD STANDARDS AGENCY - Westminster,FOOD STANDARDS AGENCY - Westminster,2017-11-08,EXP - PURCHASE OF GOODS/SERVICES - FOREIGN SUBSISTENCE,FOOD ADDITIVES,REDFERN TRAVEL LTD,1011704298,575.16,WEEK 44 TRAVEL EXPENSES,BD1 5HQ,ADMIN
FOOD STANDARDS AGENCY - Westminster,FOOD STANDARDS AGENCY - Westminster,2017-11-08,EXP - PURCHASE OF GOODS/SERVICES - RAIL TRAVEL,INFORMATION & KNOWLEDGE MANAGMENT,REDFERN TRAVEL LTD,1011704298,571.90,WEEK 44 TRAVEL EXPENSES,BD1 5HQ,ADMIN
FOOD STANDARDS AGENCY - Westminster,FOOD STANDARDS AGENCY - Westminster,2017-11-16,EXP - PURCHASE OF GOODS/SERVICES - RAIL TRAVEL,INFORMATION & KNOWLEDGE MANAGMENT,REDFERN TRAVEL LTD,1011704377,571.75,UK TRAVEL WEEK 45,BD1 5HQ,ADMIN
FOOD STANDARDS AGENCY - Westminster,FOOD STANDARDS AGENCY - Westminster,2017-11-01,EXP - PURCHASE OF GOODS/SERVICES - RAIL TRAVEL,CORPORATE SUPPORT UNIT,REDFERN TRAVEL LTD,1011704256,556.26,WEEK 43 TRAVEL EXPENSES,BD1 5HQ,ADMIN
FOOD STANDARDS AGENCY - Westminster,FOOD STANDARDS AGENCY - Westminster,2017-11-16,EXP - PURCHASE OF GOODS/SERVICES - AIR TRAVEL,REGULATING OUR FUTURE,REDFERN TRAVEL LTD,1011704377,551.68,UK TRAVEL WEEK 45,BD1 5HQ,ADMIN
FOOD STANDARDS AGENCY - Westminster,FOOD STANDARDS AGENCY - Westminster,2017-11-30,EXP - PURCHASE OF GOODS/SERVICES - SUBSISTENCE,ORGANISATIONAL DEVELOPMENT,REDFERN TRAVEL LTD,1011704483,548.72,WEEK 47 TRAVEL EXPENSES,BD1 5HQ,ADMIN
FOOD STANDARDS AGENCY - Westminster,FOOD STANDARDS AGENCY - Westminster,2017-11-01,EXP - PURCHASE OF GOODS/SERVICES - RAIL TRAVEL,INFORMATION & KNOWLEDGE MANAGMENT,REDFERN TRAVEL LTD,1011704256,546.10,WEEK 43 TRAVEL EXPENSES,BD1 5HQ,ADMIN
FOOD STANDARDS AGENCY - Westminster,FOOD STANDARDS AGENCY - Westminster,2017-11-01,EXP - PURCHASE OF GOODS/SERVICES - RAIL TRAVEL,FOOD INCIDENTS AND RESILIENCE PROG,REDFERN TRAVEL LTD,1011704256,545.50,WEEK 43 TRAVEL EXPENSES,BD1 5HQ,PROGRAMME
FOOD STANDARDS AGENCY - Westminster,FOOD STANDARDS AGENCY - Westminster,2017-11-30,EXP - PURCHASE OF GOODS/SERVICES - SUBSISTENCE,INFORMATION & KNOWLEDGE MANAGMENT,REDFERN TRAVEL LTD,1011704483,539.21,WEEK 47 TRAVEL EXPENSES,BD1 5HQ,ADMIN
FOOD STANDARDS AGENCY - Westminster,FOOD STANDARDS AGENCY - Westminster,2017-11-01,EXP - PURCHASE OF GOODS/SERVICES - RAIL TRAVEL,North 2,REDFERN TRAVEL LTD,1011704256,538.40,WEEK 43 TRAVEL EXPENSES,BD1 5HQ,PROGRAMME
FOOD STANDARDS AGENCY - Westminster,FOOD STANDARDS AGENCY - Westminster,2017-11-01,EXP - PURCHASE OF GOODS/SERVICES - SUBSISTENCE,REGULATORY DELIVERY,REDFERN TRAVEL LTD,1011704256,535.84,WEEK 43 TRAVEL EXPENSES,BD1 5HQ,ADMIN
FOOD STANDARDS AGENCY - Westminster,FOOD STANDARDS AGENCY - Westminster,2017-11-01,EXP - PURCHASE OF GOODS/SERVICES - AIR TRAVEL,OPERATIONS ASSURANCE DIVISION (PROGRAMME),REDFERN TRAVEL LTD,1011704256,527.80,WEEK 43 TRAVEL EXPENSES,BD1 5HQ,PROGRAMME
FOOD STANDARDS AGENCY - Westminster,FOOD STANDARDS AGENCY - Westminster,2017-11-01,EXP - PURCHASE OF GOODS/SERVICES - SUBSISTENCE,Wales and West 2 (England),REDFERN TRAVEL LTD,1011704256,526.38,WEEK 43 TRAVEL EXPENSES,BD1 5HQ,PROGRAMME
FOOD STANDARDS AGENCY - Westminster,FOOD STANDARDS AGENCY - Westminster,2017-11-01,EXP - PURCHASE OF GOODS/SERVICES - AIR TRAVEL,REGULATORY DELIVERY,REDFERN TRAVEL LTD,1011704256,521.23,WEEK 43 TRAVEL EXPENSES,BD1 5HQ,ADMIN
FOOD STANDARDS AGENCY - Westminster,FOOD STANDARDS AGENCY - Westminster,2017-11-01,EXP - PURCHASE OF GOODS/SERVICES - RAIL TRAVEL,ORGANISATIONAL DEVELOPMENT,REDFERN TRAVEL LTD,1011704256,509.40,WEEK 43 TRAVEL EXPENSES,BD1 5HQ,ADMIN
FOOD STANDARDS AGENCY - Westminster,FOOD STANDARDS AGENCY - Westminster,2017-11-16,EXP - PURCHASE OF GOODS/SERVICES - SUBSISTENCE,Wales and West 4 ,REDFERN TRAVEL LTD,1011704377,507.68,UK TRAVEL WEEK 45,BD1 5HQ,PROGRAMME
FOOD STANDARDS AGENCY - Westminster,FOOD STANDARDS AGENCY - Westminster,2017-11-16,EXP - PURCHASE OF GOODS/SERVICES - RAIL TRAVEL,EU EXIT,REDFERN TRAVEL LTD,1011704377,504.90,UK TRAVEL WEEK 45,BD1 5HQ,ADMIN
FOOD STANDARDS AGENCY - Westminster,FOOD STANDARDS AGENCY - Westminster,2017-11-08,EXP - PURCHASE OF GOODS/SERVICES - SUBSISTENCE,COMMS,REDFERN TRAVEL LTD,1011704298,494.74,WEEK 44 TRAVEL EXPENSES,BD1 5HQ,ADMIN
FOOD STANDARDS AGENCY - Westminster,FOOD STANDARDS AGENCY - Westminster,2017-11-16,EXP - PURCHASE OF GOODS/SERVICES - RAIL TRAVEL,CHIEF EXECUTIVE & PRIVATE OFFICE,REDFERN TRAVEL LTD,1011704377,494.00,UK TRAVEL WEEK 45,BD1 5HQ,ADMIN
FOOD STANDARDS AGENCY - Westminster,FOOD STANDARDS AGENCY - Westminster,2017-11-08,EXP - PURCHASE OF GOODS/SERVICES - RAIL TRAVEL,COMMS,REDFERN TRAVEL LTD,1011704298,481.80,WEEK 44 TRAVEL EXPENSES,BD1 5HQ,ADMIN
FOOD STANDARDS AGENCY - Westminster,FOOD STANDARDS AGENCY - Westminster,2017-11-16,EXP - PURCHASE OF GOODS/SERVICES - RAIL TRAVEL,NON MEAT FIELD OPS,REDFERN TRAVEL LTD,1011704377,475.55,UK TRAVEL WEEK 45,BD1 5HQ,PROGRAMME
FOOD STANDARDS AGENCY - Westminster,FOOD STANDARDS AGENCY - Westminster,2017-11-16,EXP - PURCHASE OF GOODS/SERVICES - RAIL TRAVEL,North 2,REDFERN TRAVEL LTD,1011704377,468.40,UK TRAVEL WEEK 45,BD1 5HQ,PROGRAMME
FOOD STANDARDS AGENCY - Westminster,FOOD STANDARDS AGENCY - Westminster,2017-11-08,EXP - PURCHASE OF GOODS/SERVICES - SUBSISTENCE,DIGITAL,REDFERN TRAVEL LTD,1011704298,462.48,WEEK 44 TRAVEL EXPENSES,BD1 5HQ,ADMIN
FOOD STANDARDS AGENCY - Westminster,FOOD STANDARDS AGENCY - Westminster,2017-11-30,EXP - PURCHASE OF GOODS/SERVICES - RAIL TRAVEL,NON MEAT FIELD OPS,REDFERN TRAVEL LTD,1011704483,459.80,WEEK 47 TRAVEL EXPENSES,BD1 5HQ,PROGRAMME
FOOD STANDARDS AGENCY - Westminster,FOOD STANDARDS AGENCY - Westminster,2017-11-08,EXP - PURCHASE OF GOODS/SERVICES - SUBSISTENCE,ORGANISATIONAL DEVELOPMENT,REDFERN TRAVEL LTD,1011704298,458.26,WEEK 44 TRAVEL EXPENSES,BD1 5HQ,ADMIN
FOOD STANDARDS AGENCY - Westminster,FOOD STANDARDS AGENCY - Westminster,2017-11-01,EXP - PURCHASE OF GOODS/SERVICES - SUBSISTENCE,"ANIMAL FEED, TSEs & ABPs",REDFERN TRAVEL LTD,1011704256,453.17,WEEK 43 TRAVEL EXPENSES,BD1 5HQ,ADMIN
FOOD STANDARDS AGENCY - Westminster,FOOD STANDARDS AGENCY - Westminster,2017-11-08,EXP - PURCHASE OF GOODS/SERVICES - AIR TRAVEL,EU EXIT,REDFERN TRAVEL LTD,1011704298,448.93,WEEK 44 TRAVEL EXPENSES,BD1 5HQ,ADMIN
FOOD STANDARDS AGENCY - Westminster,FOOD STANDARDS AGENCY - Westminster,2017-11-01,EXP - PURCHASE OF GOODS/SERVICES - RAIL TRAVEL,CHIEF SCIENTIST  ,REDFERN TRAVEL LTD,1011704256,442.65,WEEK 43 TRAVEL EXPENSES,BD1 5HQ,ADMIN
FOOD STANDARDS AGENCY - Westminster,FOOD STANDARDS AGENCY - Westminster,2017-11-08,EXP - PURCHASE OF GOODS/SERVICES - RAIL TRAVEL,Wales and West 4 ,REDFERN TRAVEL LTD,1011704298,442.00,WEEK 44 TRAVEL EXPENSES,BD1 5HQ,PROGRAMME
FOOD STANDARDS AGENCY - Westminster,FOOD STANDARDS AGENCY - Westminster,2017-11-08,EXP - PURCHASE OF GOODS/SERVICES - RAIL TRAVEL,East 2,REDFERN TRAVEL LTD,1011704298,437.80,WEEK 44 TRAVEL EXPENSES,BD1 5HQ,PROGRAMME
FOOD STANDARDS AGENCY - Westminster,FOOD STANDARDS AGENCY - Westminster,2017-11-01,EXP - PURCHASE OF GOODS/SERVICES - FOREIGN SUBSISTENCE,ALLERGY & INTOLERANCE,REDFERN TRAVEL LTD,1011704256,437.27,WEEK 43 TRAVEL EXPENSES,BD1 5HQ,ADMIN
FOOD STANDARDS AGENCY - Westminster,FOOD STANDARDS AGENCY - Westminster,2017-11-30,EXP - PURCHASE OF GOODS/SERVICES - RAIL TRAVEL,CORPORATE SUPPORT UNIT,REDFERN TRAVEL LTD,1011704483,437.15,WEEK 47 TRAVEL EXPENSES,BD1 5HQ,ADMIN
FOOD STANDARDS AGENCY - Westminster,FOOD STANDARDS AGENCY - Westminster,2017-11-01,EXP - PURCHASE OF GOODS/SERVICES - FOREIGN SUBSISTENCE,"AGRICULTURAL, PROCESS & ENVIRONMENTAL CONTAMINANTS",REDFERN TRAVEL LTD,1011704256,433.03,WEEK 43 TRAVEL EXPENSES,BD1 5HQ,ADMIN
FOOD STANDARDS AGENCY - Westminster,FOOD STANDARDS AGENCY - Westminster,2017-11-22,EXP - PURCHASE OF GOODS/SERVICES - SUBSISTENCE,NON MEAT FIELD OPS,REDFERN TRAVEL LTD,1011704417,432.56,WEEK 46 TRAVEL EXPENSES,BD1 5HQ,PROGRAMME
FOOD STANDARDS AGENCY - Westminster,FOOD STANDARDS AGENCY - Westminster,2017-11-16,EXP - PURCHASE OF GOODS/SERVICES - RAIL TRAVEL,COMMS,REDFERN TRAVEL LTD,1011704377,429.20,UK TRAVEL WEEK 45,BD1 5HQ,ADMIN
FOOD STANDARDS AGENCY - Westminster,FOOD STANDARDS AGENCY - Westminster,2017-11-08,EXP - PURCHASE OF GOODS/SERVICES - FOREIGN SUBSISTENCE,FOOD HYGIENE POLICY,REDFERN TRAVEL LTD,1011704298,427.86,WEEK 44 TRAVEL EXPENSES,BD1 5HQ,ADMIN
FOOD STANDARDS AGENCY - Westminster,FOOD STANDARDS AGENCY - Westminster,2017-11-08,EXP - PURCHASE OF GOODS/SERVICES - RAIL TRAVEL,PROGRAMME AND PROJECT DELIVERY,REDFERN TRAVEL LTD,1011704298,427.60,WEEK 44 TRAVEL EXPENSES,BD1 5HQ,ADMIN
FOOD STANDARDS AGENCY - Westminster,FOOD STANDARDS AGENCY - Westminster,2017-11-30,EXP - PURCHASE OF GOODS/SERVICES - SUBSISTENCE,RESILIENCE ADMIN,REDFERN TRAVEL LTD,1011704483,427.20,WEEK 47 TRAVEL EXPENSES,BD1 5HQ,ADMIN
FOOD STANDARDS AGENCY - Westminster,FOOD STANDARDS AGENCY - Westminster,2017-11-08,EXP - PURCHASE OF GOODS/SERVICES - SUBSISTENCE,OPERATIONAL DELIVERY ,REDFERN TRAVEL LTD,1011704298,426.68,WEEK 44 TRAVEL EXPENSES,BD1 5HQ,PROGRAMME
FOOD STANDARDS AGENCY - Westminster,FOOD STANDARDS AGENCY - Westminster,2017-11-16,EXP - PURCHASE OF GOODS/SERVICES - RAIL TRAVEL,FOOD INCIDENTS AND RESILIENCE PROG,REDFERN TRAVEL LTD,1011704377,424.40,UK TRAVEL WEEK 45,BD1 5HQ,PROGRAMME
FOOD STANDARDS AGENCY - Westminster,FOOD STANDARDS AGENCY - Westminster,2017-11-08,EXP - PURCHASE OF GOODS/SERVICES - RAIL TRAVEL,FINANCE BRANCH,REDFERN TRAVEL LTD,1011704298,420.25,WEEK 44 TRAVEL EXPENSES,BD1 5HQ,ADMIN
FOOD STANDARDS AGENCY - Westminster,FOOD STANDARDS AGENCY - Westminster,2017-11-08,EXP - PURCHASE OF GOODS/SERVICES - SUBSISTENCE,LEGAL  BRANCH A & INVESTIGATIONS,REDFERN TRAVEL LTD,1011704298,419.41,WEEK 44 TRAVEL EXPENSES,BD1 5HQ,ADMIN
FOOD STANDARDS AGENCY - Westminster,FOOD STANDARDS AGENCY - Westminster,2017-11-01,EXP - PURCHASE OF GOODS/SERVICES - FOREIGN SUBSISTENCE,"ANIMAL FEED, TSEs & ABPs",REDFERN TRAVEL LTD,1011704256,417.93,WEEK 43 TRAVEL EXPENSES,BD1 5HQ,ADMIN
FOOD STANDARDS AGENCY - Westminster,FOOD STANDARDS AGENCY - Westminster,2017-11-01,EXP - PURCHASE OF GOODS/SERVICES - RAIL TRAVEL,COMMS,REDFERN TRAVEL LTD,1011704256,417.30,WEEK 43 TRAVEL EXPENSES,BD1 5HQ,ADMIN
FOOD STANDARDS AGENCY - Westminster,FOOD STANDARDS AGENCY - Westminster,2017-11-30,EXP - PURCHASE OF GOODS/SERVICES - AIR TRAVEL,OPERATIONS ASSURANCE DIVISION (PROGRAMME),REDFERN TRAVEL LTD,1011704483,416.16,WEEK 47 TRAVEL EXPENSES,BD1 5HQ,PROGRAMME
FOOD STANDARDS AGENCY - Westminster,FOOD STANDARDS AGENCY - Westminster,2017-11-16,EXP - PURCHASE OF GOODS/SERVICES - RAIL TRAVEL,INTERNAL AUDIT,REDFERN TRAVEL LTD,1011704377,408.15,UK TRAVEL WEEK 45,BD1 5HQ,ADMIN
FOOD STANDARDS AGENCY - Westminster,FOOD STANDARDS AGENCY - Westminster,2017-11-30,EXP - PURCHASE OF GOODS/SERVICES - SUBSISTENCE,Wales and West 1 (England),REDFERN TRAVEL LTD,1011704483,403.32,WEEK 47 TRAVEL EXPENSES,BD1 5HQ,PROGRAMME
FOOD STANDARDS AGENCY - Westminster,FOOD STANDARDS AGENCY - Westminster,2017-11-22,EXP - PURCHASE OF GOODS/SERVICES - SUBSISTENCE,INFORMATION & KNOWLEDGE MANAGMENT,REDFERN TRAVEL LTD,1011704417,400.89,WEEK 46 TRAVEL EXPENSES,BD1 5HQ,ADMIN
FOOD STANDARDS AGENCY - Westminster,FOOD STANDARDS AGENCY - Westminster,2017-11-16,EXP - PURCHASE OF GOODS/SERVICES - RAIL TRAVEL,Wales and West 2 (England),REDFERN TRAVEL LTD,1011704377,397.20,UK TRAVEL WEEK 45,BD1 5HQ,PROGRAMME
FOOD STANDARDS AGENCY - Westminster,FOOD STANDARDS AGENCY - Westminster,2017-11-16,EXP - PURCHASE OF GOODS/SERVICES - RAIL TRAVEL,North 1,REDFERN TRAVEL LTD,1011704377,394.10,UK TRAVEL WEEK 45,BD1 5HQ,PROGRAMME
FOOD STANDARDS AGENCY - Westminster,FOOD STANDARDS AGENCY - Westminster,2017-11-22,EXP - PURCHASE OF GOODS/SERVICES - RAIL TRAVEL,FOOD INCIDENTS AND RESILIENCE PROG,REDFERN TRAVEL LTD,1011704417,388.10,WEEK 46 TRAVEL EXPENSES,BD1 5HQ,PROGRAMME
FOOD STANDARDS AGENCY - Westminster,FOOD STANDARDS AGENCY - Westminster,2017-11-22,EXP - PURCHASE OF GOODS/SERVICES -  FOREIGN AIR TRAVEL,FOOD INCIDENTS AND RESILIENCE PROG,REDFERN TRAVEL LTD,1011704417,384.00,WEEK 46 TRAVEL EXPENSES,BD1 5HQ,PROGRAMME
FOOD STANDARDS AGENCY - Westminster,FOOD STANDARDS AGENCY - Westminster,2017-11-30,EXP - PURCHASE OF GOODS/SERVICES - RAIL TRAVEL,IT SERVICE DELIVERY,REDFERN TRAVEL LTD,1011704483,383.50,WEEK 47 TRAVEL EXPENSES,BD1 5HQ,ADMIN
FOOD STANDARDS AGENCY - Westminster,FOOD STANDARDS AGENCY - Westminster,2017-11-30,EXP - PURCHASE OF GOODS/SERVICES - SUBSISTENCE,REGULATING OUR FUTURE,REDFERN TRAVEL LTD,1011704483,382.37,WEEK 47 TRAVEL EXPENSES,BD1 5HQ,ADMIN
FOOD STANDARDS AGENCY - Westminster,FOOD STANDARDS AGENCY - Westminster,2017-11-08,EXP - PURCHASE OF GOODS/SERVICES - FOREIGN SUBSISTENCE,"RADIOLOGICAL, NOVEL FOOD & PROCESSES",REDFERN TRAVEL LTD,1011704298,376.08,WEEK 44 TRAVEL EXPENSES,BD1 5HQ,ADMIN
FOOD STANDARDS AGENCY - Westminster,FOOD STANDARDS AGENCY - Westminster,2017-11-08,EXP - PURCHASE OF GOODS/SERVICES - SUBSISTENCE,REGULATING OUR FUTURE,REDFERN TRAVEL LTD,1011704298,375.89,WEEK 44 TRAVEL EXPENSES,BD1 5HQ,ADMIN
FOOD STANDARDS AGENCY - Westminster,FOOD STANDARDS AGENCY - Westminster,2017-11-22,EXP - PURCHASE OF GOODS/SERVICES - SUBSISTENCE,IT STRATEGY & DEVELOPMENT,REDFERN TRAVEL LTD,1011704417,373.70,WEEK 46 TRAVEL EXPENSES,BD1 5HQ,ADMIN
FOOD STANDARDS AGENCY - Westminster,FOOD STANDARDS AGENCY - Westminster,2017-11-16,EXP - PURCHASE OF GOODS/SERVICES - AIR TRAVEL,COMMS,REDFERN TRAVEL LTD,1011704377,371.47,UK TRAVEL WEEK 45,BD1 5HQ,ADMIN
FOOD STANDARDS AGENCY - Westminster,FOOD STANDARDS AGENCY - Westminster,2017-11-22,EXP - PURCHASE OF GOODS/SERVICES -  FOREIGN AIR TRAVEL,"RADIOLOGICAL, NOVEL FOOD & PROCESSES",REDFERN TRAVEL LTD,1011704417,366.00,WEEK 46 TRAVEL EXPENSES,BD1 5HQ,ADMIN
FOOD STANDARDS AGENCY - Westminster,FOOD STANDARDS AGENCY - Westminster,2017-11-16,EXP - PURCHASE OF GOODS/SERVICES - RAIL TRAVEL,Wales and West 4 ,REDFERN TRAVEL LTD,1011704377,365.10,UK TRAVEL WEEK 45,BD1 5HQ,PROGRAMME
FOOD STANDARDS AGENCY - Westminster,FOOD STANDARDS AGENCY - Westminster,2017-11-16,EXP - PURCHASE OF GOODS/SERVICES - SUBSISTENCE,OPERATIONS ASSURANCE DIVISION (PROGRAMME),REDFERN TRAVEL LTD,1011704377,358.15,UK TRAVEL WEEK 45,BD1 5HQ,PROGRAMME
FOOD STANDARDS AGENCY - Westminster,FOOD STANDARDS AGENCY - Westminster,2017-11-22,EXP - PURCHASE OF GOODS/SERVICES - RAIL TRAVEL,Wales and West 2 (Wales),REDFERN TRAVEL LTD,1011704417,357.50,WEEK 46 TRAVEL EXPENSES,BD1 5HQ,PROGRAMME
FOOD STANDARDS AGENCY - Westminster,FOOD STANDARDS AGENCY - Westminster,2017-11-01,EXP - PURCHASE OF GOODS/SERVICES - AIR TRAVEL,ANALYSIS & RESEARCH BRANCH,REDFERN TRAVEL LTD,1011704256,355.72,WEEK 43 TRAVEL EXPENSES,BD1 5HQ,ADMIN
FOOD STANDARDS AGENCY - Westminster,FOOD STANDARDS AGENCY - Westminster,2017-11-22,EXP - PURCHASE OF GOODS/SERVICES - SUBSISTENCE,CHIEF SCIENTIST  ,REDFERN TRAVEL LTD,1011704417,340.60,WEEK 46 TRAVEL EXPENSES,BD1 5HQ,ADMIN
FOOD STANDARDS AGENCY - Westminster,FOOD STANDARDS AGENCY - Westminster,2017-11-22,EXP - PURCHASE OF GOODS/SERVICES - RAIL TRAVEL,Wales and West 4 ,REDFERN TRAVEL LTD,1011704417,339.30,WEEK 46 TRAVEL EXPENSES,BD1 5HQ,PROGRAMME
FOOD STANDARDS AGENCY - Westminster,FOOD STANDARDS AGENCY - Westminster,2017-11-30,EXP - PURCHASE OF GOODS/SERVICES - RAIL TRAVEL,PROCUREMENT,REDFERN TRAVEL LTD,1011704483,336.55,WEEK 47 TRAVEL EXPENSES,BD1 5HQ,ADMIN
FOOD STANDARDS AGENCY - Westminster,FOOD STANDARDS AGENCY - Westminster,2017-11-01,EXP - PURCHASE OF GOODS/SERVICES - SUBSISTENCE,INFORMATION & KNOWLEDGE MANAGMENT,REDFERN TRAVEL LTD,1011704256,334.33,WEEK 43 TRAVEL EXPENSES,BD1 5HQ,ADMIN
FOOD STANDARDS AGENCY - Westminster,FOOD STANDARDS AGENCY - Westminster,2017-11-16,EXP - PURCHASE OF GOODS/SERVICES - SUBSISTENCE,"PLANNING, PERFORMANCE & CHANGE",REDFERN TRAVEL LTD,1011704377,333.24,UK TRAVEL WEEK 45,BD1 5HQ,ADMIN
FOOD STANDARDS AGENCY - Westminster,FOOD STANDARDS AGENCY - Westminster,2017-11-08,EXP - PURCHASE OF GOODS/SERVICES -  FOREIGN AIR TRAVEL,FOOD HYGIENE POLICY,REDFERN TRAVEL LTD,1011704298,331.56,WEEK 44 TRAVEL EXPENSES,BD1 5HQ,ADMIN
FOOD STANDARDS AGENCY - Westminster,FOOD STANDARDS AGENCY - Westminster,2017-11-30,EXP - PURCHASE OF GOODS/SERVICES - RAIL TRAVEL,East 2,REDFERN TRAVEL LTD,1011704483,331.20,WEEK 47 TRAVEL EXPENSES,BD1 5HQ,PROGRAMME
FOOD STANDARDS AGENCY - Westminster,FOOD STANDARDS AGENCY - Westminster,2017-11-30,EXP - PURCHASE OF GOODS/SERVICES - RAIL TRAVEL,REGULATORY & INTERNATIONAL,REDFERN TRAVEL LTD,1011704483,328.90,WEEK 47 TRAVEL EXPENSES,BD1 5HQ,ADMIN
FOOD STANDARDS AGENCY - Westminster,FOOD STANDARDS AGENCY - Westminster,2017-11-16,EXP - PURCHASE OF GOODS/SERVICES - RAIL TRAVEL,INPORT & EXPORTS TEAM,REDFERN TRAVEL LTD,1011704377,320.60,UK TRAVEL WEEK 45,BD1 5HQ,ADMIN
FOOD STANDARDS AGENCY - Westminster,FOOD STANDARDS AGENCY - Westminster,2017-11-30,EXP - PURCHASE OF GOODS/SERVICES - AIR TRAVEL,"AGRICULTURAL, PROCESS & ENVIRONMENTAL CONTAMINANTS",REDFERN TRAVEL LTD,1011704483,318.00,WEEK 47 TRAVEL EXPENSES,BD1 5HQ,ADMIN
FOOD STANDARDS AGENCY - Westminster,FOOD STANDARDS AGENCY - Westminster,2017-11-30,EXP - PURCHASE OF GOODS/SERVICES -  FOREIGN AIR TRAVEL,"AGRICULTURAL, PROCESS & ENVIRONMENTAL CONTAMINANTS",REDFERN TRAVEL LTD,1011704483,318.00,WEEK 47 TRAVEL EXPENSES,BD1 5HQ,ADMIN
FOOD STANDARDS AGENCY - Westminster,FOOD STANDARDS AGENCY - Westminster,2017-11-30,EXP - PURCHASE OF GOODS/SERVICES - FOREIGN SUBSISTENCE,"AGRICULTURAL, PROCESS & ENVIRONMENTAL CONTAMINANTS",REDFERN TRAVEL LTD,1011704483,313.42,WEEK 47 TRAVEL EXPENSES,BD1 5HQ,ADMIN
FOOD STANDARDS AGENCY - Westminster,FOOD STANDARDS AGENCY - Westminster,2017-11-01,EXP - PURCHASE OF GOODS/SERVICES - SUBSISTENCE,LEGAL  BRANCH A & INVESTIGATIONS,REDFERN TRAVEL LTD,1011704256,312.88,WEEK 43 TRAVEL EXPENSES,BD1 5HQ,ADMIN
FOOD STANDARDS AGENCY - Westminster,FOOD STANDARDS AGENCY - Westminster,2017-11-01,EXP - PURCHASE OF GOODS/SERVICES - SUBSISTENCE,MICRO FOOD SAFETY BRANCH,REDFERN TRAVEL LTD,1011704256,309.86,WEEK 43 TRAVEL EXPENSES,BD1 5HQ,ADMIN
FOOD STANDARDS AGENCY - Westminster,FOOD STANDARDS AGENCY - Westminster,2017-11-16,EXP - PURCHASE OF GOODS/SERVICES - RAIL TRAVEL,Wales and West 1 (England),REDFERN TRAVEL LTD,1011704377,308.60,UK TRAVEL WEEK 45,BD1 5HQ,PROGRAMME
FOOD STANDARDS AGENCY - Westminster,FOOD STANDARDS AGENCY - Westminster,2017-11-30,EXP - PURCHASE OF GOODS/SERVICES - SUBSISTENCE,INTERNAL AUDIT,REDFERN TRAVEL LTD,1011704483,308.40,WEEK 47 TRAVEL EXPENSES,BD1 5HQ,ADMIN
FOOD STANDARDS AGENCY - Westminster,FOOD STANDARDS AGENCY - Westminster,2017-11-30,EXP - PURCHASE OF GOODS/SERVICES - RAIL TRAVEL,COMMS,REDFERN TRAVEL LTD,1011704483,305.50,WEEK 47 TRAVEL EXPENSES,BD1 5HQ,ADMIN
FOOD STANDARDS AGENCY - Westminster,FOOD STANDARDS AGENCY - Westminster,2017-11-30,EXP - PURCHASE OF GOODS/SERVICES - RAIL TRAVEL,LEGAL  BRANCH A & INVESTIGATIONS,REDFERN TRAVEL LTD,1011704483,297.60,WEEK 47 TRAVEL EXPENSES,BD1 5HQ,ADMIN
FOOD STANDARDS AGENCY - Westminster,FOOD STANDARDS AGENCY - Westminster,2017-11-16,EXP - PURCHASE OF GOODS/SERVICES - SUBSISTENCE,FOOD INCIDENTS AND RESILIENCE PROG,REDFERN TRAVEL LTD,1011704377,296.48,UK TRAVEL WEEK 45,BD1 5HQ,PROGRAMME
FOOD STANDARDS AGENCY - Westminster,FOOD STANDARDS AGENCY - Westminster,2017-11-22,EXP - PURCHASE OF GOODS/SERVICES - AIR TRAVEL,FOOD HYGIENE POLICY,REDFERN TRAVEL LTD,1011704417,295.98,WEEK 46 TRAVEL EXPENSES,BD1 5HQ,ADMIN
FOOD STANDARDS AGENCY - Westminster,FOOD STANDARDS AGENCY - Westminster,2017-11-22,EXP - PURCHASE OF GOODS/SERVICES - SUBSISTENCE,FOOD INCIDENTS AND RESILIENCE PROG,REDFERN TRAVEL LTD,1011704417,294.89,WEEK 46 TRAVEL EXPENSES,BD1 5HQ,PROGRAMME
FOOD STANDARDS AGENCY - Westminster,FOOD STANDARDS AGENCY - Westminster,2017-11-22,EXP - PURCHASE OF GOODS/SERVICES - AIR TRAVEL,LEGAL  BRANCH A & INVESTIGATIONS,REDFERN TRAVEL LTD,1011704417,294.10,WEEK 46 TRAVEL EXPENSES,BD1 5HQ,ADMIN
FOOD STANDARDS AGENCY - Westminster,FOOD STANDARDS AGENCY - Westminster,2017-11-22,EXP - PURCHASE OF GOODS/SERVICES - AIR TRAVEL,"PLANNING, PERFORMANCE & CHANGE",REDFERN TRAVEL LTD,1011704417,294.10,WEEK 46 TRAVEL EXPENSES,BD1 5HQ,ADMIN
FOOD STANDARDS AGENCY - Westminster,FOOD STANDARDS AGENCY - Westminster,2017-11-01,EXP - PURCHASE OF GOODS/SERVICES -  FOREIGN AIR TRAVEL,EU EXIT,REDFERN TRAVEL LTD,1011704256,290.16,WEEK 43 TRAVEL EXPENSES,BD1 5HQ,ADMIN
FOOD STANDARDS AGENCY - Westminster,FOOD STANDARDS AGENCY - Westminster,2017-11-22,EXP - PURCHASE OF GOODS/SERVICES - RAIL TRAVEL,East 2,REDFERN TRAVEL LTD,1011704417,287.50,WEEK 46 TRAVEL EXPENSES,BD1 5HQ,PROGRAMME
FOOD STANDARDS AGENCY - Westminster,FOOD STANDARDS AGENCY - Westminster,2017-11-08,EXP - PURCHASE OF GOODS/SERVICES - SUBSISTENCE,FINANCE BRANCH,REDFERN TRAVEL LTD,1011704298,284.20,WEEK 44 TRAVEL EXPENSES,BD1 5HQ,ADMIN
FOOD STANDARDS AGENCY - Westminster,FOOD STANDARDS AGENCY - Westminster,2017-11-01,EXP - PURCHASE OF GOODS/SERVICES - RAIL TRAVEL,NON MEAT FIELD OPS,REDFERN TRAVEL LTD,1011704256,281.70,WEEK 43 TRAVEL EXPENSES,BD1 5HQ,PROGRAMME
FOOD STANDARDS AGENCY - Westminster,FOOD STANDARDS AGENCY - Westminster,2017-11-30,EXP - PURCHASE OF GOODS/SERVICES - FOREIGN SUBSISTENCE,INTERNAL AUDIT,REDFERN TRAVEL LTD,1011704483,281.15,WEEK 47 TRAVEL EXPENSES,BD1 5HQ,ADMIN
FOOD STANDARDS AGENCY - Westminster,FOOD STANDARDS AGENCY - Westminster,2017-11-01,EXP - PURCHASE OF GOODS/SERVICES - RAIL TRAVEL,LEGAL  BRANCH A & INVESTIGATIONS,REDFERN TRAVEL LTD,1011704256,279.70,WEEK 43 TRAVEL EXPENSES,BD1 5HQ,ADMIN
FOOD STANDARDS AGENCY - Westminster,FOOD STANDARDS AGENCY - Westminster,2017-11-30,EXP - PURCHASE OF GOODS/SERVICES - SUBSISTENCE,"CHAIR, DEPUTY CHAIR & BOARD",REDFERN TRAVEL LTD,1011704483,278.73,WEEK 47 TRAVEL EXPENSES,BD1 5HQ,ADMIN
FOOD STANDARDS AGENCY - Westminster,FOOD STANDARDS AGENCY - Westminster,2017-11-30,EXP - PURCHASE OF GOODS/SERVICES - SUBSISTENCE,INPORT & EXPORTS TEAM,REDFERN TRAVEL LTD,1011704483,273.66,WEEK 47 TRAVEL EXPENSES,BD1 5HQ,ADMIN
FOOD STANDARDS AGENCY - Westminster,FOOD STANDARDS AGENCY - Westminster,2017-11-30,EXP - PURCHASE OF GOODS/SERVICES - RAIL TRAVEL,East 3,REDFERN TRAVEL LTD,1011704483,271.50,WEEK 47 TRAVEL EXPENSES,BD1 5HQ,PROGRAMME
FOOD STANDARDS AGENCY - Westminster,FOOD STANDARDS AGENCY - Westminster,2017-11-30,EXP - PURCHASE OF GOODS/SERVICES - SUBSISTENCE,OPERATIONS ASSURANCE DIVISION (PROGRAMME),REDFERN TRAVEL LTD,1011704483,270.46,WEEK 47 TRAVEL EXPENSES,BD1 5HQ,PROGRAMME
FOOD STANDARDS AGENCY - Westminster,FOOD STANDARDS AGENCY - Westminster,2017-11-08,EXP - PURCHASE OF GOODS/SERVICES - AIR TRAVEL,OPERATIONS ASSURANCE DIVISION (PROGRAMME),REDFERN TRAVEL LTD,1011704298,261.70,WEEK 44 TRAVEL EXPENSES,BD1 5HQ,PROGRAMME
FOOD STANDARDS AGENCY - Westminster,FOOD STANDARDS AGENCY - Westminster,2017-11-16,EXP - PURCHASE OF GOODS/SERVICES - RAIL TRAVEL,East 3,REDFERN TRAVEL LTD,1011704377,260.75,UK TRAVEL WEEK 45,BD1 5HQ,PROGRAMME
FOOD STANDARDS AGENCY - Westminster,FOOD STANDARDS AGENCY - Westminster,2017-11-30,EXP - PURCHASE OF GOODS/SERVICES - RAIL TRAVEL,EU EXIT,REDFERN TRAVEL LTD,1011704483,259.10,WEEK 47 TRAVEL EXPENSES,BD1 5HQ,ADMIN
FOOD STANDARDS AGENCY - Westminster,FOOD STANDARDS AGENCY - Westminster,2017-11-01,EXP - PURCHASE OF GOODS/SERVICES - RAIL TRAVEL,EU EXIT,REDFERN TRAVEL LTD,1011704256,257.20,WEEK 43 TRAVEL EXPENSES,BD1 5HQ,ADMIN
FOOD STANDARDS AGENCY - Westminster,FOOD STANDARDS AGENCY - Westminster,2017-11-08,EXP - PURCHASE OF GOODS/SERVICES - FOREIGN SUBSISTENCE,REGULATORY & INTERNATIONAL,REDFERN TRAVEL LTD,1011704298,257.10,WEEK 44 TRAVEL EXPENSES,BD1 5HQ,ADMIN
FOOD STANDARDS AGENCY - Westminster,FOOD STANDARDS AGENCY - Westminster,2017-11-08,EXP - PURCHASE OF GOODS/SERVICES - RAIL TRAVEL,LEGAL  BRANCH A & INVESTIGATIONS,REDFERN TRAVEL LTD,1011704298,256.70,WEEK 44 TRAVEL EXPENSES,BD1 5HQ,ADMIN
FOOD STANDARDS AGENCY - Westminster,FOOD STANDARDS AGENCY - Westminster,2017-11-01,EXP - PURCHASE OF GOODS/SERVICES -  FOREIGN AIR TRAVEL,ANALYSIS & RESEARCH BRANCH,REDFERN TRAVEL LTD,1011704256,255.50,WEEK 43 TRAVEL EXPENSES,BD1 5HQ,ADMIN
FOOD STANDARDS AGENCY - Westminster,FOOD STANDARDS AGENCY - Westminster,2017-11-01,EXP - PURCHASE OF GOODS/SERVICES -  FOREIGN AIR TRAVEL,FOOD CRIME UNIT PROG,REDFERN TRAVEL LTD,1011704256,254.10,WEEK 43 TRAVEL EXPENSES,BD1 5HQ,PROGRAMME
FOOD STANDARDS AGENCY - Westminster,FOOD STANDARDS AGENCY - Westminster,2017-11-30,EXP - PURCHASE OF GOODS/SERVICES - SUBSISTENCE,LEGAL  BRANCH A & INVESTIGATIONS,REDFERN TRAVEL LTD,1011704483,252.50,WEEK 47 TRAVEL EXPENSES,BD1 5HQ,ADMIN
FOOD STANDARDS AGENCY - Westminster,FOOD STANDARDS AGENCY - Westminster,2017-11-22,EXP - PURCHASE OF GOODS/SERVICES - SUBSISTENCE,COMMS,REDFERN TRAVEL LTD,1011704417,252.48,WEEK 46 TRAVEL EXPENSES,BD1 5HQ,ADMIN
FOOD STANDARDS AGENCY - Westminster,FOOD STANDARDS AGENCY - Westminster,2017-11-22,EXP - PURCHASE OF GOODS/SERVICES - RAIL TRAVEL,ANIMAL FEED,REDFERN TRAVEL LTD,1011704417,250.00,WEEK 46 TRAVEL EXPENSES,BD1 5HQ,ADMIN
FOOD STANDARDS AGENCY - Westminster,FOOD STANDARDS AGENCY - Westminster,2017-11-30,EXP - PURCHASE OF GOODS/SERVICES - RAIL TRAVEL,ANIMAL FEED,REDFERN TRAVEL LTD,1011704483,250.00,WEEK 47 TRAVEL EXPENSES,BD1 5HQ,ADMIN
FOOD STANDARDS AGENCY - Westminster,FOOD STANDARDS AGENCY - Westminster,2017-11-16,EXP - PURCHASE OF GOODS/SERVICES - SUBSISTENCE,LEGAL  BRANCH A & INVESTIGATIONS,REDFERN TRAVEL LTD,1011704377,249.46,UK TRAVEL WEEK 45,BD1 5HQ,ADMIN
FOOD STANDARDS AGENCY - Westminster,FOOD STANDARDS AGENCY - Westminster,2017-11-08,EXP - PURCHASE OF GOODS/SERVICES - FOREIGN SUBSISTENCE,OPERATIONAL DELIVERY ,REDFERN TRAVEL LTD,1011704298,249.27,WEEK 44 TRAVEL EXPENSES,BD1 5HQ,PROGRAMME
FOOD STANDARDS AGENCY - Westminster,FOOD STANDARDS AGENCY - Westminster,2017-11-16,EXP - PURCHASE OF GOODS/SERVICES -  FOREIGN AIR TRAVEL,"RADIOLOGICAL, NOVEL FOOD & PROCESSES",REDFERN TRAVEL LTD,1011704377,248.00,UK TRAVEL WEEK 45,BD1 5HQ,ADMIN
FOOD STANDARDS AGENCY - Westminster,FOOD STANDARDS AGENCY - Westminster,2017-11-08,EXP - PURCHASE OF GOODS/SERVICES - SUBSISTENCE,OPERATIONS ASSURANCE DIVISION (PROGRAMME),REDFERN TRAVEL LTD,1011704298,244.93,WEEK 44 TRAVEL EXPENSES,BD1 5HQ,PROGRAMME
FOOD STANDARDS AGENCY - Westminster,FOOD STANDARDS AGENCY - Westminster,2017-11-01,EXP - PURCHASE OF GOODS/SERVICES - AIR TRAVEL,REGULATORY & INTERNATIONAL,REDFERN TRAVEL LTD,1011704256,244.00,WEEK 43 TRAVEL EXPENSES,BD1 5HQ,ADMIN
FOOD STANDARDS AGENCY - Westminster,FOOD STANDARDS AGENCY - Westminster,2017-11-22,EXP - PURCHASE OF GOODS/SERVICES - RAIL TRAVEL,Wales and West 3 ,REDFERN TRAVEL LTD,1011704417,243.70,WEEK 46 TRAVEL EXPENSES,BD1 5HQ,PROGRAMME
FOOD STANDARDS AGENCY - Westminster,FOOD STANDARDS AGENCY - Westminster,2017-11-30,EXP - PURCHASE OF GOODS/SERVICES - RAIL TRAVEL,CHIEF EXECUTIVE & PRIVATE OFFICE,REDFERN TRAVEL LTD,1011704483,243.55,WEEK 47 TRAVEL EXPENSES,BD1 5HQ,ADMIN
FOOD STANDARDS AGENCY - Westminster,FOOD STANDARDS AGENCY - Westminster,2017-11-08,EXP - PURCHASE OF GOODS/SERVICES - RAIL TRAVEL,INPORT & EXPORTS TEAM,REDFERN TRAVEL LTD,1011704298,242.70,WEEK 44 TRAVEL EXPENSES,BD1 5HQ,ADMIN
FOOD STANDARDS AGENCY - Westminster,FOOD STANDARDS AGENCY - Westminster,2017-11-01,EXP - PURCHASE OF GOODS/SERVICES - RAIL TRAVEL,North 1,REDFERN TRAVEL LTD,1011704256,242.00,WEEK 43 TRAVEL EXPENSES,BD1 5HQ,PROGRAMME
FOOD STANDARDS AGENCY - Westminster,FOOD STANDARDS AGENCY - Westminster,2017-11-08,EXP - PURCHASE OF GOODS/SERVICES - SUBSISTENCE,IT SERVICE DELIVERY,REDFERN TRAVEL LTD,1011704298,239.88,WEEK 44 TRAVEL EXPENSES,BD1 5HQ,ADMIN
FOOD STANDARDS AGENCY - Westminster,FOOD STANDARDS AGENCY - Westminster,2017-11-16,EXP - PURCHASE OF GOODS/SERVICES - RAIL TRAVEL,CORPORATE SUPPORT UNIT,REDFERN TRAVEL LTD,1011704377,238.95,UK TRAVEL WEEK 45,BD1 5HQ,ADMIN
FOOD STANDARDS AGENCY - Westminster,FOOD STANDARDS AGENCY - Westminster,2017-11-01,EXP - PURCHASE OF GOODS/SERVICES - SUBSISTENCE,North 3,REDFERN TRAVEL LTD,1011704256,235.43,WEEK 43 TRAVEL EXPENSES,BD1 5HQ,PROGRAMME
FOOD STANDARDS AGENCY - Westminster,FOOD STANDARDS AGENCY - Westminster,2017-11-30,EXP - PURCHASE OF GOODS/SERVICES - SUBSISTENCE,REGULATORY & INTERNATIONAL,REDFERN TRAVEL LTD,1011704483,231.40,WEEK 47 TRAVEL EXPENSES,BD1 5HQ,ADMIN
FOOD STANDARDS AGENCY - Westminster,FOOD STANDARDS AGENCY - Westminster,2017-11-16,EXP - PURCHASE OF GOODS/SERVICES - AIR TRAVEL,OPERATIONS ASSURANCE DIVISION (PROGRAMME),REDFERN TRAVEL LTD,1011704377,226.83,UK TRAVEL WEEK 45,BD1 5HQ,PROGRAMME
FOOD STANDARDS AGENCY - Westminster,FOOD STANDARDS AGENCY - Westminster,2017-11-01,EXP - PURCHASE OF GOODS/SERVICES - RAIL TRAVEL,INTERNAL AUDIT,REDFERN TRAVEL LTD,1011704256,224.50,WEEK 43 TRAVEL EXPENSES,BD1 5HQ,ADMIN
FOOD STANDARDS AGENCY - Westminster,FOOD STANDARDS AGENCY - Westminster,2017-11-30,EXP - PURCHASE OF GOODS/SERVICES - RAIL TRAVEL,"EMPLOYEE RELATIONS, SYSTEMS & DATA",REDFERN TRAVEL LTD,1011704483,223.60,WEEK 47 TRAVEL EXPENSES,BD1 5HQ,ADMIN
FOOD STANDARDS AGENCY - Westminster,FOOD STANDARDS AGENCY - Westminster,2017-11-08,EXP - PURCHASE OF GOODS/SERVICES - RAIL TRAVEL,North 2,REDFERN TRAVEL LTD,1011704298,222.90,WEEK 44 TRAVEL EXPENSES,BD1 5HQ,PROGRAMME
FOOD STANDARDS AGENCY - Westminster,FOOD STANDARDS AGENCY - Westminster,2017-11-22,EXP - PURCHASE OF GOODS/SERVICES - AIR TRAVEL,INFORMATION & KNOWLEDGE MANAGMENT,REDFERN TRAVEL LTD,1011704417,222.79,WEEK 46 TRAVEL EXPENSES,BD1 5HQ,ADMIN
FOOD STANDARDS AGENCY - Westminster,FOOD STANDARDS AGENCY - Westminster,2017-11-01,EXP - PURCHASE OF GOODS/SERVICES - SUBSISTENCE,CORPORATE SUPPORT UNIT,REDFERN TRAVEL LTD,1011704256,221.41,WEEK 43 TRAVEL EXPENSES,BD1 5HQ,ADMIN
FOOD STANDARDS AGENCY - Westminster,FOOD STANDARDS AGENCY - Westminster,2017-11-22,EXP - PURCHASE OF GOODS/SERVICES - RAIL TRAVEL,ALLERGY & INTOLERANCE,REDFERN TRAVEL LTD,1011704417,220.00,WEEK 46 TRAVEL EXPENSES,BD1 5HQ,ADMIN
FOOD STANDARDS AGENCY - Westminster,FOOD STANDARDS AGENCY - Westminster,2017-11-08,EXP - PURCHASE OF GOODS/SERVICES - SUBSISTENCE,EU EXIT,REDFERN TRAVEL LTD,1011704298,219.06,WEEK 44 TRAVEL EXPENSES,BD1 5HQ,ADMIN
FOOD STANDARDS AGENCY - Westminster,FOOD STANDARDS AGENCY - Westminster,2017-11-16,EXP - PURCHASE OF GOODS/SERVICES - SUBSISTENCE,CHIEF SCIENTIST  ,REDFERN TRAVEL LTD,1011704377,219.06,UK TRAVEL WEEK 45,BD1 5HQ,ADMIN
FOOD STANDARDS AGENCY - Westminster,FOOD STANDARDS AGENCY - Westminster,2017-11-16,EXP - PURCHASE OF GOODS/SERVICES - SUBSISTENCE,"RADIOLOGICAL, NOVEL FOOD & PROCESSES",REDFERN TRAVEL LTD,1011704377,219.06,UK TRAVEL WEEK 45,BD1 5HQ,ADMIN
FOOD STANDARDS AGENCY - Westminster,FOOD STANDARDS AGENCY - Westminster,2017-11-01,EXP - PURCHASE OF GOODS/SERVICES - SUBSISTENCE,EU EXIT,REDFERN TRAVEL LTD,1011704256,218.46,WEEK 43 TRAVEL EXPENSES,BD1 5HQ,ADMIN
FOOD STANDARDS AGENCY - Westminster,FOOD STANDARDS AGENCY - Westminster,2017-11-16,EXP - PURCHASE OF GOODS/SERVICES - RAIL TRAVEL,"RADIOLOGICAL, NOVEL FOOD & PROCESSES",REDFERN TRAVEL LTD,1011704377,218.00,UK TRAVEL WEEK 45,BD1 5HQ,ADMIN
FOOD STANDARDS AGENCY - Westminster,FOOD STANDARDS AGENCY - Westminster,2017-11-01,EXP - PURCHASE OF GOODS/SERVICES - SUBSISTENCE,NON MEAT FIELD OPS,REDFERN TRAVEL LTD,1011704256,215.10,WEEK 43 TRAVEL EXPENSES,BD1 5HQ,PROGRAMME
FOOD STANDARDS AGENCY - Westminster,FOOD STANDARDS AGENCY - Westminster,2017-11-16,EXP - PURCHASE OF GOODS/SERVICES -  FOREIGN AIR TRAVEL,"ANIMAL FEED, TSEs & ABPs",REDFERN TRAVEL LTD,1011704377,213.00,UK TRAVEL WEEK 45,BD1 5HQ,ADMIN
FOOD STANDARDS AGENCY - Westminster,FOOD STANDARDS AGENCY - Westminster,2017-11-01,EXP - PURCHASE OF GOODS/SERVICES - RAIL TRAVEL,ALLERGY & INTOLERANCE,REDFERN TRAVEL LTD,1011704256,209.60,WEEK 43 TRAVEL EXPENSES,BD1 5HQ,ADMIN
FOOD STANDARDS AGENCY - Westminster,FOOD STANDARDS AGENCY - Westminster,2017-11-22,EXP - PURCHASE OF GOODS/SERVICES - SUBSISTENCE,Wales and West 2 (Wales),REDFERN TRAVEL LTD,1011704417,208.38,WEEK 46 TRAVEL EXPENSES,BD1 5HQ,PROGRAMME
FOOD STANDARDS AGENCY - Westminster,FOOD STANDARDS AGENCY - Westminster,2017-11-30,EXP - PURCHASE OF GOODS/SERVICES - SUBSISTENCE,Wales and West 3 ,REDFERN TRAVEL LTD,1011704483,206.95,WEEK 47 TRAVEL EXPENSES,BD1 5HQ,PROGRAMME
FOOD STANDARDS AGENCY - Westminster,FOOD STANDARDS AGENCY - Westminster,2017-11-30,EXP - PURCHASE OF GOODS/SERVICES -  FOREIGN AIR TRAVEL,FOOD HYGIENE POLICY,REDFERN TRAVEL LTD,1011704483,204.32,WEEK 47 TRAVEL EXPENSES,BD1 5HQ,ADMIN
FOOD STANDARDS AGENCY - Westminster,FOOD STANDARDS AGENCY - Westminster,2017-11-30,EXP - PURCHASE OF GOODS/SERVICES - SUBSISTENCE,FOOD INCIDENTS AND RESILIENCE PROG,REDFERN TRAVEL LTD,1011704483,203.16,WEEK 47 TRAVEL EXPENSES,BD1 5HQ,PROGRAMME
FOOD STANDARDS AGENCY - Westminster,FOOD STANDARDS AGENCY - Westminster,2017-11-22,EXP - PURCHASE OF GOODS/SERVICES - SUBSISTENCE,Wales and West 3 ,REDFERN TRAVEL LTD,1011704417,202.73,WEEK 46 TRAVEL EXPENSES,BD1 5HQ,PROGRAMME
FOOD STANDARDS AGENCY - Westminster,FOOD STANDARDS AGENCY - Westminster,2017-11-22,EXP - PURCHASE OF GOODS/SERVICES - SUBSISTENCE,"PLANNING, PERFORMANCE & CHANGE",REDFERN TRAVEL LTD,1011704417,202.56,WEEK 46 TRAVEL EXPENSES,BD1 5HQ,ADMIN
FOOD STANDARDS AGENCY - Westminster,FOOD STANDARDS AGENCY - Westminster,2017-11-22,EXP - PURCHASE OF GOODS/SERVICES - AIR TRAVEL,REGULATORY DELIVERY,REDFERN TRAVEL LTD,1011704417,202.53,WEEK 46 TRAVEL EXPENSES,BD1 5HQ,ADMIN
FOOD STANDARDS AGENCY - Westminster,FOOD STANDARDS AGENCY - Westminster,2017-11-22,EXP - PURCHASE OF GOODS/SERVICES - AIR TRAVEL,"ANIMAL FEED, TSEs & ABPs",REDFERN TRAVEL LTD,1011704417,202.53,WEEK 46 TRAVEL EXPENSES,BD1 5HQ,ADMIN
FOOD STANDARDS AGENCY - Westminster,FOOD STANDARDS AGENCY - Westminster,2017-11-30,EXP - PURCHASE OF GOODS/SERVICES - RAIL TRAVEL,North 1,REDFERN TRAVEL LTD,1011704483,201.65,WEEK 47 TRAVEL EXPENSES,BD1 5HQ,PROGRAMME
FOOD STANDARDS AGENCY - Westminster,FOOD STANDARDS AGENCY - Westminster,2017-11-08,EXP - PURCHASE OF GOODS/SERVICES - RAIL TRAVEL,IT SERVICE DELIVERY,REDFERN TRAVEL LTD,1011704298,200.80,WEEK 44 TRAVEL EXPENSES,BD1 5HQ,ADMIN
FOOD STANDARDS AGENCY - Westminster,FOOD STANDARDS AGENCY - Westminster,2017-11-01,EXP - PURCHASE OF GOODS/SERVICES - RAIL TRAVEL,"CHAIR, DEPUTY CHAIR & BOARD",REDFERN TRAVEL LTD,1011704256,200.50,WEEK 43 TRAVEL EXPENSES,BD1 5HQ,ADMIN
FOOD STANDARDS AGENCY - Westminster,FOOD STANDARDS AGENCY - Westminster,2017-11-22,EXP - PURCHASE OF GOODS/SERVICES - RAIL TRAVEL,FOOD HYGIENE POLICY,REDFERN TRAVEL LTD,1011704417,198.73,WEEK 46 TRAVEL EXPENSES,BD1 5HQ,ADMIN
FOOD STANDARDS AGENCY - Westminster,FOOD STANDARDS AGENCY - Westminster,2017-11-22,EXP - PURCHASE OF GOODS/SERVICES - RAIL TRAVEL,PROGRAMME AND PROJECT DELIVERY,REDFERN TRAVEL LTD,1011704417,197.20,WEEK 46 TRAVEL EXPENSES,BD1 5HQ,ADMIN
FOOD STANDARDS AGENCY - Westminster,FOOD STANDARDS AGENCY - Westminster,2017-11-08,EXP - PURCHASE OF GOODS/SERVICES - RAIL TRAVEL,East 3,REDFERN TRAVEL LTD,1011704298,196.50,WEEK 44 TRAVEL EXPENSES,BD1 5HQ,PROGRAMME
FOOD STANDARDS AGENCY - Westminster,FOOD STANDARDS AGENCY - Westminster,2017-11-01,EXP - PURCHASE OF GOODS/SERVICES - SUBSISTENCE,IT STRATEGY & DEVELOPMENT,REDFERN TRAVEL LTD,1011704256,194.60,WEEK 43 TRAVEL EXPENSES,BD1 5HQ,ADMIN
FOOD STANDARDS AGENCY - Westminster,FOOD STANDARDS AGENCY - Westminster,2017-11-01,EXP - PURCHASE OF GOODS/SERVICES - AIR TRAVEL,"AGRICULTURAL, PROCESS & ENVIRONMENTAL CONTAMINANTS",REDFERN TRAVEL LTD,1011704256,193.00,WEEK 43 TRAVEL EXPENSES,BD1 5HQ,ADMIN
FOOD STANDARDS AGENCY - Westminster,FOOD STANDARDS AGENCY - Westminster,2017-11-08,EXP - PURCHASE OF GOODS/SERVICES - AIR TRAVEL,DIGITAL,REDFERN TRAVEL LTD,1011704298,191.40,WEEK 44 TRAVEL EXPENSES,BD1 5HQ,ADMIN
FOOD STANDARDS AGENCY - Westminster,FOOD STANDARDS AGENCY - Westminster,2017-11-22,EXP - PURCHASE OF GOODS/SERVICES - SUBSISTENCE,CORPORATE SUPPORT UNIT,REDFERN TRAVEL LTD,1011704417,191.37,WEEK 46 TRAVEL EXPENSES,BD1 5HQ,ADMIN
FOOD STANDARDS AGENCY - Westminster,FOOD STANDARDS AGENCY - Westminster,2017-11-08,EXP - PURCHASE OF GOODS/SERVICES - SUBSISTENCE,NON MEAT FIELD OPS,REDFERN TRAVEL LTD,1011704298,190.60,WEEK 44 TRAVEL EXPENSES,BD1 5HQ,PROGRAMME
FOOD STANDARDS AGENCY - Westminster,FOOD STANDARDS AGENCY - Westminster,2017-11-08,EXP - PURCHASE OF GOODS/SERVICES - SUBSISTENCE,East 3,REDFERN TRAVEL LTD,1011704298,189.80,WEEK 44 TRAVEL EXPENSES,BD1 5HQ,PROGRAMME
FOOD STANDARDS AGENCY - Westminster,FOOD STANDARDS AGENCY - Westminster,2017-11-22,EXP - PURCHASE OF GOODS/SERVICES - SUBSISTENCE,Wales and West 4 ,REDFERN TRAVEL LTD,1011704417,189.01,WEEK 46 TRAVEL EXPENSES,BD1 5HQ,PROGRAMME
FOOD STANDARDS AGENCY - Westminster,FOOD STANDARDS AGENCY - Westminster,2017-11-08,EXP - PURCHASE OF GOODS/SERVICES - RAIL TRAVEL,EU EXIT,REDFERN TRAVEL LTD,1011704298,186.40,WEEK 44 TRAVEL EXPENSES,BD1 5HQ,ADMIN
FOOD STANDARDS AGENCY - Westminster,FOOD STANDARDS AGENCY - Westminster,2017-11-22,EXP - PURCHASE OF GOODS/SERVICES - RAIL TRAVEL,EU EXIT,REDFERN TRAVEL LTD,1011704417,182.80,WEEK 46 TRAVEL EXPENSES,BD1 5HQ,ADMIN
FOOD STANDARDS AGENCY - Westminster,FOOD STANDARDS AGENCY - Westminster,2017-11-30,EXP - PURCHASE OF GOODS/SERVICES - RAIL TRAVEL,ALLERGY & INTOLERANCE,REDFERN TRAVEL LTD,1011704483,182.25,WEEK 47 TRAVEL EXPENSES,BD1 5HQ,ADMIN
FOOD STANDARDS AGENCY - Westminster,FOOD STANDARDS AGENCY - Westminster,2017-11-01,EXP - PURCHASE OF GOODS/SERVICES - RAIL TRAVEL,PROGRAMME AND PROJECT DELIVERY,REDFERN TRAVEL LTD,1011704256,181.00,WEEK 43 TRAVEL EXPENSES,BD1 5HQ,ADMIN
FOOD STANDARDS AGENCY - Westminster,FOOD STANDARDS AGENCY - Westminster,2017-11-30,EXP - PURCHASE OF GOODS/SERVICES - RAIL TRAVEL,North 2,REDFERN TRAVEL LTD,1011704483,180.70,WEEK 47 TRAVEL EXPENSES,BD1 5HQ,PROGRAMME
FOOD STANDARDS AGENCY - Westminster,FOOD STANDARDS AGENCY - Westminster,2017-11-22,EXP - PURCHASE OF GOODS/SERVICES - RAIL TRAVEL,"RADIOLOGICAL, NOVEL FOOD & PROCESSES",REDFERN TRAVEL LTD,1011704417,178.55,WEEK 46 TRAVEL EXPENSES,BD1 5HQ,ADMIN
FOOD STANDARDS AGENCY - Westminster,FOOD STANDARDS AGENCY - Westminster,2017-11-22,EXP - PURCHASE OF GOODS/SERVICES - RAIL TRAVEL,SCIENTIFIC METHODS AND LABORATORY POLICY,REDFERN TRAVEL LTD,1011704417,177.30,WEEK 46 TRAVEL EXPENSES,BD1 5HQ,ADMIN
FOOD STANDARDS AGENCY - Westminster,FOOD STANDARDS AGENCY - Westminster,2017-11-22,EXP - PURCHASE OF GOODS/SERVICES - AIR TRAVEL,COMMS,REDFERN TRAVEL LTD,1011704417,176.98,WEEK 46 TRAVEL EXPENSES,BD1 5HQ,ADMIN
FOOD STANDARDS AGENCY - Westminster,FOOD STANDARDS AGENCY - Westminster,2017-11-01,EXP - PURCHASE OF GOODS/SERVICES - SUBSISTENCE,INTERNAL AUDIT,REDFERN TRAVEL LTD,1011704256,176.20,WEEK 43 TRAVEL EXPENSES,BD1 5HQ,ADMIN
FOOD STANDARDS AGENCY - Westminster,FOOD STANDARDS AGENCY - Westminster,2017-11-30,EXP - PURCHASE OF GOODS/SERVICES - SUBSISTENCE,"PLANNING, PERFORMANCE & CHANGE",REDFERN TRAVEL LTD,1011704483,175.87,WEEK 47 TRAVEL EXPENSES,BD1 5HQ,ADMIN
FOOD STANDARDS AGENCY - Westminster,FOOD STANDARDS AGENCY - Westminster,2017-11-30,EXP - PURCHASE OF GOODS/SERVICES - SUBSISTENCE,PROCUREMENT,REDFERN TRAVEL LTD,1011704483,175.05,WEEK 47 TRAVEL EXPENSES,BD1 5HQ,ADMIN
FOOD STANDARDS AGENCY - Westminster,FOOD STANDARDS AGENCY - Westminster,2017-11-30,EXP - PURCHASE OF GOODS/SERVICES - RAIL TRAVEL,IT STRATEGY & DEVELOPMENT,REDFERN TRAVEL LTD,1011704483,175.00,WEEK 47 TRAVEL EXPENSES,BD1 5HQ,ADMIN
FOOD STANDARDS AGENCY - Westminster,FOOD STANDARDS AGENCY - Westminster,2017-11-30,EXP - PURCHASE OF GOODS/SERVICES - RAIL TRAVEL,RESILIENCE ADMIN,REDFERN TRAVEL LTD,1011704483,174.50,WEEK 47 TRAVEL EXPENSES,BD1 5HQ,ADMIN
FOOD STANDARDS AGENCY - Westminster,FOOD STANDARDS AGENCY - Westminster,2017-11-22,EXP - PURCHASE OF GOODS/SERVICES - SUBSISTENCE,Wales and West 2 (England),REDFERN TRAVEL LTD,1011704417,174.23,WEEK 46 TRAVEL EXPENSES,BD1 5HQ,PROGRAMME
FOOD STANDARDS AGENCY - Westminster,FOOD STANDARDS AGENCY - Westminster,2017-11-16,EXP - PURCHASE OF GOODS/SERVICES - SUBSISTENCE,NON MEAT FIELD OPS,REDFERN TRAVEL LTD,1011704377,172.44,UK TRAVEL WEEK 45,BD1 5HQ,PROGRAMME
FOOD STANDARDS AGENCY - Westminster,FOOD STANDARDS AGENCY - Westminster,2017-11-16,EXP - PURCHASE OF GOODS/SERVICES - RAIL TRAVEL,East 2,REDFERN TRAVEL LTD,1011704377,171.20,UK TRAVEL WEEK 45,BD1 5HQ,PROGRAMME
FOOD STANDARDS AGENCY - Westminster,FOOD STANDARDS AGENCY - Westminster,2017-11-22,EXP - PURCHASE OF GOODS/SERVICES - AIR TRAVEL,MEAT HYGIENE POLICY,REDFERN TRAVEL LTD,1011704417,167.94,WEEK 46 TRAVEL EXPENSES,BD1 5HQ,ADMIN
FOOD STANDARDS AGENCY - Westminster,FOOD STANDARDS AGENCY - Westminster,2017-11-08,EXP - PURCHASE OF GOODS/SERVICES - RAIL TRAVEL,Wales and West 1 (Wales),REDFERN TRAVEL LTD,1011704298,165.60,WEEK 44 TRAVEL EXPENSES,BD1 5HQ,PROGRAMME
FOOD STANDARDS AGENCY - Westminster,FOOD STANDARDS AGENCY - Westminster,2017-11-08,EXP - PURCHASE OF GOODS/SERVICES - RAIL TRAVEL,Wales and West 1 (England),REDFERN TRAVEL LTD,1011704298,163.80,WEEK 44 TRAVEL EXPENSES,BD1 5HQ,PROGRAMME
FOOD STANDARDS AGENCY - Westminster,FOOD STANDARDS AGENCY - Westminster,2017-11-08,EXP - PURCHASE OF GOODS/SERVICES - SUBSISTENCE,REGULATORY DELIVERY,REDFERN TRAVEL LTD,1011704298,163.77,WEEK 44 TRAVEL EXPENSES,BD1 5HQ,ADMIN
FOOD STANDARDS AGENCY - Westminster,FOOD STANDARDS AGENCY - Westminster,2017-11-30,EXP - PURCHASE OF GOODS/SERVICES - AIR TRAVEL,INPORT & EXPORTS TEAM,REDFERN TRAVEL LTD,1011704483,163.00,WEEK 47 TRAVEL EXPENSES,BD1 5HQ,ADMIN
FOOD STANDARDS AGENCY - Westminster,FOOD STANDARDS AGENCY - Westminster,2017-11-08,EXP - PURCHASE OF GOODS/SERVICES - RAIL TRAVEL,FOOD CRIME UNIT ADMIN,REDFERN TRAVEL LTD,1011704298,161.60,WEEK 44 TRAVEL EXPENSES,BD1 5HQ,ADMIN
FOOD STANDARDS AGENCY - Westminster,FOOD STANDARDS AGENCY - Westminster,2017-11-22,EXP - PURCHASE OF GOODS/SERVICES - RAIL TRAVEL,Wales and West 1 (England),REDFERN TRAVEL LTD,1011704417,157.40,WEEK 46 TRAVEL EXPENSES,BD1 5HQ,PROGRAMME
FOOD STANDARDS AGENCY - Westminster,FOOD STANDARDS AGENCY - Westminster,2017-11-08,EXP - PURCHASE OF GOODS/SERVICES - SUBSISTENCE,Wales and West 3 ,REDFERN TRAVEL LTD,1011704298,155.37,WEEK 44 TRAVEL EXPENSES,BD1 5HQ,PROGRAMME
FOOD STANDARDS AGENCY - Westminster,FOOD STANDARDS AGENCY - Westminster,2017-11-22,EXP - PURCHASE OF GOODS/SERVICES - RAIL TRAVEL,FOOD CRIME UNIT PROG,REDFERN TRAVEL LTD,1011704417,154.00,WEEK 46 TRAVEL EXPENSES,BD1 5HQ,PROGRAMME
FOOD STANDARDS AGENCY - Westminster,FOOD STANDARDS AGENCY - Westminster,2017-11-30,EXP - PURCHASE OF GOODS/SERVICES - RAIL TRAVEL,FOOD CRIME UNIT PROG,REDFERN TRAVEL LTD,1011704483,154.00,WEEK 47 TRAVEL EXPENSES,BD1 5HQ,PROGRAMME
FOOD STANDARDS AGENCY - Westminster,FOOD STANDARDS AGENCY - Westminster,2017-11-30,EXP - PURCHASE OF GOODS/SERVICES - RAIL TRAVEL,SURVEILLANCE,REDFERN TRAVEL LTD,1011704483,153.50,WEEK 47 TRAVEL EXPENSES,BD1 5HQ,ADMIN
FOOD STANDARDS AGENCY - Westminster,FOOD STANDARDS AGENCY - Westminster,2017-11-30,EXP - PURCHASE OF GOODS/SERVICES - SUBSISTENCE,East 3,REDFERN TRAVEL LTD,1011704483,153.20,WEEK 47 TRAVEL EXPENSES,BD1 5HQ,PROGRAMME
FOOD STANDARDS AGENCY - Westminster,FOOD STANDARDS AGENCY - Westminster,2017-11-30,EXP - PURCHASE OF GOODS/SERVICES -  FOREIGN AIR TRAVEL,CHIEF SCIENTIST  ,REDFERN TRAVEL LTD,1011704483,153.00,WEEK 47 TRAVEL EXPENSES,BD1 5HQ,ADMIN
FOOD STANDARDS AGENCY - Westminster,FOOD STANDARDS AGENCY - Westminster,2017-11-01,EXP - PURCHASE OF GOODS/SERVICES -  FOREIGN AIR TRAVEL,MICRO FOOD SAFETY BRANCH,REDFERN TRAVEL LTD,1011704256,152.16,WEEK 43 TRAVEL EXPENSES,BD1 5HQ,ADMIN
FOOD STANDARDS AGENCY - Westminster,FOOD STANDARDS AGENCY - Westminster,2017-11-30,EXP - PURCHASE OF GOODS/SERVICES - FOREIGN SUBSISTENCE,MEAT HYGIENE POLICY,REDFERN TRAVEL LTD,1011704483,152.09,WEEK 47 TRAVEL EXPENSES,BD1 5HQ,ADMIN
FOOD STANDARDS AGENCY - Westminster,FOOD STANDARDS AGENCY - Westminster,2017-11-16,EXP - PURCHASE OF GOODS/SERVICES - SUBSISTENCE,Wales and West 3 ,REDFERN TRAVEL LTD,1011704377,151.86,UK TRAVEL WEEK 45,BD1 5HQ,PROGRAMME
FOOD STANDARDS AGENCY - Westminster,FOOD STANDARDS AGENCY - Westminster,2017-11-01,EXP - PURCHASE OF GOODS/SERVICES - RAIL TRAVEL,DIGITAL,REDFERN TRAVEL LTD,1011704256,149.80,WEEK 43 TRAVEL EXPENSES,BD1 5HQ,ADMIN
FOOD STANDARDS AGENCY - Westminster,FOOD STANDARDS AGENCY - Westminster,2017-11-08,EXP - PURCHASE OF GOODS/SERVICES - RAIL TRAVEL,"AGRICULTURAL, PROCESS & ENVIRONMENTAL CONTAMINANTS",REDFERN TRAVEL LTD,1011704298,149.65,WEEK 44 TRAVEL EXPENSES,BD1 5HQ,ADMIN
FOOD STANDARDS AGENCY - Westminster,FOOD STANDARDS AGENCY - Westminster,2017-11-30,EXP - PURCHASE OF GOODS/SERVICES - SUBSISTENCE,EU EXIT,REDFERN TRAVEL LTD,1011704483,149.18,WEEK 47 TRAVEL EXPENSES,BD1 5HQ,ADMIN
FOOD STANDARDS AGENCY - Westminster,FOOD STANDARDS AGENCY - Westminster,2017-11-22,EXP - PURCHASE OF GOODS/SERVICES - AIR TRAVEL,PROGRAMME AND PROJECT DELIVERY,REDFERN TRAVEL LTD,1011704417,147.42,WEEK 46 TRAVEL EXPENSES,BD1 5HQ,ADMIN
FOOD STANDARDS AGENCY - Westminster,FOOD STANDARDS AGENCY - Westminster,2017-11-01,EXP - PURCHASE OF GOODS/SERVICES - SUBSISTENCE,IT SERVICE DELIVERY,REDFERN TRAVEL LTD,1011704256,147.20,WEEK 43 TRAVEL EXPENSES,BD1 5HQ,ADMIN
FOOD STANDARDS AGENCY - Westminster,FOOD STANDARDS AGENCY - Westminster,2017-11-01,EXP - PURCHASE OF GOODS/SERVICES - RAIL TRAVEL,SECURITY & ESTATES,REDFERN TRAVEL LTD,1011704256,142.80,WEEK 43 TRAVEL EXPENSES,BD1 5HQ,ADMIN
FOOD STANDARDS AGENCY - Westminster,FOOD STANDARDS AGENCY - Westminster,2017-11-22,EXP - PURCHASE OF GOODS/SERVICES - RAIL TRAVEL,REGULATORY & INTERNATIONAL,REDFERN TRAVEL LTD,1011704417,141.50,WEEK 46 TRAVEL EXPENSES,BD1 5HQ,ADMIN
FOOD STANDARDS AGENCY - Westminster,FOOD STANDARDS AGENCY - Westminster,2017-11-08,EXP - PURCHASE OF GOODS/SERVICES - FOREIGN SUBSISTENCE,REGULATING OUR FUTURE,REDFERN TRAVEL LTD,1011704298,141.32,WEEK 44 TRAVEL EXPENSES,BD1 5HQ,ADMIN
FOOD STANDARDS AGENCY - Westminster,FOOD STANDARDS AGENCY - Westminster,2017-11-01,EXP - PURCHASE OF GOODS/SERVICES - SUBSISTENCE,North 1,REDFERN TRAVEL LTD,1011704256,141.04,WEEK 43 TRAVEL EXPENSES,BD1 5HQ,PROGRAMME
FOOD STANDARDS AGENCY - Westminster,FOOD STANDARDS AGENCY - Westminster,2017-11-08,EXP - PURCHASE OF GOODS/SERVICES - RAIL TRAVEL,SCIENTIFIC METHODS AND LABORATORY POLICY,REDFERN TRAVEL LTD,1011704298,140.80,WEEK 44 TRAVEL EXPENSES,BD1 5HQ,ADMIN
FOOD STANDARDS AGENCY - Westminster,FOOD STANDARDS AGENCY - Westminster,2017-11-30,EXP - PURCHASE OF GOODS/SERVICES - FOREIGN SUBSISTENCE,"RADIOLOGICAL, NOVEL FOOD & PROCESSES",REDFERN TRAVEL LTD,1011704483,140.71,WEEK 47 TRAVEL EXPENSES,BD1 5HQ,ADMIN
FOOD STANDARDS AGENCY - Westminster,FOOD STANDARDS AGENCY - Westminster,2017-11-08,EXP - PURCHASE OF GOODS/SERVICES - RAIL TRAVEL,DIGITAL,REDFERN TRAVEL LTD,1011704298,140.20,WEEK 44 TRAVEL EXPENSES,BD1 5HQ,ADMIN
FOOD STANDARDS AGENCY - Westminster,FOOD STANDARDS AGENCY - Westminster,2017-11-01,EXP - PURCHASE OF GOODS/SERVICES - RAIL TRAVEL,FOOD CRIME UNIT PROG,REDFERN TRAVEL LTD,1011704256,138.80,WEEK 43 TRAVEL EXPENSES,BD1 5HQ,PROGRAMME
FOOD STANDARDS AGENCY - Westminster,FOOD STANDARDS AGENCY - Westminster,2017-11-22,EXP - PURCHASE OF GOODS/SERVICES - AIR TRAVEL,ORGANISATIONAL DEVELOPMENT,REDFERN TRAVEL LTD,1011704417,137.09,WEEK 46 TRAVEL EXPENSES,BD1 5HQ,ADMIN
FOOD STANDARDS AGENCY - Westminster,FOOD STANDARDS AGENCY - Westminster,2017-11-30,EXP - PURCHASE OF GOODS/SERVICES - SUBSISTENCE,East 1,REDFERN TRAVEL LTD,1011704483,135.48,WEEK 47 TRAVEL EXPENSES,BD1 5HQ,PROGRAMME
FOOD STANDARDS AGENCY - Westminster,FOOD STANDARDS AGENCY - Westminster,2017-11-16,EXP - PURCHASE OF GOODS/SERVICES - RAIL TRAVEL,North 3,REDFERN TRAVEL LTD,1011704377,134.70,UK TRAVEL WEEK 45,BD1 5HQ,PROGRAMME
FOOD STANDARDS AGENCY - Westminster,FOOD STANDARDS AGENCY - Westminster,2017-11-22,EXP - PURCHASE OF GOODS/SERVICES - RAIL TRAVEL,Wales and West 2 (England),REDFERN TRAVEL LTD,1011704417,134.50,WEEK 46 TRAVEL EXPENSES,BD1 5HQ,PROGRAMME
FOOD STANDARDS AGENCY - Westminster,FOOD STANDARDS AGENCY - Westminster,2017-11-01,EXP - PURCHASE OF GOODS/SERVICES - FOREIGN SUBSISTENCE,"RADIOLOGICAL, NOVEL FOOD & PROCESSES",REDFERN TRAVEL LTD,1011704256,133.96,WEEK 43 TRAVEL EXPENSES,BD1 5HQ,ADMIN
FOOD STANDARDS AGENCY - Westminster,FOOD STANDARDS AGENCY - Westminster,2017-11-22,EXP - PURCHASE OF GOODS/SERVICES - RAIL TRAVEL,Wales and West 1 (Wales),REDFERN TRAVEL LTD,1011704417,132.60,WEEK 46 TRAVEL EXPENSES,BD1 5HQ,PROGRAMME
FOOD STANDARDS AGENCY - Westminster,FOOD STANDARDS AGENCY - Westminster,2017-11-01,EXP - PURCHASE OF GOODS/SERVICES - RAIL TRAVEL,Wales and West 3 ,REDFERN TRAVEL LTD,1011704256,132.10,WEEK 43 TRAVEL EXPENSES,BD1 5HQ,PROGRAMME
FOOD STANDARDS AGENCY - Westminster,FOOD STANDARDS AGENCY - Westminster,2017-11-08,EXP - PURCHASE OF GOODS/SERVICES - SUBSISTENCE,REGULATORY & INTERNATIONAL,REDFERN TRAVEL LTD,1011704298,131.22,WEEK 44 TRAVEL EXPENSES,BD1 5HQ,ADMIN
FOOD STANDARDS AGENCY - Westminster,FOOD STANDARDS AGENCY - Westminster,2017-11-30,EXP - PURCHASE OF GOODS/SERVICES - SUBSISTENCE,CHIEF EXECUTIVE & PRIVATE OFFICE,REDFERN TRAVEL LTD,1011704483,130.53,WEEK 47 TRAVEL EXPENSES,BD1 5HQ,ADMIN
FOOD STANDARDS AGENCY - Westminster,FOOD STANDARDS AGENCY - Westminster,2017-11-08,EXP - PURCHASE OF GOODS/SERVICES - RAIL TRAVEL,ALLERGY & INTOLERANCE,REDFERN TRAVEL LTD,1011704298,129.70,WEEK 44 TRAVEL EXPENSES,BD1 5HQ,ADMIN
FOOD STANDARDS AGENCY - Westminster,FOOD STANDARDS AGENCY - Westminster,2017-11-08,EXP - PURCHASE OF GOODS/SERVICES - SUBSISTENCE,MICRO FOOD SAFETY BRANCH,REDFERN TRAVEL LTD,1011704298,127.85,WEEK 44 TRAVEL EXPENSES,BD1 5HQ,ADMIN
FOOD STANDARDS AGENCY - Westminster,FOOD STANDARDS AGENCY - Westminster,2017-11-01,EXP - PURCHASE OF GOODS/SERVICES - RAIL TRAVEL,East 4,REDFERN TRAVEL LTD,1011704256,126.60,WEEK 43 TRAVEL EXPENSES,BD1 5HQ,PROGRAMME
FOOD STANDARDS AGENCY - Westminster,FOOD STANDARDS AGENCY - Westminster,2017-11-30,EXP - PURCHASE OF GOODS/SERVICES - AIR TRAVEL,ORGANISATIONAL DEVELOPMENT,REDFERN TRAVEL LTD,1011704483,126.36,WEEK 47 TRAVEL EXPENSES,BD1 5HQ,ADMIN
FOOD STANDARDS AGENCY - Westminster,FOOD STANDARDS AGENCY - Westminster,2017-11-01,EXP - PURCHASE OF GOODS/SERVICES - RAIL TRAVEL,East 3,REDFERN TRAVEL LTD,1011704256,125.00,WEEK 43 TRAVEL EXPENSES,BD1 5HQ,PROGRAMME
FOOD STANDARDS AGENCY - Westminster,FOOD STANDARDS AGENCY - Westminster,2017-11-08,EXP - PURCHASE OF GOODS/SERVICES - FOREIGN SUBSISTENCE,FOOD INCIDENTS AND RESILIENCE PROG,REDFERN TRAVEL LTD,1011704298,123.73,WEEK 44 TRAVEL EXPENSES,BD1 5HQ,PROGRAMME
FOOD STANDARDS AGENCY - Westminster,FOOD STANDARDS AGENCY - Westminster,2017-11-30,EXP - PURCHASE OF GOODS/SERVICES - RAIL TRAVEL,FOOD CRIME UNIT ADMIN,REDFERN TRAVEL LTD,1011704483,123.50,WEEK 47 TRAVEL EXPENSES,BD1 5HQ,ADMIN
FOOD STANDARDS AGENCY - Westminster,FOOD STANDARDS AGENCY - Westminster,2017-11-01,EXP - PURCHASE OF GOODS/SERVICES - RAIL TRAVEL,IT STRATEGY & DEVELOPMENT,REDFERN TRAVEL LTD,1011704256,123.00,WEEK 43 TRAVEL EXPENSES,BD1 5HQ,ADMIN
FOOD STANDARDS AGENCY - Westminster,FOOD STANDARDS AGENCY - Westminster,2017-11-01,EXP - PURCHASE OF GOODS/SERVICES - SUBSISTENCE,PROGRAMME AND PROJECT DELIVERY,REDFERN TRAVEL LTD,1011704256,119.60,WEEK 43 TRAVEL EXPENSES,BD1 5HQ,ADMIN
FOOD STANDARDS AGENCY - Westminster,FOOD STANDARDS AGENCY - Westminster,2017-11-01,EXP - PURCHASE OF GOODS/SERVICES - SUBSISTENCE,DIGITAL,REDFERN TRAVEL LTD,1011704256,119.60,WEEK 43 TRAVEL EXPENSES,BD1 5HQ,ADMIN
FOOD STANDARDS AGENCY - Westminster,FOOD STANDARDS AGENCY - Westminster,2017-11-08,EXP - PURCHASE OF GOODS/SERVICES - SUBSISTENCE,PROGRAMME AND PROJECT DELIVERY,REDFERN TRAVEL LTD,1011704298,119.60,WEEK 44 TRAVEL EXPENSES,BD1 5HQ,ADMIN
FOOD STANDARDS AGENCY - Westminster,FOOD STANDARDS AGENCY - Westminster,2017-11-30,EXP - PURCHASE OF GOODS/SERVICES - RAIL TRAVEL,Wales and West 1 (Wales),REDFERN TRAVEL LTD,1011704483,119.60,WEEK 47 TRAVEL EXPENSES,BD1 5HQ,PROGRAMME
FOOD STANDARDS AGENCY - Westminster,FOOD STANDARDS AGENCY - Westminster,2017-11-30,EXP - PURCHASE OF GOODS/SERVICES - SUBSISTENCE,IT STRATEGY & DEVELOPMENT,REDFERN TRAVEL LTD,1011704483,119.60,WEEK 47 TRAVEL EXPENSES,BD1 5HQ,ADMIN
FOOD STANDARDS AGENCY - Westminster,FOOD STANDARDS AGENCY - Westminster,2017-11-30,EXP - PURCHASE OF GOODS/SERVICES - RAIL TRAVEL,SECURITY & ESTATES,REDFERN TRAVEL LTD,1011704483,118.50,WEEK 47 TRAVEL EXPENSES,BD1 5HQ,ADMIN
FOOD STANDARDS AGENCY - Westminster,FOOD STANDARDS AGENCY - Westminster,2017-11-22,EXP - PURCHASE OF GOODS/SERVICES -  FOREIGN AIR TRAVEL,FOOD ADDITIVES,REDFERN TRAVEL LTD,1011704417,118.00,WEEK 46 TRAVEL EXPENSES,BD1 5HQ,ADMIN
FOOD STANDARDS AGENCY - Westminster,FOOD STANDARDS AGENCY - Westminster,2017-11-16,EXP - PURCHASE OF GOODS/SERVICES - SUBSISTENCE,CHIEF EXECUTIVE & PRIVATE OFFICE,REDFERN TRAVEL LTD,1011704377,117.09,UK TRAVEL WEEK 45,BD1 5HQ,ADMIN
FOOD STANDARDS AGENCY - Westminster,FOOD STANDARDS AGENCY - Westminster,2017-11-22,EXP - PURCHASE OF GOODS/SERVICES - RAIL TRAVEL,NON MEAT FIELD OPS,REDFERN TRAVEL LTD,1011704417,116.40,WEEK 46 TRAVEL EXPENSES,BD1 5HQ,PROGRAMME
FOOD STANDARDS AGENCY - Westminster,FOOD STANDARDS AGENCY - Westminster,2017-11-16,EXP - PURCHASE OF GOODS/SERVICES - SUBSISTENCE,East 3,REDFERN TRAVEL LTD,1011704377,115.70,UK TRAVEL WEEK 45,BD1 5HQ,PROGRAMME
FOOD STANDARDS AGENCY - Westminster,FOOD STANDARDS AGENCY - Westminster,2017-11-01,EXP - PURCHASE OF GOODS/SERVICES - SUBSISTENCE,PROCUREMENT,REDFERN TRAVEL LTD,1011704256,115.60,WEEK 43 TRAVEL EXPENSES,BD1 5HQ,ADMIN
FOOD STANDARDS AGENCY - Westminster,FOOD STANDARDS AGENCY - Westminster,2017-11-08,EXP - PURCHASE OF GOODS/SERVICES -  FOREIGN AIR TRAVEL,"ANIMAL FEED, TSEs & ABPs",REDFERN TRAVEL LTD,1011704298,115.16,WEEK 44 TRAVEL EXPENSES,BD1 5HQ,ADMIN
FOOD STANDARDS AGENCY - Westminster,FOOD STANDARDS AGENCY - Westminster,2017-11-08,EXP - PURCHASE OF GOODS/SERVICES - RAIL TRAVEL,"CHAIR, DEPUTY CHAIR & BOARD",REDFERN TRAVEL LTD,1011704298,114.00,WEEK 44 TRAVEL EXPENSES,BD1 5HQ,ADMIN
FOOD STANDARDS AGENCY - Westminster,FOOD STANDARDS AGENCY - Westminster,2017-11-08,EXP - PURCHASE OF GOODS/SERVICES - AIR TRAVEL,SCIENTIFIC METHODS AND LABORATORY POLICY,REDFERN TRAVEL LTD,1011704298,113.69,WEEK 44 TRAVEL EXPENSES,BD1 5HQ,ADMIN
FOOD STANDARDS AGENCY - Westminster,FOOD STANDARDS AGENCY - Westminster,2017-11-16,EXP - PURCHASE OF GOODS/SERVICES - SUBSISTENCE,INTERNAL AUDIT,REDFERN TRAVEL LTD,1011704377,111.26,UK TRAVEL WEEK 45,BD1 5HQ,ADMIN
FOOD STANDARDS AGENCY - Westminster,FOOD STANDARDS AGENCY - Westminster,2017-11-01,EXP - PURCHASE OF GOODS/SERVICES - OTHER TRAVEL,OPERATIONS ASSURANCE DIVISION (PROGRAMME),REDFERN TRAVEL LTD,1011704256,109.90,WEEK 43 TRAVEL EXPENSES,BD1 5HQ,PROGRAMME
FOOD STANDARDS AGENCY - Westminster,FOOD STANDARDS AGENCY - Westminster,2017-11-08,EXP - PURCHASE OF GOODS/SERVICES - SUBSISTENCE,FOOD ADDITIVES,REDFERN TRAVEL LTD,1011704298,109.53,WEEK 44 TRAVEL EXPENSES,BD1 5HQ,ADMIN
FOOD STANDARDS AGENCY - Westminster,FOOD STANDARDS AGENCY - Westminster,2017-11-08,EXP - PURCHASE OF GOODS/SERVICES - SUBSISTENCE,Wales and West 4 ,REDFERN TRAVEL LTD,1011704298,109.53,WEEK 44 TRAVEL EXPENSES,BD1 5HQ,PROGRAMME
FOOD STANDARDS AGENCY - Westminster,FOOD STANDARDS AGENCY - Westminster,2017-11-16,EXP - PURCHASE OF GOODS/SERVICES - SUBSISTENCE,FOOD CRIME UNIT PROG,REDFERN TRAVEL LTD,1011704377,109.53,UK TRAVEL WEEK 45,BD1 5HQ,PROGRAMME
FOOD STANDARDS AGENCY - Westminster,FOOD STANDARDS AGENCY - Westminster,2017-11-22,EXP - PURCHASE OF GOODS/SERVICES - SUBSISTENCE,"CHAIR, DEPUTY CHAIR & BOARD",REDFERN TRAVEL LTD,1011704417,109.53,WEEK 46 TRAVEL EXPENSES,BD1 5HQ,ADMIN
FOOD STANDARDS AGENCY - Westminster,FOOD STANDARDS AGENCY - Westminster,2017-11-22,EXP - PURCHASE OF GOODS/SERVICES - SUBSISTENCE,EU EXIT,REDFERN TRAVEL LTD,1011704417,109.53,WEEK 46 TRAVEL EXPENSES,BD1 5HQ,ADMIN
FOOD STANDARDS AGENCY - Westminster,FOOD STANDARDS AGENCY - Westminster,2017-11-22,EXP - PURCHASE OF GOODS/SERVICES - SUBSISTENCE,ORGANISATIONAL DEVELOPMENT,REDFERN TRAVEL LTD,1011704417,109.53,WEEK 46 TRAVEL EXPENSES,BD1 5HQ,ADMIN
FOOD STANDARDS AGENCY - Westminster,FOOD STANDARDS AGENCY - Westminster,2017-11-16,EXP - PURCHASE OF GOODS/SERVICES - SUBSISTENCE,East 1,REDFERN TRAVEL LTD,1011704377,109.20,UK TRAVEL WEEK 45,BD1 5HQ,PROGRAMME
FOOD STANDARDS AGENCY - Westminster,FOOD STANDARDS AGENCY - Westminster,2017-11-16,EXP - PURCHASE OF GOODS/SERVICES - RAIL TRAVEL,Wales and West 3 ,REDFERN TRAVEL LTD,1011704377,109.10,UK TRAVEL WEEK 45,BD1 5HQ,PROGRAMME
FOOD STANDARDS AGENCY - Westminster,FOOD STANDARDS AGENCY - Westminster,2017-11-22,EXP - PURCHASE OF GOODS/SERVICES - SUBSISTENCE,FINANCE BRANCH,REDFERN TRAVEL LTD,1011704417,109.10,WEEK 46 TRAVEL EXPENSES,BD1 5HQ,ADMIN
FOOD STANDARDS AGENCY - Westminster,FOOD STANDARDS AGENCY - Westminster,2017-11-01,EXP - PURCHASE OF GOODS/SERVICES - SUBSISTENCE,FOOD INCIDENTS AND RESILIENCE PROG,REDFERN TRAVEL LTD,1011704256,108.63,WEEK 43 TRAVEL EXPENSES,BD1 5HQ,PROGRAMME
FOOD STANDARDS AGENCY - Westminster,FOOD STANDARDS AGENCY - Westminster,2017-11-22,EXP - PURCHASE OF GOODS/SERVICES - RAIL TRAVEL,CHIEF SCIENTIST  ,REDFERN TRAVEL LTD,1011704417,108.00,WEEK 46 TRAVEL EXPENSES,BD1 5HQ,ADMIN
FOOD STANDARDS AGENCY - Westminster,FOOD STANDARDS AGENCY - Westminster,2017-11-30,EXP - PURCHASE OF GOODS/SERVICES - RAIL TRAVEL,PROGRAMME AND PROJECT DELIVERY,REDFERN TRAVEL LTD,1011704483,108.00,WEEK 47 TRAVEL EXPENSES,BD1 5HQ,ADMIN
FOOD STANDARDS AGENCY - Westminster,FOOD STANDARDS AGENCY - Westminster,2017-11-08,EXP - PURCHASE OF GOODS/SERVICES - RAIL TRAVEL,FOOD CRIME UNIT PROG,REDFERN TRAVEL LTD,1011704298,107.60,WEEK 44 TRAVEL EXPENSES,BD1 5HQ,PROGRAMME
FOOD STANDARDS AGENCY - Westminster,FOOD STANDARDS AGENCY - Westminster,2017-11-22,EXP - PURCHASE OF GOODS/SERVICES - RAIL TRAVEL,North 1,REDFERN TRAVEL LTD,1011704417,107.40,WEEK 46 TRAVEL EXPENSES,BD1 5HQ,PROGRAMME
FOOD STANDARDS AGENCY - Westminster,FOOD STANDARDS AGENCY - Westminster,2017-11-08,EXP - PURCHASE OF GOODS/SERVICES - RAIL TRAVEL,ANALYSIS & RESEARCH BRANCH,REDFERN TRAVEL LTD,1011704298,106.60,WEEK 44 TRAVEL EXPENSES,BD1 5HQ,ADMIN
FOOD STANDARDS AGENCY - Westminster,FOOD STANDARDS AGENCY - Westminster,2017-11-16,EXP - PURCHASE OF GOODS/SERVICES - RAIL TRAVEL,DIGITAL,REDFERN TRAVEL LTD,1011704377,106.50,UK TRAVEL WEEK 45,BD1 5HQ,ADMIN
FOOD STANDARDS AGENCY - Westminster,FOOD STANDARDS AGENCY - Westminster,2017-11-30,EXP - PURCHASE OF GOODS/SERVICES - RAIL TRAVEL,East 4,REDFERN TRAVEL LTD,1011704483,106.40,WEEK 47 TRAVEL EXPENSES,BD1 5HQ,PROGRAMME
FOOD STANDARDS AGENCY - Westminster,FOOD STANDARDS AGENCY - Westminster,2017-11-01,EXP - PURCHASE OF GOODS/SERVICES - SUBSISTENCE,ANALYSIS & RESEARCH BRANCH,REDFERN TRAVEL LTD,1011704256,105.06,WEEK 43 TRAVEL EXPENSES,BD1 5HQ,ADMIN
FOOD STANDARDS AGENCY - Westminster,FOOD STANDARDS AGENCY - Westminster,2017-11-30,EXP - PURCHASE OF GOODS/SERVICES - RAIL TRAVEL,CHIEF SCIENTIST  ,REDFERN TRAVEL LTD,1011704483,103.70,WEEK 47 TRAVEL EXPENSES,BD1 5HQ,ADMIN
FOOD STANDARDS AGENCY - Westminster,FOOD STANDARDS AGENCY - Westminster,2017-11-30,EXP - PURCHASE OF GOODS/SERVICES - SUBSISTENCE,Wales and West 2 (Wales),REDFERN TRAVEL LTD,1011704483,102.60,WEEK 47 TRAVEL EXPENSES,BD1 5HQ,PROGRAMME
FOOD STANDARDS AGENCY - Westminster,FOOD STANDARDS AGENCY - Westminster,2017-11-01,EXP - PURCHASE OF GOODS/SERVICES - RAIL TRAVEL,ANALYSIS & RESEARCH BRANCH,REDFERN TRAVEL LTD,1011704256,102.20,WEEK 43 TRAVEL EXPENSES,BD1 5HQ,ADMIN
FOOD STANDARDS AGENCY - Westminster,FOOD STANDARDS AGENCY - Westminster,2017-11-16,EXP - PURCHASE OF GOODS/SERVICES - RAIL TRAVEL,FOOD HYGIENE POLICY,REDFERN TRAVEL LTD,1011704377,101.55,UK TRAVEL WEEK 45,BD1 5HQ,ADMIN
FOOD STANDARDS AGENCY - Westminster,FOOD STANDARDS AGENCY - Westminster,2017-11-08,EXP - PURCHASE OF GOODS/SERVICES - AIR TRAVEL,"CHAIR, DEPUTY CHAIR & BOARD",REDFERN TRAVEL LTD,1011704298,101.53,WEEK 44 TRAVEL EXPENSES,BD1 5HQ,ADMIN
FOOD STANDARDS AGENCY - Westminster,FOOD STANDARDS AGENCY - Westminster,2017-11-08,EXP - PURCHASE OF GOODS/SERVICES - SUBSISTENCE,CORPORATE SUPPORT UNIT,REDFERN TRAVEL LTD,1011704298,101.28,WEEK 44 TRAVEL EXPENSES,BD1 5HQ,ADMIN
FOOD STANDARDS AGENCY - Westminster,FOOD STANDARDS AGENCY - Westminster,2017-11-16,EXP - PURCHASE OF GOODS/SERVICES - SUBSISTENCE,COMMS,REDFERN TRAVEL LTD,1011704377,101.28,UK TRAVEL WEEK 45,BD1 5HQ,ADMIN
FOOD STANDARDS AGENCY - Westminster,FOOD STANDARDS AGENCY - Westminster,2017-11-22,EXP - PURCHASE OF GOODS/SERVICES - SUBSISTENCE,MEAT HYGIENE POLICY,REDFERN TRAVEL LTD,1011704417,101.28,WEEK 46 TRAVEL EXPENSES,BD1 5HQ,ADMIN
FOOD STANDARDS AGENCY - Westminster,FOOD STANDARDS AGENCY - Westminster,2017-11-22,EXP - PURCHASE OF GOODS/SERVICES - SUBSISTENCE,FOOD ADDITIVES,REDFERN TRAVEL LTD,1011704417,101.28,WEEK 46 TRAVEL EXPENSES,BD1 5HQ,ADMIN
FOOD STANDARDS AGENCY - Westminster,FOOD STANDARDS AGENCY - Westminster,2017-11-30,EXP - PURCHASE OF GOODS/SERVICES - SUBSISTENCE,COMMS,REDFERN TRAVEL LTD,1011704483,101.28,WEEK 47 TRAVEL EXPENSES,BD1 5HQ,ADMIN
FOOD STANDARDS AGENCY - Westminster,FOOD STANDARDS AGENCY - Westminster,2017-11-08,EXP - PURCHASE OF GOODS/SERVICES - RAIL TRAVEL,FOOD ADDITIVES,REDFERN TRAVEL LTD,1011704298,100.90,WEEK 44 TRAVEL EXPENSES,BD1 5HQ,ADMIN
FOOD STANDARDS AGENCY - Westminster,FOOD STANDARDS AGENCY - Westminster,2017-11-30,EXP - PURCHASE OF GOODS/SERVICES - RAIL TRAVEL,Wales and West 2 (England),REDFERN TRAVEL LTD,1011704483,100.20,WEEK 47 TRAVEL EXPENSES,BD1 5HQ,PROGRAMME
FOOD STANDARDS AGENCY - Westminster,FOOD STANDARDS AGENCY - Westminster,2017-11-30,EXP - PURCHASE OF GOODS/SERVICES -  FOREIGN AIR TRAVEL,"ANIMAL FEED, TSEs & ABPs",REDFERN TRAVEL LTD,1011704483,100.16,WEEK 47 TRAVEL EXPENSES,BD1 5HQ,ADMIN
FOOD STANDARDS AGENCY - Westminster,FOOD STANDARDS AGENCY - Westminster,2017-11-30,EXP - PURCHASE OF GOODS/SERVICES - AIR TRAVEL,COMMS,REDFERN TRAVEL LTD,1011704483,99.98,WEEK 47 TRAVEL EXPENSES,BD1 5HQ,ADMIN
FOOD STANDARDS AGENCY - Westminster,FOOD STANDARDS AGENCY - Westminster,2017-11-16,EXP - PURCHASE OF GOODS/SERVICES - SUBSISTENCE,East 2,REDFERN TRAVEL LTD,1011704377,99.20,UK TRAVEL WEEK 45,BD1 5HQ,PROGRAMME
FOOD STANDARDS AGENCY - Westminster,FOOD STANDARDS AGENCY - Westminster,2017-11-01,EXP - PURCHASE OF GOODS/SERVICES - SUBSISTENCE,CHIEF SCIENTIST  ,REDFERN TRAVEL LTD,1011704256,99.00,WEEK 43 TRAVEL EXPENSES,BD1 5HQ,ADMIN
FOOD STANDARDS AGENCY - Westminster,FOOD STANDARDS AGENCY - Westminster,2017-11-22,EXP - PURCHASE OF GOODS/SERVICES - RAIL TRAVEL,FOOD ADDITIVES,REDFERN TRAVEL LTD,1011704417,96.70,WEEK 46 TRAVEL EXPENSES,BD1 5HQ,ADMIN
FOOD STANDARDS AGENCY - Westminster,FOOD STANDARDS AGENCY - Westminster,2017-11-01,EXP - PURCHASE OF GOODS/SERVICES - RAIL TRAVEL,RESILIENCE ADMIN,REDFERN TRAVEL LTD,1011704256,96.10,WEEK 43 TRAVEL EXPENSES,BD1 5HQ,ADMIN
FOOD STANDARDS AGENCY - Westminster,FOOD STANDARDS AGENCY - Westminster,2017-11-22,EXP - PURCHASE OF GOODS/SERVICES - SUBSISTENCE,FOOD CRIME UNIT PROG,REDFERN TRAVEL LTD,1011704417,94.59,WEEK 46 TRAVEL EXPENSES,BD1 5HQ,PROGRAMME
FOOD STANDARDS AGENCY - Westminster,FOOD STANDARDS AGENCY - Westminster,2017-11-01,EXP - PURCHASE OF GOODS/SERVICES - SUBSISTENCE,Wales and West 1 (England),REDFERN TRAVEL LTD,1011704256,94.18,WEEK 43 TRAVEL EXPENSES,BD1 5HQ,PROGRAMME
FOOD STANDARDS AGENCY - Westminster,FOOD STANDARDS AGENCY - Westminster,2017-11-01,EXP - PURCHASE OF GOODS/SERVICES -  FOREIGN AIR TRAVEL,CHIEF SCIENTIST  ,REDFERN TRAVEL LTD,1011704256,93.00,WEEK 43 TRAVEL EXPENSES,BD1 5HQ,ADMIN
FOOD STANDARDS AGENCY - Westminster,FOOD STANDARDS AGENCY - Westminster,2017-11-30,EXP - PURCHASE OF GOODS/SERVICES - RAIL TRAVEL,CHEMICAL RISK ASSESSMENT UNIT,REDFERN TRAVEL LTD,1011704483,93.00,WEEK 47 TRAVEL EXPENSES,BD1 5HQ,ADMIN
FOOD STANDARDS AGENCY - Westminster,FOOD STANDARDS AGENCY - Westminster,2017-11-22,EXP - PURCHASE OF GOODS/SERVICES - AIR TRAVEL,"RADIOLOGICAL, NOVEL FOOD & PROCESSES",REDFERN TRAVEL LTD,1011704417,92.96,WEEK 46 TRAVEL EXPENSES,BD1 5HQ,ADMIN
FOOD STANDARDS AGENCY - Westminster,FOOD STANDARDS AGENCY - Westminster,2017-11-16,EXP - PURCHASE OF GOODS/SERVICES - RAIL TRAVEL,RESILIENCE ADMIN,REDFERN TRAVEL LTD,1011704377,91.65,UK TRAVEL WEEK 45,BD1 5HQ,ADMIN
FOOD STANDARDS AGENCY - Westminster,FOOD STANDARDS AGENCY - Westminster,2017-11-01,EXP - PURCHASE OF GOODS/SERVICES - SUBSISTENCE,Wales and West 4 ,REDFERN TRAVEL LTD,1011704256,90.60,WEEK 43 TRAVEL EXPENSES,BD1 5HQ,PROGRAMME
FOOD STANDARDS AGENCY - Westminster,FOOD STANDARDS AGENCY - Westminster,2017-11-30,EXP - PURCHASE OF GOODS/SERVICES - SUBSISTENCE,CHEMICAL RISK ASSESSMENT UNIT,REDFERN TRAVEL LTD,1011704483,89.85,WEEK 47 TRAVEL EXPENSES,BD1 5HQ,ADMIN
FOOD STANDARDS AGENCY - Westminster,FOOD STANDARDS AGENCY - Westminster,2017-11-08,EXP - PURCHASE OF GOODS/SERVICES - SUBSISTENCE,FOODBORNE DISEASE CONTROL,REDFERN TRAVEL LTD,1011704298,89.60,WEEK 44 TRAVEL EXPENSES,BD1 5HQ,ADMIN
FOOD STANDARDS AGENCY - Westminster,FOOD STANDARDS AGENCY - Westminster,2017-11-30,EXP - PURCHASE OF GOODS/SERVICES - RAIL TRAVEL,East 1,REDFERN TRAVEL LTD,1011704483,89.20,WEEK 47 TRAVEL EXPENSES,BD1 5HQ,PROGRAMME
FOOD STANDARDS AGENCY - Westminster,FOOD STANDARDS AGENCY - Westminster,2017-11-22,EXP - PURCHASE OF GOODS/SERVICES -  FOREIGN AIR TRAVEL,SCIENTIFIC METHODS AND LABORATORY POLICY,REDFERN TRAVEL LTD,1011704417,89.00,WEEK 46 TRAVEL EXPENSES,BD1 5HQ,ADMIN
FOOD STANDARDS AGENCY - Westminster,FOOD STANDARDS AGENCY - Westminster,2017-11-16,EXP - PURCHASE OF GOODS/SERVICES - RAIL TRAVEL,East 1,REDFERN TRAVEL LTD,1011704377,88.00,UK TRAVEL WEEK 45,BD1 5HQ,PROGRAMME
FOOD STANDARDS AGENCY - Westminster,FOOD STANDARDS AGENCY - Westminster,2017-11-01,EXP - PURCHASE OF GOODS/SERVICES - AIR TRAVEL,EU EXIT,REDFERN TRAVEL LTD,1011704256,86.83,WEEK 43 TRAVEL EXPENSES,BD1 5HQ,ADMIN
FOOD STANDARDS AGENCY - Westminster,FOOD STANDARDS AGENCY - Westminster,2017-11-30,EXP - PURCHASE OF GOODS/SERVICES - AIR TRAVEL,IT SERVICE DELIVERY,REDFERN TRAVEL LTD,1011704483,83.96,WEEK 47 TRAVEL EXPENSES,BD1 5HQ,ADMIN
FOOD STANDARDS AGENCY - Westminster,FOOD STANDARDS AGENCY - Westminster,2017-11-30,EXP - PURCHASE OF GOODS/SERVICES - TAXI SERVICES,OPERATIONAL DELIVERY ,REDFERN TRAVEL LTD,1011704483,83.75,WEEK 47 TRAVEL EXPENSES,BD1 5HQ,PROGRAMME
FOOD STANDARDS AGENCY - Westminster,FOOD STANDARDS AGENCY - Westminster,2017-11-08,EXP - PURCHASE OF GOODS/SERVICES - SUBSISTENCE,East 1,REDFERN TRAVEL LTD,1011704298,83.40,WEEK 44 TRAVEL EXPENSES,BD1 5HQ,PROGRAMME
FOOD STANDARDS AGENCY - Westminster,FOOD STANDARDS AGENCY - Westminster,2017-11-30,EXP - PURCHASE OF GOODS/SERVICES - RAIL TRAVEL,Wales and West 1 (England),REDFERN TRAVEL LTD,1011704483,83.40,WEEK 47 TRAVEL EXPENSES,BD1 5HQ,PROGRAMME
FOOD STANDARDS AGENCY - Westminster,FOOD STANDARDS AGENCY - Westminster,2017-11-22,EXP - PURCHASE OF GOODS/SERVICES - RAIL TRAVEL,East 1,REDFERN TRAVEL LTD,1011704417,82.75,WEEK 46 TRAVEL EXPENSES,BD1 5HQ,PROGRAMME
FOOD STANDARDS AGENCY - Westminster,FOOD STANDARDS AGENCY - Westminster,2017-11-16,EXP - PURCHASE OF GOODS/SERVICES - SUBSISTENCE,CORPORATE SUPPORT UNIT,REDFERN TRAVEL LTD,1011704377,82.44,UK TRAVEL WEEK 45,BD1 5HQ,ADMIN
FOOD STANDARDS AGENCY - Westminster,FOOD STANDARDS AGENCY - Westminster,2017-11-01,EXP - PURCHASE OF GOODS/SERVICES - SUBSISTENCE,"AGRICULTURAL, PROCESS & ENVIRONMENTAL CONTAMINANTS",REDFERN TRAVEL LTD,1011704256,82.19,WEEK 43 TRAVEL EXPENSES,BD1 5HQ,ADMIN
FOOD STANDARDS AGENCY - Westminster,FOOD STANDARDS AGENCY - Westminster,2017-11-01,EXP - PURCHASE OF GOODS/SERVICES - SUBSISTENCE,FINANCE BRANCH,REDFERN TRAVEL LTD,1011704256,81.59,WEEK 43 TRAVEL EXPENSES,BD1 5HQ,ADMIN
FOOD STANDARDS AGENCY - Westminster,FOOD STANDARDS AGENCY - Westminster,2017-11-30,EXP - PURCHASE OF GOODS/SERVICES -  FOREIGN AIR TRAVEL,FOOD CRIME UNIT ADMIN,REDFERN TRAVEL LTD,1011704483,80.98,WEEK 47 TRAVEL EXPENSES,BD1 5HQ,ADMIN
FOOD STANDARDS AGENCY - Westminster,FOOD STANDARDS AGENCY - Westminster,2017-11-16,EXP - PURCHASE OF GOODS/SERVICES - TAXI SERVICES,REGULATING OUR FUTURE,REDFERN TRAVEL LTD,1011704377,80.22,UK TRAVEL WEEK 45,BD1 5HQ,ADMIN
FOOD STANDARDS AGENCY - Westminster,FOOD STANDARDS AGENCY - Westminster,2017-11-30,EXP - PURCHASE OF GOODS/SERVICES - SUBSISTENCE,"RADIOLOGICAL, NOVEL FOOD & PROCESSES",REDFERN TRAVEL LTD,1011704483,80.10,WEEK 47 TRAVEL EXPENSES,BD1 5HQ,ADMIN
FOOD STANDARDS AGENCY - Westminster,FOOD STANDARDS AGENCY - Westminster,2017-11-22,EXP - PURCHASE OF GOODS/SERVICES - AIR TRAVEL,OPERATIONAL DELIVERY ,REDFERN TRAVEL LTD,1011704417,80.09,WEEK 46 TRAVEL EXPENSES,BD1 5HQ,PROGRAMME
FOOD STANDARDS AGENCY - Westminster,FOOD STANDARDS AGENCY - Westminster,2017-11-08,EXP - PURCHASE OF GOODS/SERVICES - SUBSISTENCE,Wales and West 2 (England),REDFERN TRAVEL LTD,1011704298,78.60,WEEK 44 TRAVEL EXPENSES,BD1 5HQ,PROGRAMME
FOOD STANDARDS AGENCY - Westminster,FOOD STANDARDS AGENCY - Westminster,2017-11-22,EXP - PURCHASE OF GOODS/SERVICES - SUBSISTENCE,"ANIMAL FEED, TSEs & ABPs",REDFERN TRAVEL LTD,1011704417,78.45,WEEK 46 TRAVEL EXPENSES,BD1 5HQ,ADMIN
FOOD STANDARDS AGENCY - Westminster,FOOD STANDARDS AGENCY - Westminster,2017-11-30,EXP - PURCHASE OF GOODS/SERVICES - RAIL TRAVEL,DIGITAL,REDFERN TRAVEL LTD,1011704483,78.20,WEEK 47 TRAVEL EXPENSES,BD1 5HQ,ADMIN
FOOD STANDARDS AGENCY - Westminster,FOOD STANDARDS AGENCY - Westminster,2017-11-08,EXP - PURCHASE OF GOODS/SERVICES - RAIL TRAVEL,North 4,REDFERN TRAVEL LTD,1011704298,78.10,WEEK 44 TRAVEL EXPENSES,BD1 5HQ,PROGRAMME
FOOD STANDARDS AGENCY - Westminster,FOOD STANDARDS AGENCY - Westminster,2017-11-16,EXP - PURCHASE OF GOODS/SERVICES - RAIL TRAVEL,ALLERGY & INTOLERANCE,REDFERN TRAVEL LTD,1011704377,77.70,UK TRAVEL WEEK 45,BD1 5HQ,ADMIN
FOOD STANDARDS AGENCY - Westminster,FOOD STANDARDS AGENCY - Westminster,2017-11-30,EXP - PURCHASE OF GOODS/SERVICES - RAIL TRAVEL,MEAT HYGIENE POLICY,REDFERN TRAVEL LTD,1011704483,76.60,WEEK 47 TRAVEL EXPENSES,BD1 5HQ,ADMIN
FOOD STANDARDS AGENCY - Westminster,FOOD STANDARDS AGENCY - Westminster,2017-11-08,EXP - PURCHASE OF GOODS/SERVICES - SUBSISTENCE,INTERNAL AUDIT,REDFERN TRAVEL LTD,1011704298,75.60,WEEK 44 TRAVEL EXPENSES,BD1 5HQ,ADMIN
FOOD STANDARDS AGENCY - Westminster,FOOD STANDARDS AGENCY - Westminster,2017-11-30,EXP - PURCHASE OF GOODS/SERVICES - SUBSISTENCE,SCIENTIFIC METHODS AND LABORATORY POLICY,REDFERN TRAVEL LTD,1011704483,75.60,WEEK 47 TRAVEL EXPENSES,BD1 5HQ,ADMIN
FOOD STANDARDS AGENCY - Westminster,FOOD STANDARDS AGENCY - Westminster,2017-11-16,EXP - PURCHASE OF GOODS/SERVICES - SUBSISTENCE,IT SERVICE DELIVERY,REDFERN TRAVEL LTD,1011704377,73.60,UK TRAVEL WEEK 45,BD1 5HQ,ADMIN
FOOD STANDARDS AGENCY - Westminster,FOOD STANDARDS AGENCY - Westminster,2017-11-16,EXP - PURCHASE OF GOODS/SERVICES - SUBSISTENCE,INPORT & EXPORTS TEAM,REDFERN TRAVEL LTD,1011704377,73.10,UK TRAVEL WEEK 45,BD1 5HQ,ADMIN
FOOD STANDARDS AGENCY - Westminster,FOOD STANDARDS AGENCY - Westminster,2017-11-16,EXP - PURCHASE OF GOODS/SERVICES - RAIL TRAVEL,FOOD CRIME UNIT ADMIN,REDFERN TRAVEL LTD,1011704377,72.80,UK TRAVEL WEEK 45,BD1 5HQ,ADMIN
FOOD STANDARDS AGENCY - Westminster,FOOD STANDARDS AGENCY - Westminster,2017-11-08,EXP - PURCHASE OF GOODS/SERVICES - RAIL TRAVEL,CHIEF SCIENTIST  ,REDFERN TRAVEL LTD,1011704298,72.40,WEEK 44 TRAVEL EXPENSES,BD1 5HQ,ADMIN
FOOD STANDARDS AGENCY - Westminster,FOOD STANDARDS AGENCY - Westminster,2017-11-30,EXP - PURCHASE OF GOODS/SERVICES - RAIL TRAVEL,FOOD HYGIENE POLICY,REDFERN TRAVEL LTD,1011704483,72.20,WEEK 47 TRAVEL EXPENSES,BD1 5HQ,ADMIN
FOOD STANDARDS AGENCY - Westminster,FOOD STANDARDS AGENCY - Westminster,2017-11-30,EXP - PURCHASE OF GOODS/SERVICES - SUBSISTENCE,North 2,REDFERN TRAVEL LTD,1011704483,71.88,WEEK 47 TRAVEL EXPENSES,BD1 5HQ,PROGRAMME
FOOD STANDARDS AGENCY - Westminster,FOOD STANDARDS AGENCY - Westminster,2017-11-16,EXP - PURCHASE OF GOODS/SERVICES - RAIL TRAVEL,East 4,REDFERN TRAVEL LTD,1011704377,71.70,UK TRAVEL WEEK 45,BD1 5HQ,PROGRAMME
FOOD STANDARDS AGENCY - Westminster,FOOD STANDARDS AGENCY - Westminster,2017-11-16,EXP - PURCHASE OF GOODS/SERVICES - SUBSISTENCE,Wales and West 2 (England),REDFERN TRAVEL LTD,1011704377,71.55,UK TRAVEL WEEK 45,BD1 5HQ,PROGRAMME
FOOD STANDARDS AGENCY - Westminster,FOOD STANDARDS AGENCY - Westminster,2017-11-01,EXP - PURCHASE OF GOODS/SERVICES - SUBSISTENCE,REGULATORY & INTERNATIONAL,REDFERN TRAVEL LTD,1011704256,70.60,WEEK 43 TRAVEL EXPENSES,BD1 5HQ,ADMIN
FOOD STANDARDS AGENCY - Westminster,FOOD STANDARDS AGENCY - Westminster,2017-11-22,EXP - PURCHASE OF GOODS/SERVICES - OTHER TRAVEL,OPERATIONAL DELIVERY ,REDFERN TRAVEL LTD,1011704417,66.95,WEEK 46 TRAVEL EXPENSES,BD1 5HQ,PROGRAMME
FOOD STANDARDS AGENCY - Westminster,FOOD STANDARDS AGENCY - Westminster,2017-11-01,EXP - PURCHASE OF GOODS/SERVICES - SUBSISTENCE,Wales and West 2 (Wales),REDFERN TRAVEL LTD,1011704256,66.60,WEEK 43 TRAVEL EXPENSES,BD1 5HQ,PROGRAMME
FOOD STANDARDS AGENCY - Westminster,FOOD STANDARDS AGENCY - Westminster,2017-11-22,EXP - PURCHASE OF GOODS/SERVICES - RAIL TRAVEL,RESILIENCE ADMIN,REDFERN TRAVEL LTD,1011704417,66.40,WEEK 46 TRAVEL EXPENSES,BD1 5HQ,ADMIN
FOOD STANDARDS AGENCY - Westminster,FOOD STANDARDS AGENCY - Westminster,2017-11-01,EXP - PURCHASE OF GOODS/SERVICES - RAIL TRAVEL,North 3,REDFERN TRAVEL LTD,1011704256,65.60,WEEK 43 TRAVEL EXPENSES,BD1 5HQ,PROGRAMME
FOOD STANDARDS AGENCY - Westminster,FOOD STANDARDS AGENCY - Westminster,2017-11-30,EXP - PURCHASE OF GOODS/SERVICES - TAXI SERVICES,SCIENTIFIC METHODS AND LABORATORY POLICY,REDFERN TRAVEL LTD,1011704483,65.41,WEEK 47 TRAVEL EXPENSES,BD1 5HQ,ADMIN
FOOD STANDARDS AGENCY - Westminster,FOOD STANDARDS AGENCY - Westminster,2017-11-16,EXP - PURCHASE OF GOODS/SERVICES - RAIL TRAVEL,SCIENTIFIC METHODS AND LABORATORY POLICY,REDFERN TRAVEL LTD,1011704377,65.00,UK TRAVEL WEEK 45,BD1 5HQ,ADMIN
FOOD STANDARDS AGENCY - Westminster,FOOD STANDARDS AGENCY - Westminster,2017-11-01,EXP - PURCHASE OF GOODS/SERVICES - RAIL TRAVEL,North 4,REDFERN TRAVEL LTD,1011704256,63.00,WEEK 43 TRAVEL EXPENSES,BD1 5HQ,PROGRAMME
FOOD STANDARDS AGENCY - Westminster,FOOD STANDARDS AGENCY - Westminster,2017-11-16,EXP - PURCHASE OF GOODS/SERVICES - SUBSISTENCE,"CHAIR, DEPUTY CHAIR & BOARD",REDFERN TRAVEL LTD,1011704377,61.84,UK TRAVEL WEEK 45,BD1 5HQ,ADMIN
FOOD STANDARDS AGENCY - Westminster,FOOD STANDARDS AGENCY - Westminster,2017-11-08,EXP - PURCHASE OF GOODS/SERVICES - SUBSISTENCE,East 4,REDFERN TRAVEL LTD,1011704298,61.60,WEEK 44 TRAVEL EXPENSES,BD1 5HQ,PROGRAMME
FOOD STANDARDS AGENCY - Westminster,FOOD STANDARDS AGENCY - Westminster,2017-11-16,EXP - PURCHASE OF GOODS/SERVICES - RAIL TRAVEL,IT STRATEGY & DEVELOPMENT,REDFERN TRAVEL LTD,1011704377,61.50,UK TRAVEL WEEK 45,BD1 5HQ,ADMIN
FOOD STANDARDS AGENCY - Westminster,FOOD STANDARDS AGENCY - Westminster,2017-11-16,EXP - PURCHASE OF GOODS/SERVICES - AIR TRAVEL,REGULATORY & INTERNATIONAL,REDFERN TRAVEL LTD,1011704377,60.11,UK TRAVEL WEEK 45,BD1 5HQ,ADMIN
FOOD STANDARDS AGENCY - Westminster,FOOD STANDARDS AGENCY - Westminster,2017-11-01,EXP - PURCHASE OF GOODS/SERVICES - SUBSISTENCE,Wales and West 3 ,REDFERN TRAVEL LTD,1011704256,58.92,WEEK 43 TRAVEL EXPENSES,BD1 5HQ,PROGRAMME
FOOD STANDARDS AGENCY - Westminster,FOOD STANDARDS AGENCY - Westminster,2017-11-08,EXP - PURCHASE OF GOODS/SERVICES - SUBSISTENCE,"RADIOLOGICAL, NOVEL FOOD & PROCESSES",REDFERN TRAVEL LTD,1011704298,55.60,WEEK 44 TRAVEL EXPENSES,BD1 5HQ,ADMIN
FOOD STANDARDS AGENCY - Westminster,FOOD STANDARDS AGENCY - Westminster,2017-11-30,EXP - PURCHASE OF GOODS/SERVICES - RAIL TRAVEL,Wales and West 3 ,REDFERN TRAVEL LTD,1011704483,55.40,WEEK 47 TRAVEL EXPENSES,BD1 5HQ,PROGRAMME
FOOD STANDARDS AGENCY - Westminster,FOOD STANDARDS AGENCY - Westminster,2017-11-16,EXP - PURCHASE OF GOODS/SERVICES - SUBSISTENCE,North 4,REDFERN TRAVEL LTD,1011704377,54.85,UK TRAVEL WEEK 45,BD1 5HQ,PROGRAMME
FOOD STANDARDS AGENCY - Westminster,FOOD STANDARDS AGENCY - Westminster,2017-11-22,EXP - PURCHASE OF GOODS/SERVICES - SUBSISTENCE,Wales and West 1 (England),REDFERN TRAVEL LTD,1011704417,54.85,WEEK 46 TRAVEL EXPENSES,BD1 5HQ,PROGRAMME
FOOD STANDARDS AGENCY - Westminster,FOOD STANDARDS AGENCY - Westminster,2017-11-22,EXP - PURCHASE OF GOODS/SERVICES - SUBSISTENCE,LEGAL  BRANCH A & INVESTIGATIONS,REDFERN TRAVEL LTD,1011704417,54.59,WEEK 46 TRAVEL EXPENSES,BD1 5HQ,ADMIN
FOOD STANDARDS AGENCY - Westminster,FOOD STANDARDS AGENCY - Westminster,2017-11-22,EXP - PURCHASE OF GOODS/SERVICES - RAIL TRAVEL,North 3,REDFERN TRAVEL LTD,1011704417,51.20,WEEK 46 TRAVEL EXPENSES,BD1 5HQ,PROGRAMME
FOOD STANDARDS AGENCY - Westminster,FOOD STANDARDS AGENCY - Westminster,2017-11-16,EXP - PURCHASE OF GOODS/SERVICES - TAXI SERVICES,OPERATIONAL DELIVERY ,REDFERN TRAVEL LTD,1011704377,49.84,UK TRAVEL WEEK 45,BD1 5HQ,PROGRAMME
FOOD STANDARDS AGENCY - Westminster,FOOD STANDARDS AGENCY - Westminster,2017-11-30,EXP - PURCHASE OF GOODS/SERVICES - RAIL TRAVEL,Wales and West 4 ,REDFERN TRAVEL LTD,1011704483,49.50,WEEK 47 TRAVEL EXPENSES,BD1 5HQ,PROGRAMME
FOOD STANDARDS AGENCY - Westminster,FOOD STANDARDS AGENCY - Westminster,2017-11-16,EXP - PURCHASE OF GOODS/SERVICES - RAIL TRAVEL,North 4,REDFERN TRAVEL LTD,1011704377,48.10,UK TRAVEL WEEK 45,BD1 5HQ,PROGRAMME
FOOD STANDARDS AGENCY - Westminster,FOOD STANDARDS AGENCY - Westminster,2017-11-16,EXP - PURCHASE OF GOODS/SERVICES - TAXI SERVICES,REGULATORY DELIVERY,REDFERN TRAVEL LTD,1011704377,47.95,UK TRAVEL WEEK 45,BD1 5HQ,ADMIN
FOOD STANDARDS AGENCY - Westminster,FOOD STANDARDS AGENCY - Westminster,2017-11-16,EXP - PURCHASE OF GOODS/SERVICES - SUBSISTENCE,Wales and West 2 (Wales),REDFERN TRAVEL LTD,1011704377,45.60,UK TRAVEL WEEK 45,BD1 5HQ,PROGRAMME
FOOD STANDARDS AGENCY - Westminster,FOOD STANDARDS AGENCY - Westminster,2017-11-22,EXP - PURCHASE OF GOODS/SERVICES - SUBSISTENCE,North 4,REDFERN TRAVEL LTD,1011704417,45.60,WEEK 46 TRAVEL EXPENSES,BD1 5HQ,PROGRAMME
FOOD STANDARDS AGENCY - Westminster,FOOD STANDARDS AGENCY - Westminster,2017-11-22,EXP - PURCHASE OF GOODS/SERVICES - OTHER TRAVEL,OPERATIONS ASSURANCE DIVISION (PROGRAMME),REDFERN TRAVEL LTD,1011704417,44.95,WEEK 46 TRAVEL EXPENSES,BD1 5HQ,PROGRAMME
FOOD STANDARDS AGENCY - Westminster,FOOD STANDARDS AGENCY - Westminster,2017-11-30,EXP - PURCHASE OF GOODS/SERVICES - RAIL TRAVEL,"AGRICULTURAL, PROCESS & ENVIRONMENTAL CONTAMINANTS",REDFERN TRAVEL LTD,1011704483,44.80,WEEK 47 TRAVEL EXPENSES,BD1 5HQ,ADMIN
FOOD STANDARDS AGENCY - Westminster,FOOD STANDARDS AGENCY - Westminster,2017-11-30,EXP - PURCHASE OF GOODS/SERVICES - RAIL TRAVEL,Wales and West 2 (Wales),REDFERN TRAVEL LTD,1011704483,44.70,WEEK 47 TRAVEL EXPENSES,BD1 5HQ,PROGRAMME
FOOD STANDARDS AGENCY - Westminster,FOOD STANDARDS AGENCY - Westminster,2017-11-01,EXP - PURCHASE OF GOODS/SERVICES - SUBSISTENCE,East 1,REDFERN TRAVEL LTD,1011704256,43.65,WEEK 43 TRAVEL EXPENSES,BD1 5HQ,PROGRAMME
FOOD STANDARDS AGENCY - Westminster,FOOD STANDARDS AGENCY - Westminster,2017-11-08,EXP - PURCHASE OF GOODS/SERVICES - RAIL TRAVEL,Wales and West 3 ,REDFERN TRAVEL LTD,1011704298,42.70,WEEK 44 TRAVEL EXPENSES,BD1 5HQ,PROGRAMME
FOOD STANDARDS AGENCY - Westminster,FOOD STANDARDS AGENCY - Westminster,2017-11-01,EXP - PURCHASE OF GOODS/SERVICES - RAIL TRAVEL,East 2,REDFERN TRAVEL LTD,1011704256,39.80,WEEK 43 TRAVEL EXPENSES,BD1 5HQ,PROGRAMME
FOOD STANDARDS AGENCY - Westminster,FOOD STANDARDS AGENCY - Westminster,2017-11-22,EXP - PURCHASE OF GOODS/SERVICES - SUBSISTENCE,North 1,REDFERN TRAVEL LTD,1011704417,39.71,WEEK 46 TRAVEL EXPENSES,BD1 5HQ,PROGRAMME
FOOD STANDARDS AGENCY - Westminster,FOOD STANDARDS AGENCY - Westminster,2017-11-01,EXP - PURCHASE OF GOODS/SERVICES - SUBSISTENCE,"RADIOLOGICAL, NOVEL FOOD & PROCESSES",REDFERN TRAVEL LTD,1011704256,39.45,WEEK 43 TRAVEL EXPENSES,BD1 5HQ,ADMIN
FOOD STANDARDS AGENCY - Westminster,FOOD STANDARDS AGENCY - Westminster,2017-11-30,EXP - PURCHASE OF GOODS/SERVICES - RAIL TRAVEL,INPORT & EXPORTS TEAM,REDFERN TRAVEL LTD,1011704483,38.20,WEEK 47 TRAVEL EXPENSES,BD1 5HQ,ADMIN
FOOD STANDARDS AGENCY - Westminster,FOOD STANDARDS AGENCY - Westminster,2017-11-30,EXP - PURCHASE OF GOODS/SERVICES - RAIL TRAVEL,ANALYSIS & RESEARCH BRANCH,REDFERN TRAVEL LTD,1011704483,37.90,WEEK 47 TRAVEL EXPENSES,BD1 5HQ,ADMIN
FOOD STANDARDS AGENCY - Westminster,FOOD STANDARDS AGENCY - Westminster,2017-11-30,EXP - PURCHASE OF GOODS/SERVICES - RAIL TRAVEL,"CHAIR, DEPUTY CHAIR & BOARD",REDFERN TRAVEL LTD,1011704483,37.60,WEEK 47 TRAVEL EXPENSES,BD1 5HQ,ADMIN
FOOD STANDARDS AGENCY - Westminster,FOOD STANDARDS AGENCY - Westminster,2017-11-22,EXP - PURCHASE OF GOODS/SERVICES - RAIL TRAVEL,"AGRICULTURAL, PROCESS & ENVIRONMENTAL CONTAMINANTS",REDFERN TRAVEL LTD,1011704417,37.40,WEEK 46 TRAVEL EXPENSES,BD1 5HQ,ADMIN
FOOD STANDARDS AGENCY - Westminster,FOOD STANDARDS AGENCY - Westminster,2017-11-08,EXP - PURCHASE OF GOODS/SERVICES - SUBSISTENCE,Wales and West 1 (England),REDFERN TRAVEL LTD,1011704298,37.35,WEEK 44 TRAVEL EXPENSES,BD1 5HQ,PROGRAMME
FOOD STANDARDS AGENCY - Westminster,FOOD STANDARDS AGENCY - Westminster,2017-11-16,EXP - PURCHASE OF GOODS/SERVICES - RAIL TRAVEL,"AGRICULTURAL, PROCESS & ENVIRONMENTAL CONTAMINANTS",REDFERN TRAVEL LTD,1011704377,35.90,UK TRAVEL WEEK 45,BD1 5HQ,ADMIN
FOOD STANDARDS AGENCY - Westminster,FOOD STANDARDS AGENCY - Westminster,2017-11-30,EXP - PURCHASE OF GOODS/SERVICES - OTHER TRAVEL,ORGANISATIONAL DEVELOPMENT,REDFERN TRAVEL LTD,1011704483,34.99,WEEK 47 TRAVEL EXPENSES,BD1 5HQ,ADMIN
FOOD STANDARDS AGENCY - Westminster,FOOD STANDARDS AGENCY - Westminster,2017-11-01,EXP - PURCHASE OF GOODS/SERVICES - RAIL TRAVEL,"AGRICULTURAL, PROCESS & ENVIRONMENTAL CONTAMINANTS",REDFERN TRAVEL LTD,1011704256,34.55,WEEK 43 TRAVEL EXPENSES,BD1 5HQ,ADMIN
FOOD STANDARDS AGENCY - Westminster,FOOD STANDARDS AGENCY - Westminster,2017-11-30,EXP - PURCHASE OF GOODS/SERVICES - OTHER TRAVEL,INTERNAL AUDIT,REDFERN TRAVEL LTD,1011704483,34.55,WEEK 47 TRAVEL EXPENSES,BD1 5HQ,ADMIN
FOOD STANDARDS AGENCY - Westminster,FOOD STANDARDS AGENCY - Westminster,2017-11-01,EXP - PURCHASE OF GOODS/SERVICES - OTHER TRAVEL,REGULATING OUR FUTURE,REDFERN TRAVEL LTD,1011704256,31.95,WEEK 43 TRAVEL EXPENSES,BD1 5HQ,ADMIN
FOOD STANDARDS AGENCY - Westminster,FOOD STANDARDS AGENCY - Westminster,2017-11-16,EXP - PURCHASE OF GOODS/SERVICES - OTHER TRAVEL,EU EXIT,REDFERN TRAVEL LTD,1011704377,31.95,UK TRAVEL WEEK 45,BD1 5HQ,ADMIN
FOOD STANDARDS AGENCY - Westminster,FOOD STANDARDS AGENCY - Westminster,2017-11-16,EXP - PURCHASE OF GOODS/SERVICES - RAIL TRAVEL,FOODBORNE DISEASE CONTROL,REDFERN TRAVEL LTD,1011704377,30.40,UK TRAVEL WEEK 45,BD1 5HQ,ADMIN
FOOD STANDARDS AGENCY - Westminster,FOOD STANDARDS AGENCY - Westminster,2017-11-01,EXP - PURCHASE OF GOODS/SERVICES - RAIL TRAVEL,Wales and West 1 (England),REDFERN TRAVEL LTD,1011704256,28.50,WEEK 43 TRAVEL EXPENSES,BD1 5HQ,PROGRAMME
FOOD STANDARDS AGENCY - Westminster,FOOD STANDARDS AGENCY - Westminster,2017-11-01,EXP - PURCHASE OF GOODS/SERVICES - RAIL TRAVEL,SURVEILLANCE,REDFERN TRAVEL LTD,1011704256,27.00,WEEK 43 TRAVEL EXPENSES,BD1 5HQ,ADMIN
FOOD STANDARDS AGENCY - Westminster,FOOD STANDARDS AGENCY - Westminster,2017-11-30,EXP - PURCHASE OF GOODS/SERVICES - TAXI SERVICES,REGULATORY DELIVERY,REDFERN TRAVEL LTD,1011704483,17.99,WEEK 47 TRAVEL EXPENSES,BD1 5HQ,ADMIN
FOOD STANDARDS AGENCY - Westminster,FOOD STANDARDS AGENCY - Westminster,2017-11-08,EXP - PURCHASE OF GOODS/SERVICES - RAIL TRAVEL,East 1,REDFERN TRAVEL LTD,1011704298,17.70,WEEK 44 TRAVEL EXPENSES,BD1 5HQ,PROGRAMME
FOOD STANDARDS AGENCY - Westminster,FOOD STANDARDS AGENCY - Westminster,2017-11-30,EXP - PURCHASE OF GOODS/SERVICES - RAIL TRAVEL,FOOD INCIDENTS AND RESILIENCE PROG,REDFERN TRAVEL LTD,1011704483,17.50,WEEK 47 TRAVEL EXPENSES,BD1 5HQ,PROGRAMME
FOOD STANDARDS AGENCY - Westminster,FOOD STANDARDS AGENCY - Westminster,2017-11-30,EXP - PURCHASE OF GOODS/SERVICES - SUBSISTENCE,CORPORATE SUPPORT UNIT,REDFERN TRAVEL LTD,1011704483,17.18,WEEK 47 TRAVEL EXPENSES,BD1 5HQ,ADMIN
FOOD STANDARDS AGENCY - Westminster,FOOD STANDARDS AGENCY - Westminster,2017-11-01,EXP - PURCHASE OF GOODS/SERVICES - RAIL TRAVEL,INPORT & EXPORTS TEAM,REDFERN TRAVEL LTD,1011704256,14.60,WEEK 43 TRAVEL EXPENSES,BD1 5HQ,ADMIN
FOOD STANDARDS AGENCY - Westminster,FOOD STANDARDS AGENCY - Westminster,2017-11-30,EXP - PURCHASE OF GOODS/SERVICES - TAXI SERVICES,LEGAL  BRANCH A & INVESTIGATIONS,REDFERN TRAVEL LTD,1011704483,13.45,WEEK 47 TRAVEL EXPENSES,BD1 5HQ,ADMIN
FOOD STANDARDS AGENCY - Westminster,FOOD STANDARDS AGENCY - Westminster,2017-11-22,EXP - PURCHASE OF GOODS/SERVICES - OTHER TRAVEL,ANALYSIS & RESEARCH BRANCH,REDFERN TRAVEL LTD,1011704417,12.30,WEEK 46 TRAVEL EXPENSES,BD1 5HQ,ADMIN
FOOD STANDARDS AGENCY - Westminster,FOOD STANDARDS AGENCY - Westminster,2017-11-30,EXP - PURCHASE OF GOODS/SERVICES - OTHER TRAVEL,CORPORATE SUPPORT UNIT,REDFERN TRAVEL LTD,1011704483,12.30,WEEK 47 TRAVEL EXPENSES,BD1 5HQ,ADMIN
FOOD STANDARDS AGENCY - Westminster,FOOD STANDARDS AGENCY - Westminster,2017-11-01,EXP - PURCHASE OF GOODS/SERVICES - RAIL TRAVEL,FOOD CRIME UNIT ADMIN,REDFERN TRAVEL LTD,1011704256,11.60,WEEK 43 TRAVEL EXPENSES,BD1 5HQ,ADMIN
FOOD STANDARDS AGENCY - Westminster,FOOD STANDARDS AGENCY - Westminster,2017-11-01,EXP - PURCHASE OF GOODS/SERVICES - RAIL TRAVEL,FOODBORNE DISEASE CONTROL,REDFERN TRAVEL LTD,1011704256,10.45,WEEK 43 TRAVEL EXPENSES,BD1 5HQ,ADMIN
FOOD STANDARDS AGENCY - Westminster,FOOD STANDARDS AGENCY - Westminster,2017-11-30,EXP - PURCHASE OF GOODS/SERVICES - OTHER TRAVEL,CHIEF EXECUTIVE & PRIVATE OFFICE,REDFERN TRAVEL LTD,1011704483,9.80,WEEK 47 TRAVEL EXPENSES,BD1 5HQ,ADMIN
FOOD STANDARDS AGENCY - Westminster,FOOD STANDARDS AGENCY - Westminster,2017-11-30,EXP - PURCHASE OF GOODS/SERVICES - TAXI SERVICES,INFORMATION & KNOWLEDGE MANAGMENT,REDFERN TRAVEL LTD,1011704483,6.36,WEEK 47 TRAVEL EXPENSES,BD1 5HQ,ADMIN
FOOD STANDARDS AGENCY - Westminster,FOOD STANDARDS AGENCY - Westminster,2017-11-22,EXP - PURCHASE OF GOODS/SERVICES - SUBSISTENCE,INTERNAL AUDIT,REDFERN TRAVEL LTD,1011704417,2.40,WEEK 46 TRAVEL EXPENSES,BD1 5HQ,ADMIN
FOOD STANDARDS AGENCY - Westminster,FOOD STANDARDS AGENCY - Westminster,2017-11-22,EXP - PURCHASE OF GOODS/SERVICES - FOREIGN SUBSISTENCE,OPERATIONS ASSURANCE DIVISION (PROGRAMME),REDFERN TRAVEL LTD,1011704417,2.40,WEEK 46 TRAVEL EXPENSES,BD1 5HQ,PROGRAMME
FOOD STANDARDS AGENCY - Westminster,FOOD STANDARDS AGENCY - Westminster,2017-11-22,EXP - PURCHASE OF GOODS/SERVICES - RAIL TRAVEL,DIGITAL,REDFERN TRAVEL LTD,1011704417,2.33,WEEK 46 TRAVEL EXPENSES,BD1 5HQ,ADMIN
FOOD STANDARDS AGENCY - Westminster,FOOD STANDARDS AGENCY - Westminster,2017-11-22,EXP - PURCHASE OF GOODS/SERVICES - AIR TRAVEL,REGULATING OUR FUTURE,REDFERN TRAVEL LTD,1011704417,2.16,WEEK 46 TRAVEL EXPENSES,BD1 5HQ,ADMIN
FOOD STANDARDS AGENCY - Westminster,FOOD STANDARDS AGENCY - Westminster,2017-11-08,EXP - PURCHASE OF GOODS/SERVICES - FOREIGN SUBSISTENCE,EU EXIT,REDFERN TRAVEL LTD,1011704298,1.80,WEEK 44 TRAVEL EXPENSES,BD1 5HQ,ADMIN
FOOD STANDARDS AGENCY - Westminster,FOOD STANDARDS AGENCY - Westminster,2017-11-01,EXP - PURCHASE OF GOODS/SERVICES - FOREIGN SUBSISTENCE,FOOD HYGIENE POLICY,REDFERN TRAVEL LTD,1011704256,1.20,WEEK 43 TRAVEL EXPENSES,BD1 5HQ,ADMIN
FOOD STANDARDS AGENCY - Westminster,FOOD STANDARDS AGENCY - Westminster,2017-11-08,EXP - PURCHASE OF GOODS/SERVICES - FOREIGN SUBSISTENCE,ANALYSIS & RESEARCH BRANCH,REDFERN TRAVEL LTD,1011704298,1.20,WEEK 44 TRAVEL EXPENSES,BD1 5HQ,ADMIN
FOOD STANDARDS AGENCY - Westminster,FOOD STANDARDS AGENCY - Westminster,2017-11-16,EXP - PURCHASE OF GOODS/SERVICES - FOREIGN SUBSISTENCE,FOOD INCIDENTS AND RESILIENCE PROG,REDFERN TRAVEL LTD,1011704377,1.20,UK TRAVEL WEEK 45,BD1 5HQ,PROGRAMME
FOOD STANDARDS AGENCY - Westminster,FOOD STANDARDS AGENCY - Westminster,2017-11-22,EXP - PURCHASE OF GOODS/SERVICES - FOREIGN SUBSISTENCE,FOOD INCIDENTS AND RESILIENCE PROG,REDFERN TRAVEL LTD,1011704417,1.20,WEEK 46 TRAVEL EXPENSES,BD1 5HQ,PROGRAMME
FOOD STANDARDS AGENCY - Westminster,FOOD STANDARDS AGENCY - Westminster,2017-11-22,EXP - PURCHASE OF GOODS/SERVICES - FOREIGN SUBSISTENCE,OPERATIONAL DELIVERY ,REDFERN TRAVEL LTD,1011704417,1.20,WEEK 46 TRAVEL EXPENSES,BD1 5HQ,PROGRAMME
FOOD STANDARDS AGENCY - Westminster,FOOD STANDARDS AGENCY - Westminster,2017-11-22,EXP - PURCHASE OF GOODS/SERVICES - FOREIGN SUBSISTENCE,"RADIOLOGICAL, NOVEL FOOD & PROCESSES",REDFERN TRAVEL LTD,1011704417,1.20,WEEK 46 TRAVEL EXPENSES,BD1 5HQ,ADMIN
FOOD STANDARDS AGENCY - Westminster,FOOD STANDARDS AGENCY - Westminster,2017-11-30,EXP - PURCHASE OF GOODS/SERVICES - FOREIGN SUBSISTENCE,ALLERGY & INTOLERANCE,REDFERN TRAVEL LTD,1011704483,1.20,WEEK 47 TRAVEL EXPENSES,BD1 5HQ,ADMIN
FOOD STANDARDS AGENCY - Westminster,FOOD STANDARDS AGENCY - Westminster,2017-11-01,EXP - PURCHASE OF GOODS/SERVICES - FOREIGN SUBSISTENCE,MEAT HYGIENE POLICY,REDFERN TRAVEL LTD,1011704256,0.60,WEEK 43 TRAVEL EXPENSES,BD1 5HQ,ADMIN
FOOD STANDARDS AGENCY - Westminster,FOOD STANDARDS AGENCY - Westminster,2017-11-08,EXP - PURCHASE OF GOODS/SERVICES - SUBSISTENCE,INPORT & EXPORTS TEAM,REDFERN TRAVEL LTD,1011704298,0.60,WEEK 44 TRAVEL EXPENSES,BD1 5HQ,ADMIN
FOOD STANDARDS AGENCY - Westminster,FOOD STANDARDS AGENCY - Westminster,2017-11-08,EXP - PURCHASE OF GOODS/SERVICES - FOREIGN SUBSISTENCE,SCIENTIFIC METHODS AND LABORATORY POLICY,REDFERN TRAVEL LTD,1011704298,0.60,WEEK 44 TRAVEL EXPENSES,BD1 5HQ,ADMIN
FOOD STANDARDS AGENCY - Westminster,FOOD STANDARDS AGENCY - Westminster,2017-11-16,EXP - PURCHASE OF GOODS/SERVICES - FOREIGN SUBSISTENCE,FOOD HYGIENE POLICY,REDFERN TRAVEL LTD,1011704377,0.60,UK TRAVEL WEEK 45,BD1 5HQ,ADMIN
FOOD STANDARDS AGENCY - Westminster,FOOD STANDARDS AGENCY - Westminster,2017-11-16,EXP - PURCHASE OF GOODS/SERVICES - FOREIGN SUBSISTENCE,FOOD ADDITIVES,REDFERN TRAVEL LTD,1011704377,0.60,UK TRAVEL WEEK 45,BD1 5HQ,ADMIN
FOOD STANDARDS AGENCY - Westminster,FOOD STANDARDS AGENCY - Westminster,2017-11-22,EXP - PURCHASE OF GOODS/SERVICES - FOREIGN SUBSISTENCE,"ANIMAL FEED, TSEs & ABPs",REDFERN TRAVEL LTD,1011704417,0.60,WEEK 46 TRAVEL EXPENSES,BD1 5HQ,ADMIN
FOOD STANDARDS AGENCY - Westminster,FOOD STANDARDS AGENCY - Westminster,2017-11-22,EXP - PURCHASE OF GOODS/SERVICES - FOREIGN SUBSISTENCE,REGULATORY & INTERNATIONAL,REDFERN TRAVEL LTD,1011704417,0.60,WEEK 46 TRAVEL EXPENSES,BD1 5HQ,ADMIN
FOOD STANDARDS AGENCY - Westminster,FOOD STANDARDS AGENCY - Westminster,2017-11-30,EXP - PURCHASE OF GOODS/SERVICES - SUBSISTENCE,Wales and West 4 ,REDFERN TRAVEL LTD,1011704483,0.60,WEEK 47 TRAVEL EXPENSES,BD1 5HQ,PROGRAMME
FOOD STANDARDS AGENCY - Westminster,FOOD STANDARDS AGENCY - Westminster,2017-11-22,EXP - PURCHASE OF GOODS/SERVICES - RAIL TRAVEL,East 4,REDFERN TRAVEL LTD,1011704417,-9.40,WEEK 46 TRAVEL EXPENSES,BD1 5HQ,PROGRAMME
FOOD STANDARDS AGENCY - Westminster,FOOD STANDARDS AGENCY - Westminster,2017-11-16,EXP - PURCHASE OF GOODS/SERVICES - RAIL TRAVEL,Wales and West 2 (Wales),REDFERN TRAVEL LTD,1011704377,-9.60,UK TRAVEL WEEK 45,BD1 5HQ,PROGRAMME
FOOD STANDARDS AGENCY - Westminster,FOOD STANDARDS AGENCY - Westminster,2017-11-08,EXP - PURCHASE OF GOODS/SERVICES - RAIL TRAVEL,Wales and West 2 (Wales),REDFERN TRAVEL LTD,1011704298,-12.90,WEEK 44 TRAVEL EXPENSES,BD1 5HQ,PROGRAMME
FOOD STANDARDS AGENCY - Westminster,FOOD STANDARDS AGENCY - Westminster,2017-11-22,EXP - PURCHASE OF GOODS/SERVICES - RAIL TRAVEL,IT SERVICE DELIVERY,REDFERN TRAVEL LTD,1011704417,-26.30,WEEK 46 TRAVEL EXPENSES,BD1 5HQ,ADMIN
FOOD STANDARDS AGENCY - Westminster,FOOD STANDARDS AGENCY - Westminster,2017-11-30,EXP - PURCHASE OF GOODS/SERVICES - RAIL TRAVEL,FOODBORNE DISEASE CONTROL,REDFERN TRAVEL LTD,1011704483,-28.20,WEEK 47 TRAVEL EXPENSES,BD1 5HQ,ADMIN
FOOD STANDARDS AGENCY - Westminster,FOOD STANDARDS AGENCY - Westminster,2017-11-22,EXP - PURCHASE OF GOODS/SERVICES - RAIL TRAVEL,North 4,REDFERN TRAVEL LTD,1011704417,-30.90,WEEK 46 TRAVEL EXPENSES,BD1 5HQ,PROGRAMME
FOOD STANDARDS AGENCY - Westminster,FOOD STANDARDS AGENCY - Westminster,2017-11-08,EXP - PURCHASE OF GOODS/SERVICES - RAIL TRAVEL,East 4,REDFERN TRAVEL LTD,1011704298,-35.90,WEEK 44 TRAVEL EXPENSES,BD1 5HQ,PROGRAMME
FOOD STANDARDS AGENCY - Westminster,FOOD STANDARDS AGENCY - Westminster,2017-11-08,EXP - PURCHASE OF GOODS/SERVICES - RAIL TRAVEL,PROCUREMENT,REDFERN TRAVEL LTD,1011704298,-36.50,WEEK 44 TRAVEL EXPENSES,BD1 5HQ,ADMIN
FOOD STANDARDS AGENCY - Westminster,FOOD STANDARDS AGENCY - Westminster,2017-11-08,EXP - PURCHASE OF GOODS/SERVICES - RAIL TRAVEL,North 3,REDFERN TRAVEL LTD,1011704298,-46.40,WEEK 44 TRAVEL EXPENSES,BD1 5HQ,PROGRAMME
FOOD STANDARDS AGENCY - Westminster,FOOD STANDARDS AGENCY - Westminster,2017-11-08,EXP - PURCHASE OF GOODS/SERVICES - RAIL TRAVEL,CHIEF EXECUTIVE & PRIVATE OFFICE,REDFERN TRAVEL LTD,1011704298,-58.90,WEEK 44 TRAVEL EXPENSES,BD1 5HQ,ADMIN
FOOD STANDARDS AGENCY - Westminster,FOOD STANDARDS AGENCY - Westminster,2017-11-16,EXP - PURCHASE OF GOODS/SERVICES - RAIL TRAVEL,PROCUREMENT,REDFERN TRAVEL LTD,1011704377,-74.40,UK TRAVEL WEEK 45,BD1 5HQ,ADMIN
FOOD STANDARDS AGENCY - Westminster,FOOD STANDARDS AGENCY - Westminster,2017-11-30,EXP - PURCHASE OF GOODS/SERVICES - RAIL TRAVEL,North 4,REDFERN TRAVEL LTD,1011704483,-75.00,WEEK 47 TRAVEL EXPENSES,BD1 5HQ,PROGRAMME
FOOD STANDARDS AGENCY - Westminster,FOOD STANDARDS AGENCY - Westminster,2017-11-30,EXP - PURCHASE OF GOODS/SERVICES - RAIL TRAVEL,FINANCE BRANCH,REDFERN TRAVEL LTD,1011704483,-188.60,WEEK 47 TRAVEL EXPENSES,BD1 5HQ,ADMIN
FOOD STANDARDS AGENCY - Westminster,FOOD STANDARDS AGENCY - Westminster,2017-11-08,EXP - PURCHASE OF GOODS/SERVICES - RAIL TRAVEL,Wales and West 2 (England),REDFERN TRAVEL LTD,1011704298,-216.50,WEEK 44 TRAVEL EXPENSES,BD1 5HQ,PROGRAMME
FOOD STANDARDS AGENCY - Westminster,FOOD STANDARDS AGENCY - Westminster,2017-11-16,EXP - PURCHASE OF GOODS/SERVICES - FOREIGN SUBSISTENCE,"RADIOLOGICAL, NOVEL FOOD & PROCESSES",REDFERN TRAVEL LTD,1011704377,-268.51,UK TRAVEL WEEK 45,BD1 5HQ,ADMIN
FOOD STANDARDS AGENCY - Westminster,FOOD STANDARDS AGENCY - Westminster,2017-11-30,EXP - PURCHASE OF GOODS/SERVICES -  FOREIGN AIR TRAVEL,REGULATING OUR FUTURE,REDFERN TRAVEL LTD,1011704483,"-2,090.27",WEEK 47 TRAVEL EXPENSES,BD1 5HQ,ADMIN
